Workbook

Sheet Administrative Page
A1: Table of Contents
A2: 1 | B2: =INDEX(SheetNames,A2) -> Administrative Page | C2: =HYPERLINK("#'"&B2&"'!A1","Go To Sheet") -> Go To Sheet
A3: 2 | B3: =INDEX(SheetNames,A3) -> January Data | C3: =HYPERLINK("#'"&B3&"'!A1","Go To Sheet") -> Go To Sheet
A4: 3 | B4: =INDEX(SheetNames,A4) -> February Data | C4: Go To Sheet
A5: 4 | B5: =INDEX(SheetNames,A5) -> March Data | C5: Go To Sheet
A6: 5 | B6: =INDEX(SheetNames,A6) -> April Data | C6: Go To Sheet
A7: 6 | B7: =INDEX(SheetNames,A7) -> May Data | C7: Go To Sheet
A8: 7 | B8: =INDEX(SheetNames,A8) -> June Data | C8: Go To Sheet
A9: 8 | B9: =INDEX(SheetNames,A9) -> July Data | C9: Go To Sheet
A10: 9 | B10: =INDEX(SheetNames,A10) -> August Data | C10: Go To Sheet
A11: 10 | B11: =INDEX(SheetNames,A11) -> October Data | C11: Go To Sheet
A12: 11 | B12: =INDEX(SheetNames,A12) -> November Data | C12: Go To Sheet
A13: 12 | B13: =INDEX(SheetNames,A13) -> December Data | C13: Go To Sheet
A14: 13 | B14: =INDEX(SheetNames,A14) -> Income Statement | C14: Go To Sheet
A15: 14 | B15: =INDEX(SheetNames,A15) -> Budget | C15: Go To Sheet
A16: 15 | B16: =INDEX(SheetNames,A16) -> Actual to Budget | C16: Go To Sheet
A17: 16 | B17: =INDEX(SheetNames,A17) -> Charts | C17: Go To Sheet
A18: 17 | B18: =INDEX(SheetNames,A18) -> Dashboard | C18: Go To Sheet
A19: 18 | B19: =INDEX(SheetNames,A19) -> CashFlow Statement | C19: Go To Sheet
A20: 19 | B20: =INDEX(SheetNames,A20) -> CashFlow Forecast | C20: Go To Sheet
A21: 20 | B21: =INDEX(SheetNames,A21) -> PivotTables | C21: Go To Sheet
A22: 21 | B22: =INDEX(SheetNames,A22) -> Analysis | C22: Go To Sheet
A23: 22 | B23: =INDEX(SheetNames,A23) -> Preparers Notes | C23: Go To Sheet
A24: 23 | B24: =INDEX(SheetNames,A24) -> Reviewers Notes | C24: Go To Sheet
A25: 24 | B25: =INDEX(SheetNames,A25) -> Formula Proofs | C25: Go To Sheet

Sheet January Data
A1: Jackson Entertainment
A2: January Data
C4: DEPT 1 | D4: DEPT 2 | E4: DEPT 3 | F4: DEPT 4 | G4: DEPT 5 | H4: DEPT 6 | I4: DEPT 7 | J4: DEPT 8 | K4: TOTAL
A5: 1000 | B5: SALARIES & WAGES
A6: 1100 | B6: S & W – Exempt | C6: 9098.01 | D6: 21821.77 | E6: 8758.97 | F6: 3359.07 | G6: 33884.34 | H6: 29129.13 | I6: 11774.78 | J6: 3083.42 | K6: =SUM(C6:J6) -> 120909.49
A7: 1200 | B7: S & W – Non-Exempt | C7: 30414.04 | D7: 11205.27 | E7: 11047.31 | F7: 6544.15 | G7: 35152 | H7: 12263.82 | I7: 15821.35 | J7: 17764.67 | K7: 140212.61
A8: 1300 | B8: S & W – Officers | C8: 5698.72 | D8: 6903.43 | E8: 6446.73 | F8: 5480.94 | G8: 22029.22 | H8: 26523.95 | I8: =RANDBETWEEN(12,12000)/100 -> 37.98 | J8: 37471.95 | K8: 110592.92
A9: 1400 | B9: S & W – Incentives | C9: 18859.05 | D9: =RANDBETWEEN(12,12000)/100 -> 16.74 | E9: 5092.74 | F9: 21673.98 | G9: 12408.01 | H9: 25539.28 | I9: 19271.67 | J9: 33582.82 | K9: 136444.29
A10: 1500 | B10: S & W – Commissions | C10: 17198.16 | D10: 21273.21 | E10: 5551.14 | F10: 5621.21 | G10: =RANDBETWEEN(12,12000)/100 -> 78.63 | H10: 31326.56 | I10: 19138.54 | J10: =RANDBETWEEN(12,12000)/100 -> 51.75 | K10: 100239.2
A11: 1600 | B11: S & W – Overtime | C11: 27179.25 | D11: 15952.26 | E11: 35049.15 | F11: 6344.27 | G11: 25381.62 | H11: 4016.39 | I11: 31709.01 | J11: 27997.1 | K11: 173629.05
A12: 1700 | B12: S & W – Severence | C12: 19803.59 | D12: 34495.67 | E12: 2534.75 | F12: 18257.62 | G12: 35107.78 | H12: 2756.4 | I12: 12365.39 | J12: 32904.35 | K12: 158225.55
A14: 2000 | B14: FRINGE BENEFITS
A15: 2100 | B15: 401K Match | C15: 27352.84 | D15: 10439.55 | E15: 22575.83 | F15: 17230.83 | G15: 35782.1 | H15: 27441.6 | I15: 22378.18 | J15: 25848.74 | K15: 189049.67
A16: 2200 | B16: Allocations to Other Departments | C16: 9698.29 | D16: 5577.59 | E16: 36011.97 | F16: 32600.5 | G16: =RANDBETWEEN(12,12000)/100 -> 70.61 | H16: 11797.76 | I16: 34734.25 | J16: 19896.4 | K16: 150387.37
A17: 2300 | B17: Education Assistance / Training & Education | C17: 130.66 | D17: 5286.62 | E17: 26142.31 | F17: 36329.95 | G17: 1084.43 | H17: 28466.56 | I17: 7081.87 | J17: =RANDBETWEEN(12,12000)/100 -> 23.03 | K17: 104545.43
A18: 2400 | B18: Insurance – Workers Comp | C18: 5262.6 | D18: 26583.9 | E18: 3141.94 | F18: =RANDBETWEEN(12,12000)/100 -> 90.55 | G18: 5461.45 | H18: =RANDBETWEEN(12,12000)/100 -> 30.75 | I18: 8915.35 | J18: 30401.63 | K18: 79888.17
A19: 2500 | B19: Insurance – Medical & Dental | C19: =RANDBETWEEN(12,12000)/100 -> 3.89 | D19: 20379.11 | E19: 8648.87 | F19: 18972.33 | G19: 22975.42 | H19: 23339.78 | I19: 154.53 | J19: 15421.94 | K19: 109895.87
A20: 2600 | B20: Insurance – Group Life | C20: 5725.39 | D20: 21757.91 | E20: 2829.65 | F20: 996.62 | G20: 9644.55 | H20: 17102.83 | I20: =RANDBETWEEN(12,12000)/100 -> 7.92 | J20: 11055.53 | K20: 69120.4
A21: 2700 | B21: Other Miscellaneous Employee Benefits | C21: 7678.85 | D21: 3708.72 | E21: =RANDBETWEEN(12,12000)/100 -> 29.88 | F21: 36845.34 | G21: 20697.02 | H21: 24627.1 | I21: 31860 | J21: 15910.39 | K21: 141357.3
A22: 2800 | B22: PR Tax – FICA | C22: 23352.77 | D22: =RANDBETWEEN(12,12000)/100 -> 16.96 | E22: 84.3 | F22: 28408.81 | G22: 37876.69 | H22: 24304.09 | I22: 16245.72 | J22: 16598.69 | K22: 146888.03
A23: 2900 | B23: PR Tax – Unemployment | C23: 12805.5 | D23: 11426.7 | E23: 15805.09 | F23: 10232.31 | G23: 36604.14 | H23: 9551.99 | I23: 24150.32 | J23: 36388.67 | K23: 156964.72
A25: 3000 | B25: TRAVEL, LIVING & ENTERTAINMENT
A26: 3100 | B26: TLE – Airfares | C26: 8386.79 | D26: 36389.69 | E26: 34288.24 | F26: 8404.01 | G26: 37508.35 | H26: 16889.55 | I26: 16389.56 | J26: 28560.21 | K26: 186816.4
A27: 3200 | B27: TLE – Lodging | C27: 14047.57 | D27: 32073.41 | E27: 36191.16 | F27: 332.07 | G27: 27459.55 | H27: 3491.38 | I27: 23948.29 | J27: =RANDBETWEEN(12,12000)/100 -> 24.68 | K27: 137568.11
A28: 3300 | B28: TLE – Meals | C28: =RANDBETWEEN(12,12000)/100 -> 45.54 | D28: 20402.1 | E28: 12342.83 | F28: 21866.73 | G28: 29230.46 | H28: 24632.31 | I28: =RANDBETWEEN(12,12000)/100 -> 72.27 | J28: 15244.63 | K28: 123836.87
A29: 3400 | B29: TLE – Entertainment | C29: 31333.46 | D29: 4243.27 | E29: 28276.67 | F29: 26277.57 | G29: 15363.38 | H29: 29261.88 | I29: 25224.27 | J29: 3127.78 | K29: 163108.28
A30: 3500 | B30: TLE – Auto Leasing | C30: 33275.42 | D30: 31686.77 | E30: =RANDBETWEEN(12,12000)/100 -> 3.08 | F30: =RANDBETWEEN(12,12000)/100 -> 33.21 | G30: =RANDBETWEEN(12,12000)/100 -> 30.66 | H30: 20425.07 | I30: 32413 | J30: 18872.96 | K30: 136740.17
A31: 3600 | B31: TLE – Auto Expense | C31: 7005.62 | D31: 29174.02 | E31: 20248.59 | F31: 11917.81 | G31: 12590.3 | H31: 35752.08 | I31: =RANDBETWEEN(12,12000)/100 -> 48.63 | J31: =RANDBETWEEN(12,12000)/100 -> 113.49 | K31: 116850.54
A32: 3700 | B32: TLE – Conventions & /Seminars | C32: 30051.66 | D32: =RANDBETWEEN(12,12000)/100 -> 6.33 | E32: 35189.22 | F32: 270.08 | G32: 35404.62 | H32: 33112.98 | I32: 11358.06 | J32: 31954.76 | K32: 177347.71
A33: 3800 | B33: TLE – Miscellaneous | C33: 32958.88 | D33: 6487.75 | E33: 29564.76 | F33: =RANDBETWEEN(12,12000)/100 -> 79.75 | G33: 26200.24 | H33: 25735.04 | I33: 35761.83 | J33: 14116.99 | K33: 170905.24
A34: 3900 | B34: TLE – Cellphones & Pagers | C34: 6600.66 | D34: 21941.65 | E34: 35550.77 | F34: 13525.38 | G34: 35389.19 | H34: 31633.41 | I34: 32602.35 | J34: 21877.74 | K34: 199121.15
A36: 4000 | B36: OTHER MISCELLANEOUS EXPENSES
A37: 4100 | B37: MISC – Bad Debts | C37: 9804.63 | D37: 1932.96 | E37: 37509.19 | F37: 6603.45 | G37: 22306.11 | H37: 15977.81 | I37: 21580.8 | J37: 3081.09 | K37: 118796.04
A38: 4200 | B38: MISC – Bank Charges | C38: 21014.82 | D38: 14872.21 | E38: 11172.66 | F38: 17195.7 | G38: 19514.71 | H38: 11750.01 | I38: 25569.99 | J38: 10958.42 | K38: =SUM(C38:J38) -> 132048.52
A39: 4300 | B39: MISC – Computer & Software Related | C39: 11115.29 | D39: 33460.02 | E39: 21457.06 | F39: 26967.83 | G39: 11605.15 | H39: 3448.53 | I39: 776.87 | J39: 3786.75 | K39: 112617.5
A40: 4400 | B40: MISC – Contributions / Donations | C40: 14598.91 | D40: 31713.12 | E40: 15789.22 | F40: 28305.47 | G40: 35553.51 | H40: 6794.74 | I40: 6542.56 | J40: 31086.75 | K40: 170384.28
A41: 4500 | B41: MISC – Dues & Subscriptions | C41: 19322.17 | D41: 19697.18 | E41: 24485.41 | F41: 15785.32 | G41: 28765.47 | H41: 5697.68 | I41: 11709.75 | J41: 29736.01 | K41: 155198.99
A42: 4600 | B42: MISC – Insurance – Auto & General | C42: 27893.84 | D42: 21277.79 | E42: 28267.87 | F42: 35279.79 | G42: 19676.95 | H42: 27185.97 | I42: 15009.76 | J42: 1033.11 | K42: 175625.08
A43: 4700 | B43: MISC – Office Supplies & Expense | C43: 16282.01 | D43: 28111.91 | E43: 1529.86 | F43: 232.36 | G43: 9976.1 | H43: 36105.57 | I43: 6661.84 | J43: 13954.44 | K43: 112854.09
A44: 4800 | B44: MISC – Postage | C44: 6902.88 | D44: 36695.07 | E44: 32875.02 | F44: 29071.16 | G44: 15178.78 | H44: 33624.65 | I44: 30362.86 | J44: 23073.53 | K44: 207783.95
A45: 4900 | B45: MISC – Misc. Taxes & Licenses | C45: 25356.45 | D45: 27128.7 | E45: 14440.28 | F45: 10962.42 | G45: 35802.19 | H45: 20594.7 | I45: 33248.68 | J45: 16905.12 | K45: 184438.54
A47: 5000 | B47: OUTSIDE SERVICES
A48: 5100 | B48: O / S – Advertising Expense | C48: 31843.07 | D48: 20107.81 | E48: 32688.84 | F48: 8520.39 | G48: 9706.39 | H48: 18652.66 | I48: 34946.34 | J48: 27166.46 | K48: =SUM(C48:J48) -> 183631.96
A49: 5200 | B49: O / S – Legal Fees | C49: 13283.67 | D49: 29353.07 | E49: 29136.27 | F49: 1475.46 | G49: 1187.32 | H49: 23832.87 | I49: 17092.91 | J49: 36548.5 | K49: 151910.07
A50: 5300 | B50: O / S – Accounting | C50: 12381.2 | D50: 13917.38 | E50: 26344.91 | F50: 9068.07 | G50: 27214.13 | H50: 9898.59 | I50: 12565.91 | J50: 12223.65 | K50: 123613.84
A51: 5400 | B51: O / S – Consultant Fees | C51: 35841.88 | D51: 27318.94 | E51: 33100.05 | F51: 14452.9 | G51: 3136.57 | H51: 16976.61 | I51: 2780.72 | J51: 26201.5 | K51: 159809.17
A52: 5500 | B52: O / S – Promotional Expense | C52: 28166.85 | D52: 16376.59 | E52: 471.46 | F52: 12984.52 | G52: 23543.37 | H52: 926.32 | I52: 13295.14 | J52: 36516.63 | K52: 132280.88
A53: 5600 | B53: O / S – Recruiting Fees | C53: 23972.88 | D53: 4154.42 | E53: 19268.03 | F53: 13242.48 | G53: 10069.98 | H53: 175.95 | I53: 26547.52 | J53: 25739.01 | K53: 123170.27
A54: 5700 | B54: O / S – Contract Labor | C54: 11457.88 | D54: 22630.02 | E54: 27930.12 | F54: 19577.58 | G54: 23080.63 | H54: 14963.98 | I54: 24978.85 | J54: 8658.28 | K54: 153277.34
A55: 5800 | B55: O / S – Janitorial Service | C55: 37916.11 | D55: 5626.46 | E55: 36567.6 | F55: 29574.14 | G55: 34838.28 | H55: 30832.26 | I55: 8267.73 | J55: 19487.31 | K55: 203109.89
A56: 5900 | B56: O / S – Security | C56: 22888.16 | D56: 29041.24 | E56: 27238.53 | F56: 11698.07 | G56: 37860.56 | H56: 32763.76 | I56: 24506.02 | J56: 25084.12 | K56: 211080.46
A58: 6000 | B58: RENTALS & LEASES
A59: 6100 | B59: RENTALS Office Rent | C59: 22386.52 | D59: 34924.8 | E59: 28175.88 | F59: 22556.44 | G59: 9197.18 | H59: 17127.11 | I59: 27827.5 | J59: 24908.69 | K59: 187104.12
A60: 6200 | B60: RENTALS Equipment Rental | C60: 16792.22 | D60: 23877.54 | E60: 13393.53 | F60: 20218.46 | G60: 24092.07 | H60: 36903.68 | I60: 23438.94 | J60: 13688.37 | K60: 172404.81
A61: 6300 | B61: RENTALS Office Equipment | C61: 22925.38 | D61: 24451.76 | E61: 11284.72 | F61: 24490.22 | G61: 17081.98 | H61: 7365.5 | I61: 8645.92 | J61: 21712.17 | K61: 137957.65
A62: 6400 | B62: RENTALS Vehicle Leases | C62: 6212.37 | D62: 15570.33 | E62: 16274.99 | F62: 20675.77 | G62: 33315.68 | H62: 12830.5 | I62: 36877.18 | J62: 27012.61 | K62: 168769.43
A64: 7000 | B64: FACILITIES
A65: 7100 | B65: FAC – Telephone & Fax | C65: 16551 | D65: 36295.55 | E65: 9107.85 | F65: 25243.85 | G65: 20808.97 | H65: 29619.26 | I65: 29705.02 | J65: 32341.93 | K65: 199673.43
A66: 7200 | B66: FAC – Utilities | C66: 13318.13 | D66: 29940.92 | E66: 4942.71 | F66: 29777.92 | G66: 34608.24 | H66: 29053.35 | I66: 22478.86 | J66: 21831.93 | K66: 185952.06
A67: 7300 | B67: FAC – Electricity | C67: 8845.75 | D67: 21007.57 | E67: 4601.98 | F67: 6877.61 | G67: 3885.28 | H67: 19736.88 | I67: 19341.09 | J67: 732.95 | K67: 85029.11
A68: 7400 | B68: FAC – Water | C68: 18853.83 | D68: 25384.46 | E68: 30840.99 | F68: 23806.2 | G68: 34835.15 | H68: 33340.92 | I68: 15654.91 | J68: 6662.94 | K68: 189379.4
A69: 7500 | B69: FAC – Repairs – Building | C69: 11697.92 | D69: 31610.93 | E69: 12915.26 | F69: 15807.47 | G69: 15502.05 | H69: 1774.06 | I69: 30836.6 | J69: 17348.43 | K69: 137492.72
A70: 7600 | B70: FAC – Repairs – Office Equipment | C70: 34317.27 | D70: 22678.73 | E70: 28754.53 | F70: 3780.86 | G70: 8108.83 | H70: 5429.3 | I70: 12976.72 | J70: 13881.41 | K70: =SUM(C70:J70) -> 129927.65
A71: 7700 | B71: FAC – Real Estate Taxes | C71: 36449.68 | D71: 31555.3 | E71: 34842.35 | F71: 6546.43 | G71: 5705.12 | H71: 33334.23 | I71: 33130.51 | J71: 33192.43 | K71: 214756.05
C73: =SUM(C6:C71) -> 962359.98 | D73: =SUM(D6:D71) -> 1079963.18 | E73: 1036813.12 | F73: 822473.43 | G73: 1129571.51 | H73: 1055869.14 | I73: 1010822.62 | J73: 1022848.86 | K73: 8120721.84

Sheet February Data
A1: Jackson Entertainment
A2: February Data
C4: DEPT 1 | D4: DEPT 2 | E4: DEPT 3 | F4: DEPT 4 | G4: DEPT 5 | H4: DEPT 6 | I4: DEPT 7 | J4: DEPT 8 | K4: TOTAL
A5: 1000 | B5: SALARIES & WAGES
A6: 1100 | B6: S & W – Exempt | C6: 9098.01 | D6: 21821.77 | E6: 8758.97 | F6: 3359.07 | G6: 33884.34 | H6: 29129.13 | I6: 11774.78 | J6: 3083.42 | K6: =SUM(C6:J6) -> 120909.49
A7: 1200 | B7: S & W – Non-Exempt | C7: 30414.04 | D7: 11205.27 | E7: 11047.31 | F7: 6544.15 | G7: 35152 | H7: 12263.82 | I7: 15821.35 | J7: 17764.67 | K7: 140212.61
A8: 1300 | B8: S & W – Officers | C8: 5698.72 | D8: 6903.43 | E8: 6446.73 | F8: 5480.94 | G8: 22029.22 | H8: 26523.95 | I8: =RANDBETWEEN(12,12000)/100 -> 5.16 | J8: 37471.95 | K8: 110560.1
A9: 1400 | B9: S & W – Incentives | C9: 18859.05 | D9: =RANDBETWEEN(12,12000)/100 -> 98.34 | E9: 5092.74 | F9: 21673.98 | G9: 12408.01 | H9: 25539.28 | I9: 19271.67 | J9: 33582.82 | K9: 136525.89
A10: 1500 | B10: S & W – Commissions | C10: 17198.16 | D10: 21273.21 | E10: 5551.14 | F10: 5621.21 | G10: =RANDBETWEEN(12,12000)/100 -> 73.11 | H10: 31326.56 | I10: 19138.54 | J10: =RANDBETWEEN(12,12000)/100 -> 42.95 | K10: 100224.88
A11: 1600 | B11: S & W – Overtime | C11: 27179.25 | D11: 15952.26 | E11: 35049.15 | F11: 6344.27 | G11: 25381.62 | H11: 4016.39 | I11: 31709.01 | J11: 27997.1 | K11: 173629.05
A12: 1700 | B12: S & W – Severence | C12: 19803.59 | D12: 34495.67 | E12: 2534.75 | F12: 18257.62 | G12: 35107.78 | H12: 2756.4 | I12: 12365.39 | J12: 32904.35 | K12: 158225.55
A14: 2000 | B14: FRINGE BENEFITS
A15: 2100 | B15: 401K Match | C15: 27352.84 | D15: 10439.55 | E15: 22575.83 | F15: 17230.83 | G15: 35782.1 | H15: 27441.6 | I15: 22378.18 | J15: 25848.74 | K15: 189049.67
A16: 2200 | B16: Allocations to Other Departments | C16: 9698.29 | D16: 5577.59 | E16: 36011.97 | F16: 32600.5 | G16: =RANDBETWEEN(12,12000)/100 -> 93.94 | H16: 11797.76 | I16: 34734.25 | J16: 19896.4 | K16: 150410.7
A17: 2300 | B17: Education Assistance / Training & Education | C17: 130.66 | D17: 5286.62 | E17: 26142.31 | F17: 36329.95 | G17: 1084.43 | H17: 28466.56 | I17: 7081.87 | J17: =RANDBETWEEN(12,12000)/100 -> 67.7 | K17: 104590.1
A18: 2400 | B18: Insurance – Workers Comp | C18: 5262.6 | D18: 26583.9 | E18: 3141.94 | F18: =RANDBETWEEN(12,12000)/100 -> 77.27 | G18: 5461.45 | H18: =RANDBETWEEN(12,12000)/100 -> 23.39 | I18: 8915.35 | J18: 30401.63 | K18: 79867.53
A19: 2500 | B19: Insurance – Medical & Dental | C19: =RANDBETWEEN(12,12000)/100 -> 117.66 | D19: 20379.11 | E19: 8648.87 | F19: 18972.33 | G19: 22975.42 | H19: 23339.78 | I19: 154.53 | J19: 15421.94 | K19: 110009.64
A20: 2600 | B20: Insurance – Group Life | C20: 5725.39 | D20: 21757.91 | E20: 2829.65 | F20: 996.62 | G20: 9644.55 | H20: 17102.83 | I20: =RANDBETWEEN(12,12000)/100 -> 106.01 | J20: 11055.53 | K20: 69218.49
A21: 2700 | B21: Other Miscellaneous Employee Benefits | C21: 7678.85 | D21: 3708.72 | E21: =RANDBETWEEN(12,12000)/100 -> 95.17 | F21: 36845.34 | G21: 20697.02 | H21: 24627.1 | I21: 31860 | J21: 15910.39 | K21: 141422.59
A22: 2800 | B22: PR Tax – FICA | C22: 23352.77 | D22: =RANDBETWEEN(12,12000)/100 -> 21.23 | E22: 37.55 | F22: 28408.81 | G22: 37876.69 | H22: 24304.09 | I22: 16245.72 | J22: 16598.69 | K22: 146845.55
A23: 2900 | B23: PR Tax – Unemployment | C23: 12805.5 | D23: 11426.7 | E23: 15805.09 | F23: 10232.31 | G23: 36604.14 | H23: 9551.99 | I23: 24150.32 | J23: 36388.67 | K23: 156964.72
A25: 3000 | B25: TRAVEL, LIVING & ENTERTAINMENT
A26: 3100 | B26: TLE – Airfares | C26: 8386.79 | D26: 36389.69 | E26: 34288.24 | F26: 8404.01 | G26: 37508.35 | H26: 16889.55 | I26: 16389.56 | J26: 28560.21 | K26: 186816.4
A27: 3200 | B27: TLE – Lodging | C27: 14047.57 | D27: 32073.41 | E27: 36191.16 | F27: 332.07 | G27: 27459.55 | H27: 3491.38 | I27: 23948.29 | J27: =RANDBETWEEN(12,12000)/100 -> 99.35 | K27: 137642.78
A28: 3300 | B28: TLE – Meals | C28: =RANDBETWEEN(12,12000)/100 -> 110.24 | D28: 20402.1 | E28: 12342.83 | F28: 21866.73 | G28: 29230.46 | H28: 24632.31 | I28: =RANDBETWEEN(12,12000)/100 -> 9.43 | J28: 15244.63 | K28: 123838.73
A29: 3400 | B29: TLE – Entertainment | C29: 31333.46 | D29: 4243.27 | E29: 28276.67 | F29: 26277.57 | G29: 15363.38 | H29: 29261.88 | I29: 25224.27 | J29: 3127.78 | K29: 163108.28
A30: 3500 | B30: TLE – Auto Leasing | C30: 33275.42 | D30: 31686.77 | E30: =RANDBETWEEN(12,12000)/100 -> 15.73 | F30: =RANDBETWEEN(12,12000)/100 -> 113.06 | G30: =RANDBETWEEN(12,12000)/100 -> 13.19 | H30: 20425.07 | I30: 32413 | J30: 18872.96 | K30: 136815.2
A31: 3600 | B31: TLE – Auto Expense | C31: 7005.62 | D31: 29174.02 | E31: 20248.59 | F31: 11917.81 | G31: 12590.3 | H31: 35752.08 | I31: =RANDBETWEEN(12,12000)/100 -> 8.7 | J31: =RANDBETWEEN(12,12000)/100 -> 58.12 | K31: 116755.24
A32: 3700 | B32: TLE – Conventions & /Seminars | C32: 30051.66 | D32: =RANDBETWEEN(12,12000)/100 -> 68.43 | E32: 35189.22 | F32: 270.08 | G32: 35404.62 | H32: 33112.98 | I32: 11358.06 | J32: 31954.76 | K32: 177409.81
A33: 3800 | B33: TLE – Miscellaneous | C33: 32958.88 | D33: 6487.75 | E33: 29564.76 | F33: =RANDBETWEEN(12,12000)/100 -> 18.22 | G33: 26200.24 | H33: 25735.04 | I33: 35761.83 | J33: 14116.99 | K33: 170843.71
A34: 3900 | B34: TLE – Cellphones & Pagers | C34: 6600.66 | D34: 21941.65 | E34: 35550.77 | F34: 13525.38 | G34: 35389.19 | H34: 31633.41 | I34: 32602.35 | J34: 21877.74 | K34: 199121.15
A36: 4000 | B36: OTHER MISCELLANEOUS EXPENSES
A37: 4100 | B37: MISC – Bad Debts | C37: 9804.63 | D37: 1932.96 | E37: 37509.19 | F37: 6603.45 | G37: 22306.11 | H37: 15977.81 | I37: 21580.8 | J37: 3081.09 | K37: 118796.04
A38: 4200 | B38: MISC – Bank Charges | C38: 21014.82 | D38: 14872.21 | E38: 11172.66 | F38: 17195.7 | G38: 19514.71 | H38: 11750.01 | I38: 25569.99 | J38: 10958.42 | K38: 132048.52
A39: 4300 | B39: MISC – Computer & Software Related | C39: 11115.29 | D39: 33460.02 | E39: 21457.06 | F39: 26967.83 | G39: 11605.15 | H39: 3448.53 | I39: 776.87 | J39: 3786.75 | K39: 112617.5
A40: 4400 | B40: MISC – Contributions / Donations | C40: 14598.91 | D40: 31713.12 | E40: 15789.22 | F40: 28305.47 | G40: 35553.51 | H40: 6794.74 | I40: 6542.56 | J40: 31086.75 | K40: 170384.28
A41: 4500 | B41: MISC – Dues & Subscriptions | C41: 19322.17 | D41: 19697.18 | E41: 24485.41 | F41: 15785.32 | G41: 28765.47 | H41: 5697.68 | I41: 11709.75 | J41: 29736.01 | K41: 155198.99
A42: 4600 | B42: MISC – Insurance – Auto & General | C42: 27893.84 | D42: 21277.79 | E42: 28267.87 | F42: 35279.79 | G42: 19676.95 | H42: 27185.97 | I42: 15009.76 | J42: 1033.11 | K42: 175625.08
A43: 4700 | B43: MISC – Office Supplies & Expense | C43: 16282.01 | D43: 28111.91 | E43: 1529.86 | F43: 232.36 | G43: 9976.1 | H43: 36105.57 | I43: 6661.84 | J43: 13954.44 | K43: 112854.09
A44: 4800 | B44: MISC – Postage | C44: 6902.88 | D44: 36695.07 | E44: 32875.02 | F44: 29071.16 | G44: 15178.78 | H44: 33624.65 | I44: 30362.86 | J44: 23073.53 | K44: 207783.95
A45: 4900 | B45: MISC – Misc. Taxes & Licenses | C45: 25356.45 | D45: 27128.7 | E45: 14440.28 | F45: 10962.42 | G45: 35802.19 | H45: 20594.7 | I45: 33248.68 | J45: 16905.12 | K45: 184438.54
A47: 5000 | B47: OUTSIDE SERVICES
A48: 5100 | B48: O / S – Advertising Expense | C48: 31843.07 | D48: 20107.81 | E48: 32688.84 | F48: 8520.39 | G48: 9706.39 | H48: 18652.66 | I48: 34946.34 | J48: 27166.46 | K48: =SUM(C48:J48) -> 183631.96
A49: 5200 | B49: O / S – Legal Fees | C49: 13283.67 | D49: 29353.07 | E49: 29136.27 | F49: 1475.46 | G49: 1187.32 | H49: 23832.87 | I49: 17092.91 | J49: 36548.5 | K49: 151910.07
A50: 5300 | B50: O / S – Accounting | C50: 12381.2 | D50: 13917.38 | E50: 26344.91 | F50: 9068.07 | G50: 27214.13 | H50: 9898.59 | I50: 12565.91 | J50: 12223.65 | K50: 123613.84
A51: 5400 | B51: O / S – Consultant Fees | C51: 35841.88 | D51: 27318.94 | E51: 33100.05 | F51: 14452.9 | G51: 3136.57 | H51: 16976.61 | I51: 2780.72 | J51: 26201.5 | K51: 159809.17
A52: 5500 | B52: O / S – Promotional Expense | C52: 28166.85 | D52: 16376.59 | E52: 471.46 | F52: 12984.52 | G52: 23543.37 | H52: 926.32 | I52: 13295.14 | J52: 36516.63 | K52: 132280.88
A53: 5600 | B53: O / S – Recruiting Fees | C53: 23972.88 | D53: 4154.42 | E53: 19268.03 | F53: 13242.48 | G53: 10069.98 | H53: 175.95 | I53: 26547.52 | J53: 25739.01 | K53: 123170.27
A54: 5700 | B54: O / S – Contract Labor | C54: 11457.88 | D54: 22630.02 | E54: 27930.12 | F54: 19577.58 | G54: 23080.63 | H54: 14963.98 | I54: 24978.85 | J54: 8658.28 | K54: 153277.34
A55: 5800 | B55: O / S – Janitorial Service | C55: 37916.11 | D55: 5626.46 | E55: 36567.6 | F55: 29574.14 | G55: 34838.28 | H55: 30832.26 | I55: 8267.73 | J55: 19487.31 | K55: 203109.89
A56: 5900 | B56: O / S – Security | C56: 22888.16 | D56: 29041.24 | E56: 27238.53 | F56: 11698.07 | G56: 37860.56 | H56: 32763.76 | I56: 24506.02 | J56: 25084.12 | K56: 211080.46
A58: 6000 | B58: RENTALS & LEASES
A59: 6100 | B59: RENTALS Office Rent | C59: 22386.52 | D59: 34924.8 | E59: 28175.88 | F59: 22556.44 | G59: 9197.18 | H59: 17127.11 | I59: 27827.5 | J59: 24908.69 | K59: 187104.12
A60: 6200 | B60: RENTALS Equipment Rental | C60: 16792.22 | D60: 23877.54 | E60: 13393.53 | F60: 20218.46 | G60: 24092.07 | H60: 36903.68 | I60: 23438.94 | J60: 13688.37 | K60: 172404.81
A61: 6300 | B61: RENTALS Office Equipment | C61: 22925.38 | D61: 24451.76 | E61: 11284.72 | F61: 24490.22 | G61: 17081.98 | H61: 7365.5 | I61: 8645.92 | J61: 21712.17 | K61: 137957.65
A62: 6400 | B62: RENTALS Vehicle Leases | C62: 6212.37 | D62: 15570.33 | E62: 16274.99 | F62: 20675.77 | G62: 33315.68 | H62: 12830.5 | I62: 36877.18 | J62: 27012.61 | K62: 168769.43
A64: 7000 | B64: FACILITIES
A65: 7100 | B65: FAC – Telephone & Fax | C65: 16551 | D65: 36295.55 | E65: 9107.85 | F65: 25243.85 | G65: 20808.97 | H65: 29619.26 | I65: 29705.02 | J65: 32341.93 | K65: 199673.43
A66: 7200 | B66: FAC – Utilities | C66: 13318.13 | D66: 29940.92 | E66: 4942.71 | F66: 29777.92 | G66: 34608.24 | H66: 29053.35 | I66: 22478.86 | J66: 21831.93 | K66: 185952.06
A67: 7300 | B67: FAC – Electricity | C67: 8845.75 | D67: 21007.57 | E67: 4601.98 | F67: 6877.61 | G67: 3885.28 | H67: 19736.88 | I67: 19341.09 | J67: 732.95 | K67: 85029.11
A68: 7400 | B68: FAC – Water | C68: 18853.83 | D68: 25384.46 | E68: 30840.99 | F68: 23806.2 | G68: 34835.15 | H68: 33340.92 | I68: 15654.91 | J68: 6662.94 | K68: 189379.4
A69: 7500 | B69: FAC – Repairs – Building | C69: 11697.92 | D69: 31610.93 | E69: 12915.26 | F69: 15807.47 | G69: 15502.05 | H69: 1774.06 | I69: 30836.6 | J69: 17348.43 | K69: 137492.72
A70: 7600 | B70: FAC – Repairs – Office Equipment | C70: 34317.27 | D70: 22678.73 | E70: 28754.53 | F70: 3780.86 | G70: 8108.83 | H70: 5429.3 | I70: 12976.72 | J70: 13881.41 | K70: =SUM(C70:J70) -> 129927.65
A71: 7700 | B71: FAC – Real Estate Taxes | C71: 36449.68 | D71: 31555.3 | E71: 34842.35 | F71: 6546.43 | G71: 5705.12 | H71: 33334.23 | I71: 33130.51 | J71: 33192.43 | K71: 214756.05
C73: =SUM(C6:C71) -> 962538.45 | D73: =SUM(D6:D71) -> 1080111.15 | E73: 1036844.31 | F73: 822478.47 | G73: 1129571.85 | H73: 1055861.78 | I73: 1010785.12 | J73: 1022904.03 | K73: 8121095.16

Sheet March Data
A1: Jackson Entertainment
A2: March Data
C4: DEPT 1 | D4: DEPT 2 | E4: DEPT 3 | F4: DEPT 4 | G4: DEPT 5 | H4: DEPT 6 | I4: DEPT 7 | J4: DEPT 8 | K4: TOTAL
A5: 1000 | B5: SALARIES & WAGES
A6: 1100 | B6: S & W – Exempt | C6: 9098.01 | D6: 21821.77 | E6: 8758.97 | F6: 3359.07 | G6: 33884.34 | H6: 29129.13 | I6: 11774.78 | J6: 3083.42 | K6: =SUM(C6:J6) -> 120909.49
A7: 1200 | B7: S & W – Non-Exempt | C7: 30414.04 | D7: 11205.27 | E7: 11047.31 | F7: 6544.15 | G7: 35152 | H7: 12263.82 | I7: 15821.35 | J7: 17764.67 | K7: 140212.61
A8: 1300 | B8: S & W – Officers | C8: 5698.72 | D8: 6903.43 | E8: 6446.73 | F8: 5480.94 | G8: 22029.22 | H8: 26523.95 | I8: =RANDBETWEEN(12,12000)/100 -> 81.7 | J8: 37471.95 | K8: 110636.64
A9: 1400 | B9: S & W – Incentives | C9: 18859.05 | D9: =RANDBETWEEN(12,12000)/100 -> 17.46 | E9: 5092.74 | F9: 21673.98 | G9: 12408.01 | H9: 25539.28 | I9: 19271.67 | J9: 33582.82 | K9: 136445.01
A10: 1500 | B10: S & W – Commissions | C10: 17198.16 | D10: 21273.21 | E10: 5551.14 | F10: 5621.21 | G10: =RANDBETWEEN(12,12000)/100 -> 41.76 | H10: 31326.56 | I10: 19138.54 | J10: =RANDBETWEEN(12,12000)/100 -> 115.18 | K10: 100265.76
A11: 1600 | B11: S & W – Overtime | C11: 27179.25 | D11: 15952.26 | E11: 35049.15 | F11: 6344.27 | G11: 25381.62 | H11: 4016.39 | I11: 31709.01 | J11: 27997.1 | K11: 173629.05
A12: 1700 | B12: S & W – Severence | C12: 19803.59 | D12: 34495.67 | E12: 2534.75 | F12: 18257.62 | G12: 35107.78 | H12: 2756.4 | I12: 12365.39 | J12: 32904.35 | K12: 158225.55
A14: 2000 | B14: FRINGE BENEFITS
A15: 2100 | B15: 401K Match | C15: 27352.84 | D15: 10439.55 | E15: 22575.83 | F15: 17230.83 | G15: 35782.1 | H15: 27441.6 | I15: 22378.18 | J15: 25848.74 | K15: 189049.67
A16: 2200 | B16: Allocations to Other Departments | C16: 9698.29 | D16: 5577.59 | E16: 36011.97 | F16: 32600.5 | G16: =RANDBETWEEN(12,12000)/100 -> 106.75 | H16: 11797.76 | I16: 34734.25 | J16: 19896.4 | K16: 150423.51
A17: 2300 | B17: Education Assistance / Training & Education | C17: 130.66 | D17: 5286.62 | E17: 26142.31 | F17: 36329.95 | G17: 1084.43 | H17: 28466.56 | I17: 7081.87 | J17: =RANDBETWEEN(12,12000)/100 -> 104.06 | K17: 104626.46
A18: 2400 | B18: Insurance – Workers Comp | C18: 5262.6 | D18: 26583.9 | E18: 3141.94 | F18: =RANDBETWEEN(12,12000)/100 -> 114.87 | G18: 5461.45 | H18: =RANDBETWEEN(12,12000)/100 -> 109.64 | I18: 8915.35 | J18: 30401.63 | K18: 79991.38
A19: 2500 | B19: Insurance – Medical & Dental | C19: =RANDBETWEEN(12,12000)/100 -> 64.6 | D19: 20379.11 | E19: 8648.87 | F19: 18972.33 | G19: 22975.42 | H19: 23339.78 | I19: 154.53 | J19: 15421.94 | K19: 109956.58
A20: 2600 | B20: Insurance – Group Life | C20: 5725.39 | D20: 21757.91 | E20: 2829.65 | F20: 996.62 | G20: 9644.55 | H20: 17102.83 | I20: =RANDBETWEEN(12,12000)/100 -> 108 | J20: 11055.53 | K20: 69220.48
A21: 2700 | B21: Other Miscellaneous Employee Benefits | C21: 7678.85 | D21: 3708.72 | E21: =RANDBETWEEN(12,12000)/100 -> 18.51 | F21: 36845.34 | G21: 20697.02 | H21: 24627.1 | I21: 31860 | J21: 15910.39 | K21: 141345.93
A22: 2800 | B22: PR Tax – FICA | C22: 23352.77 | D22: =RANDBETWEEN(12,12000)/100 -> 69.21 | E22: 91.04 | F22: 28408.81 | G22: 37876.69 | H22: 24304.09 | I22: 16245.72 | J22: 16598.69 | K22: 146947.02
A23: 2900 | B23: PR Tax – Unemployment | C23: 12805.5 | D23: 11426.7 | E23: 15805.09 | F23: 10232.31 | G23: 36604.14 | H23: 9551.99 | I23: 24150.32 | J23: 36388.67 | K23: 156964.72
A25: 3000 | B25: TRAVEL, LIVING & ENTERTAINMENT
A26: 3100 | B26: TLE – Airfares | C26: 8386.79 | D26: 36389.69 | E26: 34288.24 | F26: 8404.01 | G26: 37508.35 | H26: 16889.55 | I26: 16389.56 | J26: 28560.21 | K26: 186816.4
A27: 3200 | B27: TLE – Lodging | C27: 14047.57 | D27: 32073.41 | E27: 36191.16 | F27: 332.07 | G27: 27459.55 | H27: 3491.38 | I27: 23948.29 | J27: =RANDBETWEEN(12,12000)/100 -> 16.49 | K27: 137559.92
A28: 3300 | B28: TLE – Meals | C28: =RANDBETWEEN(12,12000)/100 -> 107.45 | D28: 20402.1 | E28: 12342.83 | F28: 21866.73 | G28: 29230.46 | H28: 24632.31 | I28: =RANDBETWEEN(12,12000)/100 -> 36.23 | J28: 15244.63 | K28: 123862.74
A29: 3400 | B29: TLE – Entertainment | C29: 31333.46 | D29: 4243.27 | E29: 28276.67 | F29: 26277.57 | G29: 15363.38 | H29: 29261.88 | I29: 25224.27 | J29: 3127.78 | K29: 163108.28
A30: 3500 | B30: TLE – Auto Leasing | C30: 33275.42 | D30: 31686.77 | E30: =RANDBETWEEN(12,12000)/100 -> 94.25 | F30: =RANDBETWEEN(12,12000)/100 -> 71.69 | G30: =RANDBETWEEN(12,12000)/100 -> 92.23 | H30: 20425.07 | I30: 32413 | J30: 18872.96 | K30: 136931.39
A31: 3600 | B31: TLE – Auto Expense | C31: 7005.62 | D31: 29174.02 | E31: 20248.59 | F31: 11917.81 | G31: 12590.3 | H31: 35752.08 | I31: =RANDBETWEEN(12,12000)/100 -> 3.2 | J31: =RANDBETWEEN(12,12000)/100 -> 103.8 | K31: 116795.42
A32: 3700 | B32: TLE – Conventions & /Seminars | C32: 30051.66 | D32: =RANDBETWEEN(12,12000)/100 -> 12.83 | E32: 35189.22 | F32: 270.08 | G32: 35404.62 | H32: 33112.98 | I32: 11358.06 | J32: 31954.76 | K32: 177354.21
A33: 3800 | B33: TLE – Miscellaneous | C33: 32958.88 | D33: 6487.75 | E33: 29564.76 | F33: =RANDBETWEEN(12,12000)/100 -> 32.88 | G33: 26200.24 | H33: 25735.04 | I33: 35761.83 | J33: 14116.99 | K33: 170858.37
A34: 3900 | B34: TLE – Cellphones & Pagers | C34: 6600.66 | D34: 21941.65 | E34: 35550.77 | F34: 13525.38 | G34: 35389.19 | H34: 31633.41 | I34: 32602.35 | J34: 21877.74 | K34: 199121.15
A36: 4000 | B36: OTHER MISCELLANEOUS EXPENSES
A37: 4100 | B37: MISC – Bad Debts | C37: 9804.63 | D37: 1932.96 | E37: 37509.19 | F37: 6603.45 | G37: 22306.11 | H37: 15977.81 | I37: 21580.8 | J37: 3081.09 | K37: 118796.04
A38: 4200 | B38: MISC – Bank Charges | C38: 21014.82 | D38: 14872.21 | E38: 11172.66 | F38: 17195.7 | G38: 19514.71 | H38: 11750.01 | I38: 25569.99 | J38: 10958.42 | K38: 132048.52
A39: 4300 | B39: MISC – Computer & Software Related | C39: 11115.29 | D39: 33460.02 | E39: 21457.06 | F39: 26967.83 | G39: 11605.15 | H39: 3448.53 | I39: 776.87 | J39: 3786.75 | K39: 112617.5
A40: 4400 | B40: MISC – Contributions / Donations | C40: 14598.91 | D40: 31713.12 | E40: 15789.22 | F40: 28305.47 | G40: 35553.51 | H40: 6794.74 | I40: 6542.56 | J40: 31086.75 | K40: 170384.28
A41: 4500 | B41: MISC – Dues & Subscriptions | C41: 19322.17 | D41: 19697.18 | E41: 24485.41 | F41: 15785.32 | G41: 28765.47 | H41: 5697.68 | I41: 11709.75 | J41: 29736.01 | K41: 155198.99
A42: 4600 | B42: MISC – Insurance – Auto & General | C42: 27893.84 | D42: 21277.79 | E42: 28267.87 | F42: 35279.79 | G42: 19676.95 | H42: 27185.97 | I42: 15009.76 | J42: 1033.11 | K42: 175625.08
A43: 4700 | B43: MISC – Office Supplies & Expense | C43: 16282.01 | D43: 28111.91 | E43: 1529.86 | F43: 232.36 | G43: 9976.1 | H43: 36105.57 | I43: 6661.84 | J43: 13954.44 | K43: 112854.09
A44: 4800 | B44: MISC – Postage | C44: 6902.88 | D44: 36695.07 | E44: 32875.02 | F44: 29071.16 | G44: 15178.78 | H44: 33624.65 | I44: 30362.86 | J44: 23073.53 | K44: 207783.95
A45: 4900 | B45: MISC – Misc. Taxes & Licenses | C45: 25356.45 | D45: 27128.7 | E45: 14440.28 | F45: 10962.42 | G45: 35802.19 | H45: 20594.7 | I45: 33248.68 | J45: 16905.12 | K45: 184438.54
A47: 5000 | B47: OUTSIDE SERVICES
A48: 5100 | B48: O / S – Advertising Expense | C48: 31843.07 | D48: 20107.81 | E48: 32688.84 | F48: 8520.39 | G48: 9706.39 | H48: 18652.66 | I48: 34946.34 | J48: 27166.46 | K48: =SUM(C48:J48) -> 183631.96
A49: 5200 | B49: O / S – Legal Fees | C49: 13283.67 | D49: 29353.07 | E49: 29136.27 | F49: 1475.46 | G49: 1187.32 | H49: 23832.87 | I49: 17092.91 | J49: 36548.5 | K49: 151910.07
A50: 5300 | B50: O / S – Accounting | C50: 12381.2 | D50: 13917.38 | E50: 26344.91 | F50: 9068.07 | G50: 27214.13 | H50: 9898.59 | I50: 12565.91 | J50: 12223.65 | K50: 123613.84
A51: 5400 | B51: O / S – Consultant Fees | C51: 35841.88 | D51: 27318.94 | E51: 33100.05 | F51: 14452.9 | G51: 3136.57 | H51: 16976.61 | I51: 2780.72 | J51: 26201.5 | K51: 159809.17
A52: 5500 | B52: O / S – Promotional Expense | C52: 28166.85 | D52: 16376.59 | E52: 471.46 | F52: 12984.52 | G52: 23543.37 | H52: 926.32 | I52: 13295.14 | J52: 36516.63 | K52: 132280.88
A53: 5600 | B53: O / S – Recruiting Fees | C53: 23972.88 | D53: 4154.42 | E53: 19268.03 | F53: 13242.48 | G53: 10069.98 | H53: 175.95 | I53: 26547.52 | J53: 25739.01 | K53: 123170.27
A54: 5700 | B54: O / S – Contract Labor | C54: 11457.88 | D54: 22630.02 | E54: 27930.12 | F54: 19577.58 | G54: 23080.63 | H54: 14963.98 | I54: 24978.85 | J54: 8658.28 | K54: 153277.34
A55: 5800 | B55: O / S – Janitorial Service | C55: 37916.11 | D55: 5626.46 | E55: 36567.6 | F55: 29574.14 | G55: 34838.28 | H55: 30832.26 | I55: 8267.73 | J55: 19487.31 | K55: 203109.89
A56: 5900 | B56: O / S – Security | C56: 22888.16 | D56: 29041.24 | E56: 27238.53 | F56: 11698.07 | G56: 37860.56 | H56: 32763.76 | I56: 24506.02 | J56: 25084.12 | K56: 211080.46
A58: 6000 | B58: RENTALS & LEASES
A59: 6100 | B59: RENTALS Office Rent | C59: 22386.52 | D59: 34924.8 | E59: 28175.88 | F59: 22556.44 | G59: 9197.18 | H59: 17127.11 | I59: 27827.5 | J59: 24908.69 | K59: 187104.12
A60: 6200 | B60: RENTALS Equipment Rental | C60: 16792.22 | D60: 23877.54 | E60: 13393.53 | F60: 20218.46 | G60: 24092.07 | H60: 36903.68 | I60: 23438.94 | J60: 13688.37 | K60: 172404.81
A61: 6300 | B61: RENTALS Office Equipment | C61: 22925.38 | D61: 24451.76 | E61: 11284.72 | F61: 24490.22 | G61: 17081.98 | H61: 7365.5 | I61: 8645.92 | J61: 21712.17 | K61: 137957.65
A62: 6400 | B62: RENTALS Vehicle Leases | C62: 6212.37 | D62: 15570.33 | E62: 16274.99 | F62: 20675.77 | G62: 33315.68 | H62: 12830.5 | I62: 36877.18 | J62: 27012.61 | K62: 168769.43
A64: 7000 | B64: FACILITIES
A65: 7100 | B65: FAC – Telephone & Fax | C65: 16551 | D65: 36295.55 | E65: 9107.85 | F65: 25243.85 | G65: 20808.97 | H65: 29619.26 | I65: 29705.02 | J65: 32341.93 | K65: 199673.43
A66: 7200 | B66: FAC – Utilities | C66: 13318.13 | D66: 29940.92 | E66: 4942.71 | F66: 29777.92 | G66: 34608.24 | H66: 29053.35 | I66: 22478.86 | J66: 21831.93 | K66: 185952.06
A67: 7300 | B67: FAC – Electricity | C67: 8845.75 | D67: 21007.57 | E67: 4601.98 | F67: 6877.61 | G67: 3885.28 | H67: 19736.88 | I67: 19341.09 | J67: 732.95 | K67: 85029.11
A68: 7400 | B68: FAC – Water | C68: 18853.83 | D68: 25384.46 | E68: 30840.99 | F68: 23806.2 | G68: 34835.15 | H68: 33340.92 | I68: 15654.91 | J68: 6662.94 | K68: 189379.4
A69: 7500 | B69: FAC – Repairs – Building | C69: 11697.92 | D69: 31610.93 | E69: 12915.26 | F69: 15807.47 | G69: 15502.05 | H69: 1774.06 | I69: 30836.6 | J69: 17348.43 | K69: 137492.72
A70: 7600 | B70: FAC – Repairs – Office Equipment | C70: 34317.27 | D70: 22678.73 | E70: 28754.53 | F70: 3780.86 | G70: 8108.83 | H70: 5429.3 | I70: 12976.72 | J70: 13881.41 | K70: =SUM(C70:J70) -> 129927.65
A71: 7700 | B71: FAC – Real Estate Taxes | C71: 36449.68 | D71: 31555.3 | E71: 34842.35 | F71: 6546.43 | G71: 5705.12 | H71: 33334.23 | I71: 33130.51 | J71: 33192.43 | K71: 214756.05
C73: =SUM(C6:C71) -> 962482.6 | D73: =SUM(D6:D71) -> 1080022.65 | E73: 1036899.66 | F73: 822489.36 | G73: 1129632.35 | H73: 1055948.03 | I73: 1010884.95 | J73: 1022975.44 | K73: 8121335.04

Sheet April Data
A1: Jackson Entertainment
A2: April Data
C4: DEPT 1 | D4: DEPT 2 | E4: DEPT 3 | F4: DEPT 4 | G4: DEPT 5 | H4: DEPT 6 | I4: DEPT 7 | J4: DEPT 8 | K4: TOTAL
A5: 1000 | B5: SALARIES & WAGES
A6: 1100 | B6: S & W – Exempt | C6: 9098.01 | D6: 21821.77 | E6: 8758.97 | F6: 3359.07 | G6: 33884.34 | H6: 29129.13 | I6: 11774.78 | J6: 3083.42 | K6: =SUM(C6:J6) -> 120909.49
A7: 1200 | B7: S & W – Non-Exempt | C7: 30414.04 | D7: 11205.27 | E7: 11047.31 | F7: 6544.15 | G7: 35152 | H7: 12263.82 | I7: 15821.35 | J7: 17764.67 | K7: 140212.61
A8: 1300 | B8: S & W – Officers | C8: 5698.72 | D8: 6903.43 | E8: 6446.73 | F8: 5480.94 | G8: 22029.22 | H8: 26523.95 | I8: =RANDBETWEEN(12,12000)/100 -> 36.5 | J8: 37471.95 | K8: 110591.44
A9: 1400 | B9: S & W – Incentives | C9: 18859.05 | D9: =RANDBETWEEN(12,12000)/100 -> 58.71 | E9: 5092.74 | F9: 21673.98 | G9: 12408.01 | H9: 25539.28 | I9: 19271.67 | J9: 33582.82 | K9: 136486.26
A10: 1500 | B10: S & W – Commissions | C10: 17198.16 | D10: 21273.21 | E10: 5551.14 | F10: 5621.21 | G10: =RANDBETWEEN(12,12000)/100 -> 92.43 | H10: 31326.56 | I10: 19138.54 | J10: =RANDBETWEEN(12,12000)/100 -> 24.24 | K10: 100225.49
A11: 1600 | B11: S & W – Overtime | C11: 27179.25 | D11: 15952.26 | E11: 35049.15 | F11: 6344.27 | G11: 25381.62 | H11: 4016.39 | I11: 31709.01 | J11: 27997.1 | K11: 173629.05
A12: 1700 | B12: S & W – Severence | C12: 19803.59 | D12: 34495.67 | E12: 2534.75 | F12: 18257.62 | G12: 35107.78 | H12: 2756.4 | I12: 12365.39 | J12: 32904.35 | K12: 158225.55
A14: 2000 | B14: FRINGE BENEFITS
A15: 2100 | B15: 401K Match | C15: 27352.84 | D15: 10439.55 | E15: 22575.83 | F15: 17230.83 | G15: 35782.1 | H15: 27441.6 | I15: 22378.18 | J15: 25848.74 | K15: 189049.67
A16: 2200 | B16: Allocations to Other Departments | C16: 9698.29 | D16: 5577.59 | E16: 36011.97 | F16: 32600.5 | G16: =RANDBETWEEN(12,12000)/100 -> 16.73 | H16: 11797.76 | I16: 34734.25 | J16: 19896.4 | K16: 150333.49
A17: 2300 | B17: Education Assistance / Training & Education | C17: 130.66 | D17: 5286.62 | E17: 26142.31 | F17: 36329.95 | G17: 1084.43 | H17: 28466.56 | I17: 7081.87 | J17: =RANDBETWEEN(12,12000)/100 -> 47.63 | K17: 104570.03
A18: 2400 | B18: Insurance – Workers Comp | C18: 5262.6 | D18: 26583.9 | E18: 3141.94 | F18: =RANDBETWEEN(12,12000)/100 -> 8.14 | G18: 5461.45 | H18: =RANDBETWEEN(12,12000)/100 -> 114.98 | I18: 8915.35 | J18: 30401.63 | K18: 79889.99
A19: 2500 | B19: Insurance – Medical & Dental | C19: =RANDBETWEEN(12,12000)/100 -> 31.51 | D19: 20379.11 | E19: 8648.87 | F19: 18972.33 | G19: 22975.42 | H19: 23339.78 | I19: 154.53 | J19: 15421.94 | K19: 109923.49
A20: 2600 | B20: Insurance – Group Life | C20: 5725.39 | D20: 21757.91 | E20: 2829.65 | F20: 996.62 | G20: 9644.55 | H20: 17102.83 | I20: =RANDBETWEEN(12,12000)/100 -> 107.88 | J20: 11055.53 | K20: 69220.36
A21: 2700 | B21: Other Miscellaneous Employee Benefits | C21: 7678.85 | D21: 3708.72 | E21: =RANDBETWEEN(12,12000)/100 -> 13.6 | F21: 36845.34 | G21: 20697.02 | H21: 24627.1 | I21: 31860 | J21: 15910.39 | K21: 141341.02
A22: 2800 | B22: PR Tax – FICA | C22: 23352.77 | D22: =RANDBETWEEN(12,12000)/100 -> 64.81 | E22: 3.51 | F22: 28408.81 | G22: 37876.69 | H22: 24304.09 | I22: 16245.72 | J22: 16598.69 | K22: 146855.09
A23: 2900 | B23: PR Tax – Unemployment | C23: 12805.5 | D23: 11426.7 | E23: 15805.09 | F23: 10232.31 | G23: 36604.14 | H23: 9551.99 | I23: 24150.32 | J23: 36388.67 | K23: 156964.72
A25: 3000 | B25: TRAVEL, LIVING & ENTERTAINMENT
A26: 3100 | B26: TLE – Airfares | C26: 8386.79 | D26: 36389.69 | E26: 34288.24 | F26: 8404.01 | G26: 37508.35 | H26: 16889.55 | I26: 16389.56 | J26: 28560.21 | K26: 186816.4
A27: 3200 | B27: TLE – Lodging | C27: 14047.57 | D27: 32073.41 | E27: 36191.16 | F27: 332.07 | G27: 27459.55 | H27: 3491.38 | I27: 23948.29 | J27: =RANDBETWEEN(12,12000)/100 -> 111.42 | K27: 137654.85
A28: 3300 | B28: TLE – Meals | C28: =RANDBETWEEN(12,12000)/100 -> 51.97 | D28: 20402.1 | E28: 12342.83 | F28: 21866.73 | G28: 29230.46 | H28: 24632.31 | I28: =RANDBETWEEN(12,12000)/100 -> 72.27 | J28: 15244.63 | K28: 123843.3
A29: 3400 | B29: TLE – Entertainment | C29: 31333.46 | D29: 4243.27 | E29: 28276.67 | F29: 26277.57 | G29: 15363.38 | H29: 29261.88 | I29: 25224.27 | J29: 3127.78 | K29: 163108.28
A30: 3500 | B30: TLE – Auto Leasing | C30: 33275.42 | D30: 31686.77 | E30: =RANDBETWEEN(12,12000)/100 -> 69.26 | F30: =RANDBETWEEN(12,12000)/100 -> 94.44 | G30: =RANDBETWEEN(12,12000)/100 -> 12.99 | H30: 20425.07 | I30: 32413 | J30: 18872.96 | K30: 136849.91
A31: 3600 | B31: TLE – Auto Expense | C31: 7005.62 | D31: 29174.02 | E31: 20248.59 | F31: 11917.81 | G31: 12590.3 | H31: 35752.08 | I31: =RANDBETWEEN(12,12000)/100 -> 50.81 | J31: =RANDBETWEEN(12,12000)/100 -> 56.28 | K31: 116795.51
A32: 3700 | B32: TLE – Conventions & /Seminars | C32: 30051.66 | D32: =RANDBETWEEN(12,12000)/100 -> 21.06 | E32: 35189.22 | F32: 270.08 | G32: 35404.62 | H32: 33112.98 | I32: 11358.06 | J32: 31954.76 | K32: 177362.44
A33: 3800 | B33: TLE – Miscellaneous | C33: 32958.88 | D33: 6487.75 | E33: 29564.76 | F33: =RANDBETWEEN(12,12000)/100 -> 43.92 | G33: 26200.24 | H33: 25735.04 | I33: 35761.83 | J33: 14116.99 | K33: 170869.41
A34: 3900 | B34: TLE – Cellphones & Pagers | C34: 6600.66 | D34: 21941.65 | E34: 35550.77 | F34: 13525.38 | G34: 35389.19 | H34: 31633.41 | I34: 32602.35 | J34: 21877.74 | K34: 199121.15
A36: 4000 | B36: OTHER MISCELLANEOUS EXPENSES
A37: 4100 | B37: MISC – Bad Debts | C37: 9804.63 | D37: 1932.96 | E37: 37509.19 | F37: 6603.45 | G37: 22306.11 | H37: 15977.81 | I37: 21580.8 | J37: 3081.09 | K37: 118796.04
A38: 4200 | B38: MISC – Bank Charges | C38: 21014.82 | D38: 14872.21 | E38: 11172.66 | F38: 17195.7 | G38: 19514.71 | H38: 11750.01 | I38: 25569.99 | J38: 10958.42 | K38: 132048.52
A39: 4300 | B39: MISC – Computer & Software Related | C39: 11115.29 | D39: 33460.02 | E39: 21457.06 | F39: 26967.83 | G39: 11605.15 | H39: 3448.53 | I39: 776.87 | J39: 3786.75 | K39: 112617.5
A40: 4400 | B40: MISC – Contributions / Donations | C40: 14598.91 | D40: 31713.12 | E40: 15789.22 | F40: 28305.47 | G40: 35553.51 | H40: 6794.74 | I40: 6542.56 | J40: 31086.75 | K40: 170384.28
A41: 4500 | B41: MISC – Dues & Subscriptions | C41: 19322.17 | D41: 19697.18 | E41: 24485.41 | F41: 15785.32 | G41: 28765.47 | H41: 5697.68 | I41: 11709.75 | J41: 29736.01 | K41: 155198.99
A42: 4600 | B42: MISC – Insurance – Auto & General | C42: 27893.84 | D42: 21277.79 | E42: 28267.87 | F42: 35279.79 | G42: 19676.95 | H42: 27185.97 | I42: 15009.76 | J42: 1033.11 | K42: 175625.08
A43: 4700 | B43: MISC – Office Supplies & Expense | C43: 16282.01 | D43: 28111.91 | E43: 1529.86 | F43: 232.36 | G43: 9976.1 | H43: 36105.57 | I43: 6661.84 | J43: 13954.44 | K43: 112854.09
A44: 4800 | B44: MISC – Postage | C44: 6902.88 | D44: 36695.07 | E44: 32875.02 | F44: 29071.16 | G44: 15178.78 | H44: 33624.65 | I44: 30362.86 | J44: 23073.53 | K44: 207783.95
A45: 4900 | B45: MISC – Misc. Taxes & Licenses | C45: 25356.45 | D45: 27128.7 | E45: 14440.28 | F45: 10962.42 | G45: 35802.19 | H45: 20594.7 | I45: 33248.68 | J45: 16905.12 | K45: 184438.54
A47: 5000 | B47: OUTSIDE SERVICES
A48: 5100 | B48: O / S – Advertising Expense | C48: 31843.07 | D48: 20107.81 | E48: 32688.84 | F48: 8520.39 | G48: 9706.39 | H48: 18652.66 | I48: 34946.34 | J48: 27166.46 | K48: =SUM(C48:J48) -> 183631.96
A49: 5200 | B49: O / S – Legal Fees | C49: 13283.67 | D49: 29353.07 | E49: 29136.27 | F49: 1475.46 | G49: 1187.32 | H49: 23832.87 | I49: 17092.91 | J49: 36548.5 | K49: 151910.07
A50: 5300 | B50: O / S – Accounting | C50: 12381.2 | D50: 13917.38 | E50: 26344.91 | F50: 9068.07 | G50: 27214.13 | H50: 9898.59 | I50: 12565.91 | J50: 12223.65 | K50: 123613.84
A51: 5400 | B51: O / S – Consultant Fees | C51: 35841.88 | D51: 27318.94 | E51: 33100.05 | F51: 14452.9 | G51: 3136.57 | H51: 16976.61 | I51: 2780.72 | J51: 26201.5 | K51: 159809.17
A52: 5500 | B52: O / S – Promotional Expense | C52: 28166.85 | D52: 16376.59 | E52: 471.46 | F52: 12984.52 | G52: 23543.37 | H52: 926.32 | I52: 13295.14 | J52: 36516.63 | K52: 132280.88
A53: 5600 | B53: O / S – Recruiting Fees | C53: 23972.88 | D53: 4154.42 | E53: 19268.03 | F53: 13242.48 | G53: 10069.98 | H53: 175.95 | I53: 26547.52 | J53: 25739.01 | K53: 123170.27
A54: 5700 | B54: O / S – Contract Labor | C54: 11457.88 | D54: 22630.02 | E54: 27930.12 | F54: 19577.58 | G54: 23080.63 | H54: 14963.98 | I54: 24978.85 | J54: 8658.28 | K54: 153277.34
A55: 5800 | B55: O / S – Janitorial Service | C55: 37916.11 | D55: 5626.46 | E55: 36567.6 | F55: 29574.14 | G55: 34838.28 | H55: 30832.26 | I55: 8267.73 | J55: 19487.31 | K55: 203109.89
A56: 5900 | B56: O / S – Security | C56: 22888.16 | D56: 29041.24 | E56: 27238.53 | F56: 11698.07 | G56: 37860.56 | H56: 32763.76 | I56: 24506.02 | J56: 25084.12 | K56: 211080.46
A58: 6000 | B58: RENTALS & LEASES
A59: 6100 | B59: RENTALS Office Rent | C59: 22386.52 | D59: 34924.8 | E59: 28175.88 | F59: 22556.44 | G59: 9197.18 | H59: 17127.11 | I59: 27827.5 | J59: 24908.69 | K59: 187104.12
A60: 6200 | B60: RENTALS Equipment Rental | C60: 16792.22 | D60: 23877.54 | E60: 13393.53 | F60: 20218.46 | G60: 24092.07 | H60: 36903.68 | I60: 23438.94 | J60: 13688.37 | K60: 172404.81
A61: 6300 | B61: RENTALS Office Equipment | C61: 22925.38 | D61: 24451.76 | E61: 11284.72 | F61: 24490.22 | G61: 17081.98 | H61: 7365.5 | I61: 8645.92 | J61: 21712.17 | K61: 137957.65
A62: 6400 | B62: RENTALS Vehicle Leases | C62: 6212.37 | D62: 15570.33 | E62: 16274.99 | F62: 20675.77 | G62: 33315.68 | H62: 12830.5 | I62: 36877.18 | J62: 27012.61 | K62: 168769.43
A64: 7000 | B64: FACILITIES
A65: 7100 | B65: FAC – Telephone & Fax | C65: 16551 | D65: 36295.55 | E65: 9107.85 | F65: 25243.85 | G65: 20808.97 | H65: 29619.26 | I65: 29705.02 | J65: 32341.93 | K65: 199673.43
A66: 7200 | B66: FAC – Utilities | C66: 13318.13 | D66: 29940.92 | E66: 4942.71 | F66: 29777.92 | G66: 34608.24 | H66: 29053.35 | I66: 22478.86 | J66: 21831.93 | K66: 185952.06
A67: 7300 | B67: FAC – Electricity | C67: 8845.75 | D67: 21007.57 | E67: 4601.98 | F67: 6877.61 | G67: 3885.28 | H67: 19736.88 | I67: 19341.09 | J67: 732.95 | K67: 85029.11
A68: 7400 | B68: FAC – Water | C68: 18853.83 | D68: 25384.46 | E68: 30840.99 | F68: 23806.2 | G68: 34835.15 | H68: 33340.92 | I68: 15654.91 | J68: 6662.94 | K68: 189379.4
A69: 7500 | B69: FAC – Repairs – Building | C69: 11697.92 | D69: 31610.93 | E69: 12915.26 | F69: 15807.47 | G69: 15502.05 | H69: 1774.06 | I69: 30836.6 | J69: 17348.43 | K69: 137492.72
A70: 7600 | B70: FAC – Repairs – Office Equipment | C70: 34317.27 | D70: 22678.73 | E70: 28754.53 | F70: 3780.86 | G70: 8108.83 | H70: 5429.3 | I70: 12976.72 | J70: 13881.41 | K70: =SUM(C70:J70) -> 129927.65
A71: 7700 | B71: FAC – Real Estate Taxes | C71: 36449.68 | D71: 31555.3 | E71: 34842.35 | F71: 6546.43 | G71: 5705.12 | H71: 33334.23 | I71: 33130.51 | J71: 33192.43 | K71: 214756.05
C73: =SUM(C6:C71) -> 962394.03 | D73: =SUM(D6:D71) -> 1080067.73 | E73: 1036782.23 | F73: 822416.42 | G73: 1129513.76 | H73: 1055953.37 | I73: 1010923.28 | J73: 1022875.48 | K73: 8120926.3

Sheet May Data
A1: Jackson Entertainment
A2: May Data
C4: DEPT 1 | D4: DEPT 2 | E4: DEPT 3 | F4: DEPT 4 | G4: DEPT 5 | H4: DEPT 6 | I4: DEPT 7 | J4: DEPT 8 | K4: TOTAL
A5: 1000 | B5: SALARIES & WAGES
A6: 1100 | B6: S & W – Exempt | C6: 9098.01 | D6: 21821.77 | E6: 8758.97 | F6: 3359.07 | G6: 33884.34 | H6: 29129.13 | I6: 11774.78 | J6: 3083.42 | K6: =SUM(C6:J6) -> 120909.49
A7: 1200 | B7: S & W – Non-Exempt | C7: 30414.04 | D7: 11205.27 | E7: 11047.31 | F7: 6544.15 | G7: 35152 | H7: 12263.82 | I7: 15821.35 | J7: 17764.67 | K7: 140212.61
A8: 1300 | B8: S & W – Officers | C8: 5698.72 | D8: 6903.43 | E8: 6446.73 | F8: 5480.94 | G8: 22029.22 | H8: 26523.95 | I8: =RANDBETWEEN(12,12000)/100 -> 21.96 | J8: 37471.95 | K8: 110576.9
A9: 1400 | B9: S & W – Incentives | C9: 18859.05 | D9: =RANDBETWEEN(12,12000)/100 -> 75.23 | E9: 5092.74 | F9: 21673.98 | G9: 12408.01 | H9: 25539.28 | I9: 19271.67 | J9: 33582.82 | K9: 136502.78
A10: 1500 | B10: S & W – Commissions | C10: 17198.16 | D10: 21273.21 | E10: 5551.14 | F10: 5621.21 | G10: =RANDBETWEEN(12,12000)/100 -> 8.32 | H10: 31326.56 | I10: 19138.54 | J10: =RANDBETWEEN(12,12000)/100 -> 11.37 | K10: 100128.51
A11: 1600 | B11: S & W – Overtime | C11: 27179.25 | D11: 15952.26 | E11: 35049.15 | F11: 6344.27 | G11: 25381.62 | H11: 4016.39 | I11: 31709.01 | J11: 27997.1 | K11: 173629.05
A12: 1700 | B12: S & W – Severence | C12: 19803.59 | D12: 34495.67 | E12: 2534.75 | F12: 18257.62 | G12: 35107.78 | H12: 2756.4 | I12: 12365.39 | J12: 32904.35 | K12: 158225.55
A14: 2000 | B14: FRINGE BENEFITS
A15: 2100 | B15: 401K Match | C15: 27352.84 | D15: 10439.55 | E15: 22575.83 | F15: 17230.83 | G15: 35782.1 | H15: 27441.6 | I15: 22378.18 | J15: 25848.74 | K15: 189049.67
A16: 2200 | B16: Allocations to Other Departments | C16: 9698.29 | D16: 5577.59 | E16: 36011.97 | F16: 32600.5 | G16: =RANDBETWEEN(12,12000)/100 -> 40.52 | H16: 11797.76 | I16: 34734.25 | J16: 19896.4 | K16: 150357.28
A17: 2300 | B17: Education Assistance / Training & Education | C17: 130.66 | D17: 5286.62 | E17: 26142.31 | F17: 36329.95 | G17: 1084.43 | H17: 28466.56 | I17: 7081.87 | J17: =RANDBETWEEN(12,12000)/100 -> 85.08 | K17: 104607.48
A18: 2400 | B18: Insurance – Workers Comp | C18: 5262.6 | D18: 26583.9 | E18: 3141.94 | F18: =RANDBETWEEN(12,12000)/100 -> 10.02 | G18: 5461.45 | H18: =RANDBETWEEN(12,12000)/100 -> 18.67 | I18: 8915.35 | J18: 30401.63 | K18: 79795.56
A19: 2500 | B19: Insurance – Medical & Dental | C19: =RANDBETWEEN(12,12000)/100 -> 30.12 | D19: 20379.11 | E19: 8648.87 | F19: 18972.33 | G19: 22975.42 | H19: 23339.78 | I19: 154.53 | J19: 15421.94 | K19: 109922.1
A20: 2600 | B20: Insurance – Group Life | C20: 5725.39 | D20: 21757.91 | E20: 2829.65 | F20: 996.62 | G20: 9644.55 | H20: 17102.83 | I20: =RANDBETWEEN(12,12000)/100 -> 41.55 | J20: 11055.53 | K20: 69154.03
A21: 2700 | B21: Other Miscellaneous Employee Benefits | C21: 7678.85 | D21: 3708.72 | E21: =RANDBETWEEN(12,12000)/100 -> 84.92 | F21: 36845.34 | G21: 20697.02 | H21: 24627.1 | I21: 31860 | J21: 15910.39 | K21: 141412.34
A22: 2800 | B22: PR Tax – FICA | C22: 23352.77 | D22: =RANDBETWEEN(12,12000)/100 -> 62.41 | E22: 100.05 | F22: 28408.81 | G22: 37876.69 | H22: 24304.09 | I22: 16245.72 | J22: 16598.69 | K22: 146949.23
A23: 2900 | B23: PR Tax – Unemployment | C23: 12805.5 | D23: 11426.7 | E23: 15805.09 | F23: 10232.31 | G23: 36604.14 | H23: 9551.99 | I23: 24150.32 | J23: 36388.67 | K23: 156964.72
A25: 3000 | B25: TRAVEL, LIVING & ENTERTAINMENT
A26: 3100 | B26: TLE – Airfares | C26: 8386.79 | D26: 36389.69 | E26: 34288.24 | F26: 8404.01 | G26: 37508.35 | H26: 16889.55 | I26: 16389.56 | J26: 28560.21 | K26: 186816.4
A27: 3200 | B27: TLE – Lodging | C27: 14047.57 | D27: 32073.41 | E27: 36191.16 | F27: 332.07 | G27: 27459.55 | H27: 3491.38 | I27: 23948.29 | J27: =RANDBETWEEN(12,12000)/100 -> 96.86 | K27: 137640.29
A28: 3300 | B28: TLE – Meals | C28: =RANDBETWEEN(12,12000)/100 -> 86.79 | D28: 20402.1 | E28: 12342.83 | F28: 21866.73 | G28: 29230.46 | H28: 24632.31 | I28: =RANDBETWEEN(12,12000)/100 -> 3.71 | J28: 15244.63 | K28: 123809.56
A29: 3400 | B29: TLE – Entertainment | C29: 31333.46 | D29: 4243.27 | E29: 28276.67 | F29: 26277.57 | G29: 15363.38 | H29: 29261.88 | I29: 25224.27 | J29: 3127.78 | K29: 163108.28
A30: 3500 | B30: TLE – Auto Leasing | C30: 33275.42 | D30: 31686.77 | E30: =RANDBETWEEN(12,12000)/100 -> 108.67 | F30: =RANDBETWEEN(12,12000)/100 -> 77.44 | G30: =RANDBETWEEN(12,12000)/100 -> 65.81 | H30: 20425.07 | I30: 32413 | J30: 18872.96 | K30: 136925.14
A31: 3600 | B31: TLE – Auto Expense | C31: 7005.62 | D31: 29174.02 | E31: 20248.59 | F31: 11917.81 | G31: 12590.3 | H31: 35752.08 | I31: =RANDBETWEEN(12,12000)/100 -> 87.84 | J31: =RANDBETWEEN(12,12000)/100 -> 106.09 | K31: 116882.35
A32: 3700 | B32: TLE – Conventions & /Seminars | C32: 30051.66 | D32: =RANDBETWEEN(12,12000)/100 -> 46.75 | E32: 35189.22 | F32: 270.08 | G32: 35404.62 | H32: 33112.98 | I32: 11358.06 | J32: 31954.76 | K32: 177388.13
A33: 3800 | B33: TLE – Miscellaneous | C33: 32958.88 | D33: 6487.75 | E33: 29564.76 | F33: =RANDBETWEEN(12,12000)/100 -> 53.44 | G33: 26200.24 | H33: 25735.04 | I33: 35761.83 | J33: 14116.99 | K33: 170878.93
A34: 3900 | B34: TLE – Cellphones & Pagers | C34: 6600.66 | D34: 21941.65 | E34: 35550.77 | F34: 13525.38 | G34: 35389.19 | H34: 31633.41 | I34: 32602.35 | J34: 21877.74 | K34: 199121.15
A36: 4000 | B36: OTHER MISCELLANEOUS EXPENSES
A37: 4100 | B37: MISC – Bad Debts | C37: 9804.63 | D37: 1932.96 | E37: 37509.19 | F37: 6603.45 | G37: 22306.11 | H37: 15977.81 | I37: 21580.8 | J37: 3081.09 | K37: 118796.04
A38: 4200 | B38: MISC – Bank Charges | C38: 21014.82 | D38: 14872.21 | E38: 11172.66 | F38: 17195.7 | G38: 19514.71 | H38: 11750.01 | I38: 25569.99 | J38: 10958.42 | K38: 132048.52
A39: 4300 | B39: MISC – Computer & Software Related | C39: 11115.29 | D39: 33460.02 | E39: 21457.06 | F39: 26967.83 | G39: 11605.15 | H39: 3448.53 | I39: 776.87 | J39: 3786.75 | K39: 112617.5
A40: 4400 | B40: MISC – Contributions / Donations | C40: 14598.91 | D40: 31713.12 | E40: 15789.22 | F40: 28305.47 | G40: 35553.51 | H40: 6794.74 | I40: 6542.56 | J40: 31086.75 | K40: 170384.28
A41: 4500 | B41: MISC – Dues & Subscriptions | C41: 19322.17 | D41: 19697.18 | E41: 24485.41 | F41: 15785.32 | G41: 28765.47 | H41: 5697.68 | I41: 11709.75 | J41: 29736.01 | K41: 155198.99
A42: 4600 | B42: MISC – Insurance – Auto & General | C42: 27893.84 | D42: 21277.79 | E42: 28267.87 | F42: 35279.79 | G42: 19676.95 | H42: 27185.97 | I42: 15009.76 | J42: 1033.11 | K42: 175625.08
A43: 4700 | B43: MISC – Office Supplies & Expense | C43: 16282.01 | D43: 28111.91 | E43: 1529.86 | F43: 232.36 | G43: 9976.1 | H43: 36105.57 | I43: 6661.84 | J43: 13954.44 | K43: 112854.09
A44: 4800 | B44: MISC – Postage | C44: 6902.88 | D44: 36695.07 | E44: 32875.02 | F44: 29071.16 | G44: 15178.78 | H44: 33624.65 | I44: 30362.86 | J44: 23073.53 | K44: 207783.95
A45: 4900 | B45: MISC – Misc. Taxes & Licenses | C45: 25356.45 | D45: 27128.7 | E45: 14440.28 | F45: 10962.42 | G45: 35802.19 | H45: 20594.7 | I45: 33248.68 | J45: 16905.12 | K45: 184438.54
A47: 5000 | B47: OUTSIDE SERVICES
A48: 5100 | B48: O / S – Advertising Expense | C48: 31843.07 | D48: 20107.81 | E48: 32688.84 | F48: 8520.39 | G48: 9706.39 | H48: 18652.66 | I48: 34946.34 | J48: 27166.46 | K48: =SUM(C48:J48) -> 183631.96
A49: 5200 | B49: O / S – Legal Fees | C49: 13283.67 | D49: 29353.07 | E49: 29136.27 | F49: 1475.46 | G49: 1187.32 | H49: 23832.87 | I49: 17092.91 | J49: 36548.5 | K49: 151910.07
A50: 5300 | B50: O / S – Accounting | C50: 12381.2 | D50: 13917.38 | E50: 26344.91 | F50: 9068.07 | G50: 27214.13 | H50: 9898.59 | I50: 12565.91 | J50: 12223.65 | K50: 123613.84
A51: 5400 | B51: O / S – Consultant Fees | C51: 35841.88 | D51: 27318.94 | E51: 33100.05 | F51: 14452.9 | G51: 3136.57 | H51: 16976.61 | I51: 2780.72 | J51: 26201.5 | K51: 159809.17
A52: 5500 | B52: O / S – Promotional Expense | C52: 28166.85 | D52: 16376.59 | E52: 471.46 | F52: 12984.52 | G52: 23543.37 | H52: 926.32 | I52: 13295.14 | J52: 36516.63 | K52: 132280.88
A53: 5600 | B53: O / S – Recruiting Fees | C53: 23972.88 | D53: 4154.42 | E53: 19268.03 | F53: 13242.48 | G53: 10069.98 | H53: 175.95 | I53: 26547.52 | J53: 25739.01 | K53: 123170.27
A54: 5700 | B54: O / S – Contract Labor | C54: 11457.88 | D54: 22630.02 | E54: 27930.12 | F54: 19577.58 | G54: 23080.63 | H54: 14963.98 | I54: 24978.85 | J54: 8658.28 | K54: 153277.34
A55: 5800 | B55: O / S – Janitorial Service | C55: 37916.11 | D55: 5626.46 | E55: 36567.6 | F55: 29574.14 | G55: 34838.28 | H55: 30832.26 | I55: 8267.73 | J55: 19487.31 | K55: 203109.89
A56: 5900 | B56: O / S – Security | C56: 22888.16 | D56: 29041.24 | E56: 27238.53 | F56: 11698.07 | G56: 37860.56 | H56: 32763.76 | I56: 24506.02 | J56: 25084.12 | K56: 211080.46
A58: 6000 | B58: RENTALS & LEASES
A59: 6100 | B59: RENTALS Office Rent | C59: 22386.52 | D59: 34924.8 | E59: 28175.88 | F59: 22556.44 | G59: 9197.18 | H59: 17127.11 | I59: 27827.5 | J59: 24908.69 | K59: 187104.12
A60: 6200 | B60: RENTALS Equipment Rental | C60: 16792.22 | D60: 23877.54 | E60: 13393.53 | F60: 20218.46 | G60: 24092.07 | H60: 36903.68 | I60: 23438.94 | J60: 13688.37 | K60: 172404.81
A61: 6300 | B61: RENTALS Office Equipment | C61: 22925.38 | D61: 24451.76 | E61: 11284.72 | F61: 24490.22 | G61: 17081.98 | H61: 7365.5 | I61: 8645.92 | J61: 21712.17 | K61: 137957.65
A62: 6400 | B62: RENTALS Vehicle Leases | C62: 6212.37 | D62: 15570.33 | E62: 16274.99 | F62: 20675.77 | G62: 33315.68 | H62: 12830.5 | I62: 36877.18 | J62: 27012.61 | K62: 168769.43
A64: 7000 | B64: FACILITIES
A65: 7100 | B65: FAC – Telephone & Fax | C65: 16551 | D65: 36295.55 | E65: 9107.85 | F65: 25243.85 | G65: 20808.97 | H65: 29619.26 | I65: 29705.02 | J65: 32341.93 | K65: 199673.43
A66: 7200 | B66: FAC – Utilities | C66: 13318.13 | D66: 29940.92 | E66: 4942.71 | F66: 29777.92 | G66: 34608.24 | H66: 29053.35 | I66: 22478.86 | J66: 21831.93 | K66: 185952.06
A67: 7300 | B67: FAC – Electricity | C67: 8845.75 | D67: 21007.57 | E67: 4601.98 | F67: 6877.61 | G67: 3885.28 | H67: 19736.88 | I67: 19341.09 | J67: 732.95 | K67: 85029.11
A68: 7400 | B68: FAC – Water | C68: 18853.83 | D68: 25384.46 | E68: 30840.99 | F68: 23806.2 | G68: 34835.15 | H68: 33340.92 | I68: 15654.91 | J68: 6662.94 | K68: 189379.4
A69: 7500 | B69: FAC – Repairs – Building | C69: 11697.92 | D69: 31610.93 | E69: 12915.26 | F69: 15807.47 | G69: 15502.05 | H69: 1774.06 | I69: 30836.6 | J69: 17348.43 | K69: 137492.72
A70: 7600 | B70: FAC – Repairs – Office Equipment | C70: 34317.27 | D70: 22678.73 | E70: 28754.53 | F70: 3780.86 | G70: 8108.83 | H70: 5429.3 | I70: 12976.72 | J70: 13881.41 | K70: =SUM(C70:J70) -> 129927.65
A71: 7700 | B71: FAC – Real Estate Taxes | C71: 36449.68 | D71: 31555.3 | E71: 34842.35 | F71: 6546.43 | G71: 5705.12 | H71: 33334.23 | I71: 33130.51 | J71: 33192.43 | K71: 214756.05
C73: =SUM(C6:C71) -> 962427.46 | D73: =SUM(D6:D71) -> 1080107.54 | E73: 1036989.5 | F73: 822410.82 | G73: 1129506.26 | H73: 1055857.06 | I73: 1010810.88 | J73: 1022935.31 | K73: 8121044.83

Sheet June Data
A1: Jackson Entertainment
A2: June Data
C4: DEPT 1 | D4: DEPT 2 | E4: DEPT 3 | F4: DEPT 4 | G4: DEPT 5 | H4: DEPT 6 | I4: DEPT 7 | J4: DEPT 8 | K4: TOTAL
A5: 1000 | B5: SALARIES & WAGES
A6: 1100 | B6: S & W – Exempt | C6: 9098.01 | D6: 21821.77 | E6: 8758.97 | F6: 3359.07 | G6: 33884.34 | H6: 29129.13 | I6: 11774.78 | J6: 3083.42 | K6: =SUM(C6:J6) -> 120909.49
A7: 1200 | B7: S & W – Non-Exempt | C7: 30414.04 | D7: 11205.27 | E7: 11047.31 | F7: 6544.15 | G7: 35152 | H7: 12263.82 | I7: 15821.35 | J7: 17764.67 | K7: 140212.61
A8: 1300 | B8: S & W – Officers | C8: 5698.72 | D8: 6903.43 | E8: 6446.73 | F8: 5480.94 | G8: 22029.22 | H8: 26523.95 | I8: =RANDBETWEEN(12,12000)/100 -> 110.8 | J8: 37471.95 | K8: 110665.74
A9: 1400 | B9: S & W – Incentives | C9: 18859.05 | D9: =RANDBETWEEN(12,12000)/100 -> 55.62 | E9: 5092.74 | F9: 21673.98 | G9: 12408.01 | H9: 25539.28 | I9: 19271.67 | J9: 33582.82 | K9: 136483.17
A10: 1500 | B10: S & W – Commissions | C10: 17198.16 | D10: 21273.21 | E10: 5551.14 | F10: 5621.21 | G10: =RANDBETWEEN(12,12000)/100 -> 56.94 | H10: 31326.56 | I10: 19138.54 | J10: =RANDBETWEEN(12,12000)/100 -> 40.63 | K10: 100206.39
A11: 1600 | B11: S & W – Overtime | C11: 27179.25 | D11: 15952.26 | E11: 35049.15 | F11: 6344.27 | G11: 25381.62 | H11: 4016.39 | I11: 31709.01 | J11: 27997.1 | K11: 173629.05
A12: 1700 | B12: S & W – Severence | C12: 19803.59 | D12: 34495.67 | E12: 2534.75 | F12: 18257.62 | G12: 35107.78 | H12: 2756.4 | I12: 12365.39 | J12: 32904.35 | K12: 158225.55
A14: 2000 | B14: FRINGE BENEFITS
A15: 2100 | B15: 401K Match | C15: 27352.84 | D15: 10439.55 | E15: 22575.83 | F15: 17230.83 | G15: 35782.1 | H15: 27441.6 | I15: 22378.18 | J15: 25848.74 | K15: 189049.67
A16: 2200 | B16: Allocations to Other Departments | C16: 9698.29 | D16: 5577.59 | E16: 36011.97 | F16: 32600.5 | G16: =RANDBETWEEN(12,12000)/100 -> 75.63 | H16: 11797.76 | I16: 34734.25 | J16: 19896.4 | K16: 150392.39
A17: 2300 | B17: Education Assistance / Training & Education | C17: 130.66 | D17: 5286.62 | E17: 26142.31 | F17: 36329.95 | G17: 1084.43 | H17: 28466.56 | I17: 7081.87 | J17: =RANDBETWEEN(12,12000)/100 -> 49.89 | K17: 104572.29
A18: 2400 | B18: Insurance – Workers Comp | C18: 5262.6 | D18: 26583.9 | E18: 3141.94 | F18: =RANDBETWEEN(12,12000)/100 -> 88.4 | G18: 5461.45 | H18: =RANDBETWEEN(12,12000)/100 -> 70.99 | I18: 8915.35 | J18: 30401.63 | K18: 79926.26
A19: 2500 | B19: Insurance – Medical & Dental | C19: =RANDBETWEEN(12,12000)/100 -> 101.51 | D19: 20379.11 | E19: 8648.87 | F19: 18972.33 | G19: 22975.42 | H19: 23339.78 | I19: 154.53 | J19: 15421.94 | K19: 109993.49
A20: 2600 | B20: Insurance – Group Life | C20: 5725.39 | D20: 21757.91 | E20: 2829.65 | F20: 996.62 | G20: 9644.55 | H20: 17102.83 | I20: =RANDBETWEEN(12,12000)/100 -> 91.07 | J20: 11055.53 | K20: 69203.55
A21: 2700 | B21: Other Miscellaneous Employee Benefits | C21: 7678.85 | D21: 3708.72 | E21: =RANDBETWEEN(12,12000)/100 -> 113.17 | F21: 36845.34 | G21: 20697.02 | H21: 24627.1 | I21: 31860 | J21: 15910.39 | K21: 141440.59
A22: 2800 | B22: PR Tax – FICA | C22: 23352.77 | D22: =RANDBETWEEN(12,12000)/100 -> 77.67 | E22: 106.27 | F22: 28408.81 | G22: 37876.69 | H22: 24304.09 | I22: 16245.72 | J22: 16598.69 | K22: 146970.71
A23: 2900 | B23: PR Tax – Unemployment | C23: 12805.5 | D23: 11426.7 | E23: 15805.09 | F23: 10232.31 | G23: 36604.14 | H23: 9551.99 | I23: 24150.32 | J23: 36388.67 | K23: 156964.72
A25: 3000 | B25: TRAVEL, LIVING & ENTERTAINMENT
A26: 3100 | B26: TLE – Airfares | C26: 8386.79 | D26: 36389.69 | E26: 34288.24 | F26: 8404.01 | G26: 37508.35 | H26: 16889.55 | I26: 16389.56 | J26: 28560.21 | K26: 186816.4
A27: 3200 | B27: TLE – Lodging | C27: 14047.57 | D27: 32073.41 | E27: 36191.16 | F27: 332.07 | G27: 27459.55 | H27: 3491.38 | I27: 23948.29 | J27: =RANDBETWEEN(12,12000)/100 -> 51.12 | K27: 137594.55
A28: 3300 | B28: TLE – Meals | C28: =RANDBETWEEN(12,12000)/100 -> 30.1 | D28: 20402.1 | E28: 12342.83 | F28: 21866.73 | G28: 29230.46 | H28: 24632.31 | I28: =RANDBETWEEN(12,12000)/100 -> 98.43 | J28: 15244.63 | K28: 123847.59
A29: 3400 | B29: TLE – Entertainment | C29: 31333.46 | D29: 4243.27 | E29: 28276.67 | F29: 26277.57 | G29: 15363.38 | H29: 29261.88 | I29: 25224.27 | J29: 3127.78 | K29: 163108.28
A30: 3500 | B30: TLE – Auto Leasing | C30: 33275.42 | D30: 31686.77 | E30: =RANDBETWEEN(12,12000)/100 -> 9.29 | F30: =RANDBETWEEN(12,12000)/100 -> 74.82 | G30: =RANDBETWEEN(12,12000)/100 -> 91.26 | H30: 20425.07 | I30: 32413 | J30: 18872.96 | K30: 136848.59
A31: 3600 | B31: TLE – Auto Expense | C31: 7005.62 | D31: 29174.02 | E31: 20248.59 | F31: 11917.81 | G31: 12590.3 | H31: 35752.08 | I31: =RANDBETWEEN(12,12000)/100 -> 52.96 | J31: =RANDBETWEEN(12,12000)/100 -> 95.3 | K31: 116836.68
A32: 3700 | B32: TLE – Conventions & /Seminars | C32: 30051.66 | D32: =RANDBETWEEN(12,12000)/100 -> 79.84 | E32: 35189.22 | F32: 270.08 | G32: 35404.62 | H32: 33112.98 | I32: 11358.06 | J32: 31954.76 | K32: 177421.22
A33: 3800 | B33: TLE – Miscellaneous | C33: 32958.88 | D33: 6487.75 | E33: 29564.76 | F33: =RANDBETWEEN(12,12000)/100 -> 29.99 | G33: 26200.24 | H33: 25735.04 | I33: 35761.83 | J33: 14116.99 | K33: 170855.48
A34: 3900 | B34: TLE – Cellphones & Pagers | C34: 6600.66 | D34: 21941.65 | E34: 35550.77 | F34: 13525.38 | G34: 35389.19 | H34: 31633.41 | I34: 32602.35 | J34: 21877.74 | K34: 199121.15
A36: 4000 | B36: OTHER MISCELLANEOUS EXPENSES
A37: 4100 | B37: MISC – Bad Debts | C37: 9804.63 | D37: 1932.96 | E37: 37509.19 | F37: 6603.45 | G37: 22306.11 | H37: 15977.81 | I37: 21580.8 | J37: 3081.09 | K37: 118796.04
A38: 4200 | B38: MISC – Bank Charges | C38: 21014.82 | D38: 14872.21 | E38: 11172.66 | F38: 17195.7 | G38: 19514.71 | H38: 11750.01 | I38: 25569.99 | J38: 10958.42 | K38: 132048.52
A39: 4300 | B39: MISC – Computer & Software Related | C39: 11115.29 | D39: 33460.02 | E39: 21457.06 | F39: 26967.83 | G39: 11605.15 | H39: 3448.53 | I39: 776.87 | J39: 3786.75 | K39: 112617.5
A40: 4400 | B40: MISC – Contributions / Donations | C40: 14598.91 | D40: 31713.12 | E40: 15789.22 | F40: 28305.47 | G40: 35553.51 | H40: 6794.74 | I40: 6542.56 | J40: 31086.75 | K40: 170384.28
A41: 4500 | B41: MISC – Dues & Subscriptions | C41: 19322.17 | D41: 19697.18 | E41: 24485.41 | F41: 15785.32 | G41: 28765.47 | H41: 5697.68 | I41: 11709.75 | J41: 29736.01 | K41: 155198.99
A42: 4600 | B42: MISC – Insurance – Auto & General | C42: 27893.84 | D42: 21277.79 | E42: 28267.87 | F42: 35279.79 | G42: 19676.95 | H42: 27185.97 | I42: 15009.76 | J42: 1033.11 | K42: 175625.08
A43: 4700 | B43: MISC – Office Supplies & Expense | C43: 16282.01 | D43: 28111.91 | E43: 1529.86 | F43: 232.36 | G43: 9976.1 | H43: 36105.57 | I43: 6661.84 | J43: 13954.44 | K43: 112854.09
A44: 4800 | B44: MISC – Postage | C44: 6902.88 | D44: 36695.07 | E44: 32875.02 | F44: 29071.16 | G44: 15178.78 | H44: 33624.65 | I44: 30362.86 | J44: 23073.53 | K44: 207783.95
A45: 4900 | B45: MISC – Misc. Taxes & Licenses | C45: 25356.45 | D45: 27128.7 | E45: 14440.28 | F45: 10962.42 | G45: 35802.19 | H45: 20594.7 | I45: 33248.68 | J45: 16905.12 | K45: 184438.54
A47: 5000 | B47: OUTSIDE SERVICES
A48: 5100 | B48: O / S – Advertising Expense | C48: 31843.07 | D48: 20107.81 | E48: 32688.84 | F48: 8520.39 | G48: 9706.39 | H48: 18652.66 | I48: 34946.34 | J48: 27166.46 | K48: =SUM(C48:J48) -> 183631.96
A49: 5200 | B49: O / S – Legal Fees | C49: 13283.67 | D49: 29353.07 | E49: 29136.27 | F49: 1475.46 | G49: 1187.32 | H49: 23832.87 | I49: 17092.91 | J49: 36548.5 | K49: 151910.07
A50: 5300 | B50: O / S – Accounting | C50: 12381.2 | D50: 13917.38 | E50: 26344.91 | F50: 9068.07 | G50: 27214.13 | H50: 9898.59 | I50: 12565.91 | J50: 12223.65 | K50: 123613.84
A51: 5400 | B51: O / S – Consultant Fees | C51: 35841.88 | D51: 27318.94 | E51: 33100.05 | F51: 14452.9 | G51: 3136.57 | H51: 16976.61 | I51: 2780.72 | J51: 26201.5 | K51: 159809.17
A52: 5500 | B52: O / S – Promotional Expense | C52: 28166.85 | D52: 16376.59 | E52: 471.46 | F52: 12984.52 | G52: 23543.37 | H52: 926.32 | I52: 13295.14 | J52: 36516.63 | K52: 132280.88
A53: 5600 | B53: O / S – Recruiting Fees | C53: 23972.88 | D53: 4154.42 | E53: 19268.03 | F53: 13242.48 | G53: 10069.98 | H53: 175.95 | I53: 26547.52 | J53: 25739.01 | K53: 123170.27
A54: 5700 | B54: O / S – Contract Labor | C54: 11457.88 | D54: 22630.02 | E54: 27930.12 | F54: 19577.58 | G54: 23080.63 | H54: 14963.98 | I54: 24978.85 | J54: 8658.28 | K54: 153277.34
A55: 5800 | B55: O / S – Janitorial Service | C55: 37916.11 | D55: 5626.46 | E55: 36567.6 | F55: 29574.14 | G55: 34838.28 | H55: 30832.26 | I55: 8267.73 | J55: 19487.31 | K55: 203109.89
A56: 5900 | B56: O / S – Security | C56: 22888.16 | D56: 29041.24 | E56: 27238.53 | F56: 11698.07 | G56: 37860.56 | H56: 32763.76 | I56: 24506.02 | J56: 25084.12 | K56: 211080.46
A58: 6000 | B58: RENTALS & LEASES
A59: 6100 | B59: RENTALS Office Rent | C59: 22386.52 | D59: 34924.8 | E59: 28175.88 | F59: 22556.44 | G59: 9197.18 | H59: 17127.11 | I59: 27827.5 | J59: 24908.69 | K59: 187104.12
A60: 6200 | B60: RENTALS Equipment Rental | C60: 16792.22 | D60: 23877.54 | E60: 13393.53 | F60: 20218.46 | G60: 24092.07 | H60: 36903.68 | I60: 23438.94 | J60: 13688.37 | K60: 172404.81
A61: 6300 | B61: RENTALS Office Equipment | C61: 22925.38 | D61: 24451.76 | E61: 11284.72 | F61: 24490.22 | G61: 17081.98 | H61: 7365.5 | I61: 8645.92 | J61: 21712.17 | K61: 137957.65
A62: 6400 | B62: RENTALS Vehicle Leases | C62: 6212.37 | D62: 15570.33 | E62: 16274.99 | F62: 20675.77 | G62: 33315.68 | H62: 12830.5 | I62: 36877.18 | J62: 27012.61 | K62: 168769.43
A64: 7000 | B64: FACILITIES
A65: 7100 | B65: FAC – Telephone & Fax | C65: 16551 | D65: 36295.55 | E65: 9107.85 | F65: 25243.85 | G65: 20808.97 | H65: 29619.26 | I65: 29705.02 | J65: 32341.93 | K65: 199673.43
A66: 7200 | B66: FAC – Utilities | C66: 13318.13 | D66: 29940.92 | E66: 4942.71 | F66: 29777.92 | G66: 34608.24 | H66: 29053.35 | I66: 22478.86 | J66: 21831.93 | K66: 185952.06
A67: 7300 | B67: FAC – Electricity | C67: 8845.75 | D67: 21007.57 | E67: 4601.98 | F67: 6877.61 | G67: 3885.28 | H67: 19736.88 | I67: 19341.09 | J67: 732.95 | K67: 85029.11
A68: 7400 | B68: FAC – Water | C68: 18853.83 | D68: 25384.46 | E68: 30840.99 | F68: 23806.2 | G68: 34835.15 | H68: 33340.92 | I68: 15654.91 | J68: 6662.94 | K68: 189379.4
A69: 7500 | B69: FAC – Repairs – Building | C69: 11697.92 | D69: 31610.93 | E69: 12915.26 | F69: 15807.47 | G69: 15502.05 | H69: 1774.06 | I69: 30836.6 | J69: 17348.43 | K69: 137492.72
A70: 7600 | B70: FAC – Repairs – Office Equipment | C70: 34317.27 | D70: 22678.73 | E70: 28754.53 | F70: 3780.86 | G70: 8108.83 | H70: 5429.3 | I70: 12976.72 | J70: 13881.41 | K70: =SUM(C70:J70) -> 129927.65
A71: 7700 | B71: FAC – Real Estate Taxes | C71: 36449.68 | D71: 31555.3 | E71: 34842.35 | F71: 6546.43 | G71: 5705.12 | H71: 33334.23 | I71: 33130.51 | J71: 33192.43 | K71: 214756.05
C73: =SUM(C6:C71) -> 962442.16 | D73: =SUM(D6:D71) -> 1080136.28 | E73: 1036924.59 | F73: 822463.13 | G73: 1129615.44 | H73: 1055909.38 | I73: 1011009.08 | J73: 1022872.85 | K73: 8121372.91

Sheet July Data
A1: Jackson Entertainment
A2: July Data
C4: DEPT 1 | D4: DEPT 2 | E4: DEPT 3 | F4: DEPT 4 | G4: DEPT 5 | H4: DEPT 6 | I4: DEPT 7 | J4: DEPT 8 | K4: TOTAL
A5: 1000 | B5: SALARIES & WAGES
A6: 1100 | B6: S & W – Exempt | C6: 9098.01 | D6: 21821.77 | E6: 8758.97 | F6: 3359.07 | G6: 33884.34 | H6: 29129.13 | I6: 11774.78 | J6: 3083.42 | K6: =SUM(C6:J6) -> 120909.49
A7: 1200 | B7: S & W – Non-Exempt | C7: 30414.04 | D7: 11205.27 | E7: 11047.31 | F7: 6544.15 | G7: 35152 | H7: 12263.82 | I7: 15821.35 | J7: 17764.67 | K7: 140212.61
A8: 1300 | B8: S & W – Officers | C8: 5698.72 | D8: 6903.43 | E8: 6446.73 | F8: 5480.94 | G8: 22029.22 | H8: 26523.95 | I8: =RANDBETWEEN(12,12000)/100 -> 66.98 | J8: 37471.95 | K8: 110621.92
A9: 1400 | B9: S & W – Incentives | C9: 18859.05 | D9: =RANDBETWEEN(12,12000)/100 -> 6.74 | E9: 5092.74 | F9: 21673.98 | G9: 12408.01 | H9: 25539.28 | I9: 19271.67 | J9: 33582.82 | K9: 136434.29
A10: 1500 | B10: S & W – Commissions | C10: 17198.16 | D10: 21273.21 | E10: 5551.14 | F10: 5621.21 | G10: =RANDBETWEEN(12,12000)/100 -> 57.19 | H10: 31326.56 | I10: 19138.54 | J10: =RANDBETWEEN(12,12000)/100 -> 44.14 | K10: 100210.15
A11: 1600 | B11: S & W – Overtime | C11: 27179.25 | D11: 15952.26 | E11: 35049.15 | F11: 6344.27 | G11: 25381.62 | H11: 4016.39 | I11: 31709.01 | J11: 27997.1 | K11: 173629.05
A12: 1700 | B12: S & W – Severence | C12: 19803.59 | D12: 34495.67 | E12: 2534.75 | F12: 18257.62 | G12: 35107.78 | H12: 2756.4 | I12: 12365.39 | J12: 32904.35 | K12: 158225.55
A14: 2000 | B14: FRINGE BENEFITS
A15: 2100 | B15: 401K Match | C15: 27352.84 | D15: 10439.55 | E15: 22575.83 | F15: 17230.83 | G15: 35782.1 | H15: 27441.6 | I15: 22378.18 | J15: 25848.74 | K15: 189049.67
A16: 2200 | B16: Allocations to Other Departments | C16: 9698.29 | D16: 5577.59 | E16: 36011.97 | F16: 32600.5 | G16: =RANDBETWEEN(12,12000)/100 -> 101.13 | H16: 11797.76 | I16: 34734.25 | J16: 19896.4 | K16: 150417.89
A17: 2300 | B17: Education Assistance / Training & Education | C17: 130.66 | D17: 5286.62 | E17: 26142.31 | F17: 36329.95 | G17: 1084.43 | H17: 28466.56 | I17: 7081.87 | J17: =RANDBETWEEN(12,12000)/100 -> 90.99 | K17: 104613.39
A18: 2400 | B18: Insurance – Workers Comp | C18: 5262.6 | D18: 26583.9 | E18: 3141.94 | F18: =RANDBETWEEN(12,12000)/100 -> 9.31 | G18: 5461.45 | H18: =RANDBETWEEN(12,12000)/100 -> 18.16 | I18: 8915.35 | J18: 30401.63 | K18: 79794.34
A19: 2500 | B19: Insurance – Medical & Dental | C19: =RANDBETWEEN(12,12000)/100 -> 77.77 | D19: 20379.11 | E19: 8648.87 | F19: 18972.33 | G19: 22975.42 | H19: 23339.78 | I19: 154.53 | J19: 15421.94 | K19: 109969.75
A20: 2600 | B20: Insurance – Group Life | C20: 5725.39 | D20: 21757.91 | E20: 2829.65 | F20: 996.62 | G20: 9644.55 | H20: 17102.83 | I20: =RANDBETWEEN(12,12000)/100 -> 29.31 | J20: 11055.53 | K20: 69141.79
A21: 2700 | B21: Other Miscellaneous Employee Benefits | C21: 7678.85 | D21: 3708.72 | E21: =RANDBETWEEN(12,12000)/100 -> 46.46 | F21: 36845.34 | G21: 20697.02 | H21: 24627.1 | I21: 31860 | J21: 15910.39 | K21: 141373.88
A22: 2800 | B22: PR Tax – FICA | C22: 23352.77 | D22: =RANDBETWEEN(12,12000)/100 -> 119.17 | E22: 65.38 | F22: 28408.81 | G22: 37876.69 | H22: 24304.09 | I22: 16245.72 | J22: 16598.69 | K22: 146971.32
A23: 2900 | B23: PR Tax – Unemployment | C23: 12805.5 | D23: 11426.7 | E23: 15805.09 | F23: 10232.31 | G23: 36604.14 | H23: 9551.99 | I23: 24150.32 | J23: 36388.67 | K23: 156964.72
A25: 3000 | B25: TRAVEL, LIVING & ENTERTAINMENT
A26: 3100 | B26: TLE – Airfares | C26: 8386.79 | D26: 36389.69 | E26: 34288.24 | F26: 8404.01 | G26: 37508.35 | H26: 16889.55 | I26: 16389.56 | J26: 28560.21 | K26: 186816.4
A27: 3200 | B27: TLE – Lodging | C27: 14047.57 | D27: 32073.41 | E27: 36191.16 | F27: 332.07 | G27: 27459.55 | H27: 3491.38 | I27: 23948.29 | J27: =RANDBETWEEN(12,12000)/100 -> 77.82 | K27: 137621.25
A28: 3300 | B28: TLE – Meals | C28: =RANDBETWEEN(12,12000)/100 -> 24.74 | D28: 20402.1 | E28: 12342.83 | F28: 21866.73 | G28: 29230.46 | H28: 24632.31 | I28: =RANDBETWEEN(12,12000)/100 -> 13.28 | J28: 15244.63 | K28: 123757.08
A29: 3400 | B29: TLE – Entertainment | C29: 31333.46 | D29: 4243.27 | E29: 28276.67 | F29: 26277.57 | G29: 15363.38 | H29: 29261.88 | I29: 25224.27 | J29: 3127.78 | K29: 163108.28
A30: 3500 | B30: TLE – Auto Leasing | C30: 33275.42 | D30: 31686.77 | E30: =RANDBETWEEN(12,12000)/100 -> 76.82 | F30: =RANDBETWEEN(12,12000)/100 -> 23.38 | G30: =RANDBETWEEN(12,12000)/100 -> 69.38 | H30: 20425.07 | I30: 32413 | J30: 18872.96 | K30: 136842.8
A31: 3600 | B31: TLE – Auto Expense | C31: 7005.62 | D31: 29174.02 | E31: 20248.59 | F31: 11917.81 | G31: 12590.3 | H31: 35752.08 | I31: =RANDBETWEEN(12,12000)/100 -> 5.7 | J31: =RANDBETWEEN(12,12000)/100 -> 116.01 | K31: 116810.13
A32: 3700 | B32: TLE – Conventions & /Seminars | C32: 30051.66 | D32: =RANDBETWEEN(12,12000)/100 -> 119.56 | E32: 35189.22 | F32: 270.08 | G32: 35404.62 | H32: 33112.98 | I32: 11358.06 | J32: 31954.76 | K32: 177460.94
A33: 3800 | B33: TLE – Miscellaneous | C33: 32958.88 | D33: 6487.75 | E33: 29564.76 | F33: =RANDBETWEEN(12,12000)/100 -> 90.41 | G33: 26200.24 | H33: 25735.04 | I33: 35761.83 | J33: 14116.99 | K33: 170915.9
A34: 3900 | B34: TLE – Cellphones & Pagers | C34: 6600.66 | D34: 21941.65 | E34: 35550.77 | F34: 13525.38 | G34: 35389.19 | H34: 31633.41 | I34: 32602.35 | J34: 21877.74 | K34: 199121.15
A36: 4000 | B36: OTHER MISCELLANEOUS EXPENSES
A37: 4100 | B37: MISC – Bad Debts | C37: 9804.63 | D37: 1932.96 | E37: 37509.19 | F37: 6603.45 | G37: 22306.11 | H37: 15977.81 | I37: 21580.8 | J37: 3081.09 | K37: 118796.04
A38: 4200 | B38: MISC – Bank Charges | C38: 21014.82 | D38: 14872.21 | E38: 11172.66 | F38: 17195.7 | G38: 19514.71 | H38: 11750.01 | I38: 25569.99 | J38: 10958.42 | K38: 132048.52
A39: 4300 | B39: MISC – Computer & Software Related | C39: 11115.29 | D39: 33460.02 | E39: 21457.06 | F39: 26967.83 | G39: 11605.15 | H39: 3448.53 | I39: 776.87 | J39: 3786.75 | K39: 112617.5
A40: 4400 | B40: MISC – Contributions / Donations | C40: 14598.91 | D40: 31713.12 | E40: 15789.22 | F40: 28305.47 | G40: 35553.51 | H40: 6794.74 | I40: 6542.56 | J40: 31086.75 | K40: 170384.28
A41: 4500 | B41: MISC – Dues & Subscriptions | C41: 19322.17 | D41: 19697.18 | E41: 24485.41 | F41: 15785.32 | G41: 28765.47 | H41: 5697.68 | I41: 11709.75 | J41: 29736.01 | K41: 155198.99
A42: 4600 | B42: MISC – Insurance – Auto & General | C42: 27893.84 | D42: 21277.79 | E42: 28267.87 | F42: 35279.79 | G42: 19676.95 | H42: 27185.97 | I42: 15009.76 | J42: 1033.11 | K42: 175625.08
A43: 4700 | B43: MISC – Office Supplies & Expense | C43: 16282.01 | D43: 28111.91 | E43: 1529.86 | F43: 232.36 | G43: 9976.1 | H43: 36105.57 | I43: 6661.84 | J43: 13954.44 | K43: 112854.09
A44: 4800 | B44: MISC – Postage | C44: 6902.88 | D44: 36695.07 | E44: 32875.02 | F44: 29071.16 | G44: 15178.78 | H44: 33624.65 | I44: 30362.86 | J44: 23073.53 | K44: 207783.95
A45: 4900 | B45: MISC – Misc. Taxes & Licenses | C45: 25356.45 | D45: 27128.7 | E45: 14440.28 | F45: 10962.42 | G45: 35802.19 | H45: 20594.7 | I45: 33248.68 | J45: 16905.12 | K45: 184438.54
A47: 5000 | B47: OUTSIDE SERVICES
A48: 5100 | B48: O / S – Advertising Expense | C48: 31843.07 | D48: 20107.81 | E48: 32688.84 | F48: 8520.39 | G48: 9706.39 | H48: 18652.66 | I48: 34946.34 | J48: 27166.46 | K48: =SUM(C48:J48) -> 183631.96
A49: 5200 | B49: O / S – Legal Fees | C49: 13283.67 | D49: 29353.07 | E49: 29136.27 | F49: 1475.46 | G49: 1187.32 | H49: 23832.87 | I49: 17092.91 | J49: 36548.5 | K49: 151910.07
A50: 5300 | B50: O / S – Accounting | C50: 12381.2 | D50: 13917.38 | E50: 26344.91 | F50: 9068.07 | G50: 27214.13 | H50: 9898.59 | I50: 12565.91 | J50: 12223.65 | K50: 123613.84
A51: 5400 | B51: O / S – Consultant Fees | C51: 35841.88 | D51: 27318.94 | E51: 33100.05 | F51: 14452.9 | G51: 3136.57 | H51: 16976.61 | I51: 2780.72 | J51: 26201.5 | K51: 159809.17
A52: 5500 | B52: O / S – Promotional Expense | C52: 28166.85 | D52: 16376.59 | E52: 471.46 | F52: 12984.52 | G52: 23543.37 | H52: 926.32 | I52: 13295.14 | J52: 36516.63 | K52: 132280.88
A53: 5600 | B53: O / S – Recruiting Fees | C53: 23972.88 | D53: 4154.42 | E53: 19268.03 | F53: 13242.48 | G53: 10069.98 | H53: 175.95 | I53: 26547.52 | J53: 25739.01 | K53: 123170.27
A54: 5700 | B54: O / S – Contract Labor | C54: 11457.88 | D54: 22630.02 | E54: 27930.12 | F54: 19577.58 | G54: 23080.63 | H54: 14963.98 | I54: 24978.85 | J54: 8658.28 | K54: 153277.34
A55: 5800 | B55: O / S – Janitorial Service | C55: 37916.11 | D55: 5626.46 | E55: 36567.6 | F55: 29574.14 | G55: 34838.28 | H55: 30832.26 | I55: 8267.73 | J55: 19487.31 | K55: 203109.89
A56: 5900 | B56: O / S – Security | C56: 22888.16 | D56: 29041.24 | E56: 27238.53 | F56: 11698.07 | G56: 37860.56 | H56: 32763.76 | I56: 24506.02 | J56: 25084.12 | K56: 211080.46
A58: 6000 | B58: RENTALS & LEASES
A59: 6100 | B59: RENTALS Office Rent | C59: 22386.52 | D59: 34924.8 | E59: 28175.88 | F59: 22556.44 | G59: 9197.18 | H59: 17127.11 | I59: 27827.5 | J59: 24908.69 | K59: 187104.12
A60: 6200 | B60: RENTALS Equipment Rental | C60: 16792.22 | D60: 23877.54 | E60: 13393.53 | F60: 20218.46 | G60: 24092.07 | H60: 36903.68 | I60: 23438.94 | J60: 13688.37 | K60: 172404.81
A61: 6300 | B61: RENTALS Office Equipment | C61: 22925.38 | D61: 24451.76 | E61: 11284.72 | F61: 24490.22 | G61: 17081.98 | H61: 7365.5 | I61: 8645.92 | J61: 21712.17 | K61: 137957.65
A62: 6400 | B62: RENTALS Vehicle Leases | C62: 6212.37 | D62: 15570.33 | E62: 16274.99 | F62: 20675.77 | G62: 33315.68 | H62: 12830.5 | I62: 36877.18 | J62: 27012.61 | K62: 168769.43
A64: 7000 | B64: FACILITIES
A65: 7100 | B65: FAC – Telephone & Fax | C65: 16551 | D65: 36295.55 | E65: 9107.85 | F65: 25243.85 | G65: 20808.97 | H65: 29619.26 | I65: 29705.02 | J65: 32341.93 | K65: 199673.43
A66: 7200 | B66: FAC – Utilities | C66: 13318.13 | D66: 29940.92 | E66: 4942.71 | F66: 29777.92 | G66: 34608.24 | H66: 29053.35 | I66: 22478.86 | J66: 21831.93 | K66: 185952.06
A67: 7300 | B67: FAC – Electricity | C67: 8845.75 | D67: 21007.57 | E67: 4601.98 | F67: 6877.61 | G67: 3885.28 | H67: 19736.88 | I67: 19341.09 | J67: 732.95 | K67: 85029.11
A68: 7400 | B68: FAC – Water | C68: 18853.83 | D68: 25384.46 | E68: 30840.99 | F68: 23806.2 | G68: 34835.15 | H68: 33340.92 | I68: 15654.91 | J68: 6662.94 | K68: 189379.4
A69: 7500 | B69: FAC – Repairs – Building | C69: 11697.92 | D69: 31610.93 | E69: 12915.26 | F69: 15807.47 | G69: 15502.05 | H69: 1774.06 | I69: 30836.6 | J69: 17348.43 | K69: 137492.72
A70: 7600 | B70: FAC – Repairs – Office Equipment | C70: 34317.27 | D70: 22678.73 | E70: 28754.53 | F70: 3780.86 | G70: 8108.83 | H70: 5429.3 | I70: 12976.72 | J70: 13881.41 | K70: =SUM(C70:J70) -> 129927.65
A71: 7700 | B71: FAC – Real Estate Taxes | C71: 36449.68 | D71: 31555.3 | E71: 34842.35 | F71: 6546.43 | G71: 5705.12 | H71: 33334.23 | I71: 33130.51 | J71: 33192.43 | K71: 214756.05
C73: =SUM(C6:C71) -> 962413.06 | D73: =SUM(D6:D71) -> 1080168.62 | E73: 1036884.52 | F73: 822393.02 | G73: 1129619.31 | H73: 1055856.55 | I73: 1010771.09 | J73: 1022964.87 | K73: 8121071.04

Sheet August Data
A1: Jackson Entertainment
A2: August Data
C4: DEPT 1 | D4: DEPT 2 | E4: DEPT 3 | F4: DEPT 4 | G4: DEPT 5 | H4: DEPT 6 | I4: DEPT 7 | J4: DEPT 8 | K4: TOTAL
A5: 1000 | B5: SALARIES & WAGES
A6: 1100 | B6: S & W – Exempt | C6: 9098.01 | D6: 21821.77 | E6: 8758.97 | F6: 3359.07 | G6: 33884.34 | H6: 29129.13 | I6: 11774.78 | J6: 3083.42 | K6: =SUM(C6:J6) -> 120909.49
A7: 1200 | B7: S & W – Non-Exempt | C7: 30414.04 | D7: 11205.27 | E7: 11047.31 | F7: 6544.15 | G7: 35152 | H7: 12263.82 | I7: 15821.35 | J7: 17764.67 | K7: 140212.61
A8: 1300 | B8: S & W – Officers | C8: 5698.72 | D8: 6903.43 | E8: 6446.73 | F8: 5480.94 | G8: 22029.22 | H8: 26523.95 | I8: =RANDBETWEEN(12,12000)/100 -> 109.82 | J8: 37471.95 | K8: 110664.76
A9: 1400 | B9: S & W – Incentives | C9: 18859.05 | D9: =RANDBETWEEN(12,12000)/100 -> 17.87 | E9: 5092.74 | F9: 21673.98 | G9: 12408.01 | H9: 25539.28 | I9: 19271.67 | J9: 33582.82 | K9: 136445.42
A10: 1500 | B10: S & W – Commissions | C10: 17198.16 | D10: 21273.21 | E10: 5551.14 | F10: 5621.21 | G10: =RANDBETWEEN(12,12000)/100 -> 100.04 | H10: 31326.56 | I10: 19138.54 | J10: =RANDBETWEEN(12,12000)/100 -> 60.49 | K10: 100269.35
A11: 1600 | B11: S & W – Overtime | C11: 27179.25 | D11: 15952.26 | E11: 35049.15 | F11: 6344.27 | G11: 25381.62 | H11: 4016.39 | I11: 31709.01 | J11: 27997.1 | K11: 173629.05
A12: 1700 | B12: S & W – Severence | C12: 19803.59 | D12: 34495.67 | E12: 2534.75 | F12: 18257.62 | G12: 35107.78 | H12: 2756.4 | I12: 12365.39 | J12: 32904.35 | K12: 158225.55
A14: 2000 | B14: FRINGE BENEFITS
A15: 2100 | B15: 401K Match | C15: 27352.84 | D15: 10439.55 | E15: 22575.83 | F15: 17230.83 | G15: 35782.1 | H15: 27441.6 | I15: 22378.18 | J15: 25848.74 | K15: 189049.67
A16: 2200 | B16: Allocations to Other Departments | C16: 9698.29 | D16: 5577.59 | E16: 36011.97 | F16: 32600.5 | G16: =RANDBETWEEN(12,12000)/100 -> 62.89 | H16: 11797.76 | I16: 34734.25 | J16: 19896.4 | K16: 150379.65
A17: 2300 | B17: Education Assistance / Training & Education | C17: 130.66 | D17: 5286.62 | E17: 26142.31 | F17: 36329.95 | G17: 1084.43 | H17: 28466.56 | I17: 7081.87 | J17: =RANDBETWEEN(12,12000)/100 -> 62.25 | K17: 104584.65
A18: 2400 | B18: Insurance – Workers Comp | C18: 5262.6 | D18: 26583.9 | E18: 3141.94 | F18: =RANDBETWEEN(12,12000)/100 -> 69.54 | G18: 5461.45 | H18: =RANDBETWEEN(12,12000)/100 -> 88.67 | I18: 8915.35 | J18: 30401.63 | K18: 79925.08
A19: 2500 | B19: Insurance – Medical & Dental | C19: =RANDBETWEEN(12,12000)/100 -> 55.24 | D19: 20379.11 | E19: 8648.87 | F19: 18972.33 | G19: 22975.42 | H19: 23339.78 | I19: 154.53 | J19: 15421.94 | K19: 109947.22
A20: 2600 | B20: Insurance – Group Life | C20: 5725.39 | D20: 21757.91 | E20: 2829.65 | F20: 996.62 | G20: 9644.55 | H20: 17102.83 | I20: =RANDBETWEEN(12,12000)/100 -> 20.24 | J20: 11055.53 | K20: 69132.72
A21: 2700 | B21: Other Miscellaneous Employee Benefits | C21: 7678.85 | D21: 3708.72 | E21: =RANDBETWEEN(12,12000)/100 -> 75.56 | F21: 36845.34 | G21: 20697.02 | H21: 24627.1 | I21: 31860 | J21: 15910.39 | K21: 141402.98
A22: 2800 | B22: PR Tax – FICA | C22: 23352.77 | D22: =RANDBETWEEN(12,12000)/100 -> 12.52 | E22: 37.53 | F22: 28408.81 | G22: 37876.69 | H22: 24304.09 | I22: 16245.72 | J22: 16598.69 | K22: 146836.82
A23: 2900 | B23: PR Tax – Unemployment | C23: 12805.5 | D23: 11426.7 | E23: 15805.09 | F23: 10232.31 | G23: 36604.14 | H23: 9551.99 | I23: 24150.32 | J23: 36388.67 | K23: 156964.72
A25: 3000 | B25: TRAVEL, LIVING & ENTERTAINMENT
A26: 3100 | B26: TLE – Airfares | C26: 8386.79 | D26: 36389.69 | E26: 34288.24 | F26: 8404.01 | G26: 37508.35 | H26: 16889.55 | I26: 16389.56 | J26: 28560.21 | K26: 186816.4
A27: 3200 | B27: TLE – Lodging | C27: 14047.57 | D27: 32073.41 | E27: 36191.16 | F27: 332.07 | G27: 27459.55 | H27: 3491.38 | I27: 23948.29 | J27: =RANDBETWEEN(12,12000)/100 -> 24.89 | K27: 137568.32
A28: 3300 | B28: TLE – Meals | C28: =RANDBETWEEN(12,12000)/100 -> 53.94 | D28: 20402.1 | E28: 12342.83 | F28: 21866.73 | G28: 29230.46 | H28: 24632.31 | I28: =RANDBETWEEN(12,12000)/100 -> 60.84 | J28: 15244.63 | K28: 123833.84
A29: 3400 | B29: TLE – Entertainment | C29: 31333.46 | D29: 4243.27 | E29: 28276.67 | F29: 26277.57 | G29: 15363.38 | H29: 29261.88 | I29: 25224.27 | J29: 3127.78 | K29: 163108.28
A30: 3500 | B30: TLE – Auto Leasing | C30: 33275.42 | D30: 31686.77 | E30: =RANDBETWEEN(12,12000)/100 -> 86.19 | F30: =RANDBETWEEN(12,12000)/100 -> 22.39 | G30: =RANDBETWEEN(12,12000)/100 -> 114.25 | H30: 20425.07 | I30: 32413 | J30: 18872.96 | K30: 136896.05
A31: 3600 | B31: TLE – Auto Expense | C31: 7005.62 | D31: 29174.02 | E31: 20248.59 | F31: 11917.81 | G31: 12590.3 | H31: 35752.08 | I31: =RANDBETWEEN(12,12000)/100 -> 14.41 | J31: =RANDBETWEEN(12,12000)/100 -> 62.49 | K31: 116765.32
A32: 3700 | B32: TLE – Conventions & /Seminars | C32: 30051.66 | D32: =RANDBETWEEN(12,12000)/100 -> 70.67 | E32: 35189.22 | F32: 270.08 | G32: 35404.62 | H32: 33112.98 | I32: 11358.06 | J32: 31954.76 | K32: 177412.05
A33: 3800 | B33: TLE – Miscellaneous | C33: 32958.88 | D33: 6487.75 | E33: 29564.76 | F33: =RANDBETWEEN(12,12000)/100 -> 115.41 | G33: 26200.24 | H33: 25735.04 | I33: 35761.83 | J33: 14116.99 | K33: 170940.9
A34: 3900 | B34: TLE – Cellphones & Pagers | C34: 6600.66 | D34: 21941.65 | E34: 35550.77 | F34: 13525.38 | G34: 35389.19 | H34: 31633.41 | I34: 32602.35 | J34: 21877.74 | K34: 199121.15
A36: 4000 | B36: OTHER MISCELLANEOUS EXPENSES
A37: 4100 | B37: MISC – Bad Debts | C37: 9804.63 | D37: 1932.96 | E37: 37509.19 | F37: 6603.45 | G37: 22306.11 | H37: 15977.81 | I37: 21580.8 | J37: 3081.09 | K37: 118796.04
A38: 4200 | B38: MISC – Bank Charges | C38: 21014.82 | D38: 14872.21 | E38: 11172.66 | F38: 17195.7 | G38: 19514.71 | H38: 11750.01 | I38: 25569.99 | J38: 10958.42 | K38: 132048.52
A39: 4300 | B39: MISC – Computer & Software Related | C39: 11115.29 | D39: 33460.02 | E39: 21457.06 | F39: 26967.83 | G39: 11605.15 | H39: 3448.53 | I39: 776.87 | J39: 3786.75 | K39: 112617.5
A40: 4400 | B40: MISC – Contributions / Donations | C40: 14598.91 | D40: 31713.12 | E40: 15789.22 | F40: 28305.47 | G40: 35553.51 | H40: 6794.74 | I40: 6542.56 | J40: 31086.75 | K40: 170384.28
A41: 4500 | B41: MISC – Dues & Subscriptions | C41: 19322.17 | D41: 19697.18 | E41: 24485.41 | F41: 15785.32 | G41: 28765.47 | H41: 5697.68 | I41: 11709.75 | J41: 29736.01 | K41: 155198.99
A42: 4600 | B42: MISC – Insurance – Auto & General | C42: 27893.84 | D42: 21277.79 | E42: 28267.87 | F42: 35279.79 | G42: 19676.95 | H42: 27185.97 | I42: 15009.76 | J42: 1033.11 | K42: 175625.08
A43: 4700 | B43: MISC – Office Supplies & Expense | C43: 16282.01 | D43: 28111.91 | E43: 1529.86 | F43: 232.36 | G43: 9976.1 | H43: 36105.57 | I43: 6661.84 | J43: 13954.44 | K43: 112854.09
A44: 4800 | B44: MISC – Postage | C44: 6902.88 | D44: 36695.07 | E44: 32875.02 | F44: 29071.16 | G44: 15178.78 | H44: 33624.65 | I44: 30362.86 | J44: 23073.53 | K44: 207783.95
A45: 4900 | B45: MISC – Misc. Taxes & Licenses | C45: 25356.45 | D45: 27128.7 | E45: 14440.28 | F45: 10962.42 | G45: 35802.19 | H45: 20594.7 | I45: 33248.68 | J45: 16905.12 | K45: 184438.54
A47: 5000 | B47: OUTSIDE SERVICES
A48: 5100 | B48: O / S – Advertising Expense | C48: 31843.07 | D48: 20107.81 | E48: 32688.84 | F48: 8520.39 | G48: 9706.39 | H48: 18652.66 | I48: 34946.34 | J48: 27166.46 | K48: =SUM(C48:J48) -> 183631.96
A49: 5200 | B49: O / S – Legal Fees | C49: 13283.67 | D49: 29353.07 | E49: 29136.27 | F49: 1475.46 | G49: 1187.32 | H49: 23832.87 | I49: 17092.91 | J49: 36548.5 | K49: 151910.07
A50: 5300 | B50: O / S – Accounting | C50: 12381.2 | D50: 13917.38 | E50: 26344.91 | F50: 9068.07 | G50: 27214.13 | H50: 9898.59 | I50: 12565.91 | J50: 12223.65 | K50: 123613.84
A51: 5400 | B51: O / S – Consultant Fees | C51: 35841.88 | D51: 27318.94 | E51: 33100.05 | F51: 14452.9 | G51: 3136.57 | H51: 16976.61 | I51: 2780.72 | J51: 26201.5 | K51: 159809.17
A52: 5500 | B52: O / S – Promotional Expense | C52: 28166.85 | D52: 16376.59 | E52: 471.46 | F52: 12984.52 | G52: 23543.37 | H52: 926.32 | I52: 13295.14 | J52: 36516.63 | K52: 132280.88
A53: 5600 | B53: O / S – Recruiting Fees | C53: 23972.88 | D53: 4154.42 | E53: 19268.03 | F53: 13242.48 | G53: 10069.98 | H53: 175.95 | I53: 26547.52 | J53: 25739.01 | K53: 123170.27
A54: 5700 | B54: O / S – Contract Labor | C54: 11457.88 | D54: 22630.02 | E54: 27930.12 | F54: 19577.58 | G54: 23080.63 | H54: 14963.98 | I54: 24978.85 | J54: 8658.28 | K54: 153277.34
A55: 5800 | B55: O / S – Janitorial Service | C55: 37916.11 | D55: 5626.46 | E55: 36567.6 | F55: 29574.14 | G55: 34838.28 | H55: 30832.26 | I55: 8267.73 | J55: 19487.31 | K55: 203109.89
A56: 5900 | B56: O / S – Security | C56: 22888.16 | D56: 29041.24 | E56: 27238.53 | F56: 11698.07 | G56: 37860.56 | H56: 32763.76 | I56: 24506.02 | J56: 25084.12 | K56: 211080.46
A58: 6000 | B58: RENTALS & LEASES
A59: 6100 | B59: RENTALS Office Rent | C59: 22386.52 | D59: 34924.8 | E59: 28175.88 | F59: 22556.44 | G59: 9197.18 | H59: 17127.11 | I59: 27827.5 | J59: 24908.69 | K59: 187104.12
A60: 6200 | B60: RENTALS Equipment Rental | C60: 16792.22 | D60: 23877.54 | E60: 13393.53 | F60: 20218.46 | G60: 24092.07 | H60: 36903.68 | I60: 23438.94 | J60: 13688.37 | K60: 172404.81
A61: 6300 | B61: RENTALS Office Equipment | C61: 22925.38 | D61: 24451.76 | E61: 11284.72 | F61: 24490.22 | G61: 17081.98 | H61: 7365.5 | I61: 8645.92 | J61: 21712.17 | K61: 137957.65
A62: 6400 | B62: RENTALS Vehicle Leases | C62: 6212.37 | D62: 15570.33 | E62: 16274.99 | F62: 20675.77 | G62: 33315.68 | H62: 12830.5 | I62: 36877.18 | J62: 27012.61 | K62: 168769.43
A64: 7000 | B64: FACILITIES
A65: 7100 | B65: FAC – Telephone & Fax | C65: 16551 | D65: 36295.55 | E65: 9107.85 | F65: 25243.85 | G65: 20808.97 | H65: 29619.26 | I65: 29705.02 | J65: 32341.93 | K65: 199673.43
A66: 7200 | B66: FAC – Utilities | C66: 13318.13 | D66: 29940.92 | E66: 4942.71 | F66: 29777.92 | G66: 34608.24 | H66: 29053.35 | I66: 22478.86 | J66: 21831.93 | K66: 185952.06
A67: 7300 | B67: FAC – Electricity | C67: 8845.75 | D67: 21007.57 | E67: 4601.98 | F67: 6877.61 | G67: 3885.28 | H67: 19736.88 | I67: 19341.09 | J67: 732.95 | K67: 85029.11
A68: 7400 | B68: FAC – Water | C68: 18853.83 | D68: 25384.46 | E68: 30840.99 | F68: 23806.2 | G68: 34835.15 | H68: 33340.92 | I68: 15654.91 | J68: 6662.94 | K68: 189379.4
A69: 7500 | B69: FAC – Repairs – Building | C69: 11697.92 | D69: 31610.93 | E69: 12915.26 | F69: 15807.47 | G69: 15502.05 | H69: 1774.06 | I69: 30836.6 | J69: 17348.43 | K69: 137492.72
A70: 7600 | B70: FAC – Repairs – Office Equipment | C70: 34317.27 | D70: 22678.73 | E70: 28754.53 | F70: 3780.86 | G70: 8108.83 | H70: 5429.3 | I70: 12976.72 | J70: 13881.41 | K70: =SUM(C70:J70) -> 129927.65
A71: 7700 | B71: FAC – Real Estate Taxes | C71: 36449.68 | D71: 31555.3 | E71: 34842.35 | F71: 6546.43 | G71: 5705.12 | H71: 33334.23 | I71: 33130.51 | J71: 33192.43 | K71: 214756.05
C73: =SUM(C6:C71) -> 962419.73 | D73: =SUM(D6:D71) -> 1080024.21 | E73: 1036895.14 | F73: 822477.26 | G73: 1129668.79 | H73: 1055927.06 | I73: 1010861.13 | J73: 1022846.03 | K73: 8121119.35

Sheet October Data
A1: Jackson Entertainment
A2: October Data
C4: DEPT 1 | D4: DEPT 2 | E4: DEPT 3 | F4: DEPT 4 | G4: DEPT 5 | H4: DEPT 6 | I4: DEPT 7 | J4: DEPT 8 | K4: TOTAL
A5: 1000 | B5: SALARIES & WAGES
A6: 1100 | B6: S & W – Exempt | C6: 9098.01 | D6: 21821.77 | E6: 8758.97 | F6: 3359.07 | G6: 33884.34 | H6: 29129.13 | I6: 11774.78 | J6: 3083.42 | K6: =SUM(C6:J6) -> 120909.49
A7: 1200 | B7: S & W – Non-Exempt | C7: 30414.04 | D7: 11205.27 | E7: 11047.31 | F7: 6544.15 | G7: 35152 | H7: 12263.82 | I7: 15821.35 | J7: 17764.67 | K7: 140212.61
A8: 1300 | B8: S & W – Officers | C8: 5698.72 | D8: 6903.43 | E8: 6446.73 | F8: 5480.94 | G8: 22029.22 | H8: 26523.95 | I8: =RANDBETWEEN(12,12000)/100 -> 8.81 | J8: 37471.95 | K8: 110563.75
A9: 1400 | B9: S & W – Incentives | C9: 18859.05 | D9: =RANDBETWEEN(12,12000)/100 -> 106.25 | E9: 5092.74 | F9: 21673.98 | G9: 12408.01 | H9: 25539.28 | I9: 19271.67 | J9: 33582.82 | K9: 136533.8
A10: 1500 | B10: S & W – Commissions | C10: 17198.16 | D10: 21273.21 | E10: 5551.14 | F10: 5621.21 | G10: =RANDBETWEEN(12,12000)/100 -> 85.21 | H10: 31326.56 | I10: 19138.54 | J10: =RANDBETWEEN(12,12000)/100 -> 93.41 | K10: 100287.44
A11: 1600 | B11: S & W – Overtime | C11: 27179.25 | D11: 15952.26 | E11: 35049.15 | F11: 6344.27 | G11: 25381.62 | H11: 4016.39 | I11: 31709.01 | J11: 27997.1 | K11: 173629.05
A12: 1700 | B12: S & W – Severence | C12: 19803.59 | D12: 34495.67 | E12: 2534.75 | F12: 18257.62 | G12: 35107.78 | H12: 2756.4 | I12: 12365.39 | J12: 32904.35 | K12: 158225.55
A14: 2000 | B14: FRINGE BENEFITS
A15: 2100 | B15: 401K Match | C15: 27352.84 | D15: 10439.55 | E15: 22575.83 | F15: 17230.83 | G15: 35782.1 | H15: 27441.6 | I15: 22378.18 | J15: 25848.74 | K15: 189049.67
A16: 2200 | B16: Allocations to Other Departments | C16: 9698.29 | D16: 5577.59 | E16: 36011.97 | F16: 32600.5 | G16: =RANDBETWEEN(12,12000)/100 -> 60.01 | H16: 11797.76 | I16: 34734.25 | J16: 19896.4 | K16: 150376.77
A17: 2300 | B17: Education Assistance / Training & Education | C17: 130.66 | D17: 5286.62 | E17: 26142.31 | F17: 36329.95 | G17: 1084.43 | H17: 28466.56 | I17: 7081.87 | J17: =RANDBETWEEN(12,12000)/100 -> 6.83 | K17: 104529.23
A18: 2400 | B18: Insurance – Workers Comp | C18: 5262.6 | D18: 26583.9 | E18: 3141.94 | F18: =RANDBETWEEN(12,12000)/100 -> 24.81 | G18: 5461.45 | H18: =RANDBETWEEN(12,12000)/100 -> 54.92 | I18: 8915.35 | J18: 30401.63 | K18: 79846.6
A19: 2500 | B19: Insurance – Medical & Dental | C19: =RANDBETWEEN(12,12000)/100 -> 3.02 | D19: 20379.11 | E19: 8648.87 | F19: 18972.33 | G19: 22975.42 | H19: 23339.78 | I19: 154.53 | J19: 15421.94 | K19: 109895
A20: 2600 | B20: Insurance – Group Life | C20: 5725.39 | D20: 21757.91 | E20: 2829.65 | F20: 996.62 | G20: 9644.55 | H20: 17102.83 | I20: =RANDBETWEEN(12,12000)/100 -> 16.54 | J20: 11055.53 | K20: 69129.02
A21: 2700 | B21: Other Miscellaneous Employee Benefits | C21: 7678.85 | D21: 3708.72 | E21: =RANDBETWEEN(12,12000)/100 -> 58.6 | F21: 36845.34 | G21: 20697.02 | H21: 24627.1 | I21: 31860 | J21: 15910.39 | K21: 141386.02
A22: 2800 | B22: PR Tax – FICA | C22: 23352.77 | D22: =RANDBETWEEN(12,12000)/100 -> 54 | E22: 10.99 | F22: 28408.81 | G22: 37876.69 | H22: 24304.09 | I22: 16245.72 | J22: 16598.69 | K22: 146851.76
A23: 2900 | B23: PR Tax – Unemployment | C23: 12805.5 | D23: 11426.7 | E23: 15805.09 | F23: 10232.31 | G23: 36604.14 | H23: 9551.99 | I23: 24150.32 | J23: 36388.67 | K23: 156964.72
A25: 3000 | B25: TRAVEL, LIVING & ENTERTAINMENT
A26: 3100 | B26: TLE – Airfares | C26: 8386.79 | D26: 36389.69 | E26: 34288.24 | F26: 8404.01 | G26: 37508.35 | H26: 16889.55 | I26: 16389.56 | J26: 28560.21 | K26: 186816.4
A27: 3200 | B27: TLE – Lodging | C27: 14047.57 | D27: 32073.41 | E27: 36191.16 | F27: 332.07 | G27: 27459.55 | H27: 3491.38 | I27: 23948.29 | J27: =RANDBETWEEN(12,12000)/100 -> 89.65 | K27: 137633.08
A28: 3300 | B28: TLE – Meals | C28: =RANDBETWEEN(12,12000)/100 -> 12.7 | D28: 20402.1 | E28: 12342.83 | F28: 21866.73 | G28: 29230.46 | H28: 24632.31 | I28: =RANDBETWEEN(12,12000)/100 -> 40.8 | J28: 15244.63 | K28: 123772.56
A29: 3400 | B29: TLE – Entertainment | C29: 31333.46 | D29: 4243.27 | E29: 28276.67 | F29: 26277.57 | G29: 15363.38 | H29: 29261.88 | I29: 25224.27 | J29: 3127.78 | K29: 163108.28
A30: 3500 | B30: TLE – Auto Leasing | C30: 33275.42 | D30: 31686.77 | E30: =RANDBETWEEN(12,12000)/100 -> 84.24 | F30: =RANDBETWEEN(12,12000)/100 -> 93.74 | G30: =RANDBETWEEN(12,12000)/100 -> 99.54 | H30: 20425.07 | I30: 32413 | J30: 18872.96 | K30: 136950.74
A31: 3600 | B31: TLE – Auto Expense | C31: 7005.62 | D31: 29174.02 | E31: 20248.59 | F31: 11917.81 | G31: 12590.3 | H31: 35752.08 | I31: =RANDBETWEEN(12,12000)/100 -> 75.08 | J31: =RANDBETWEEN(12,12000)/100 -> 32.01 | K31: 116795.51
A32: 3700 | B32: TLE – Conventions & /Seminars | C32: 30051.66 | D32: =RANDBETWEEN(12,12000)/100 -> 75.83 | E32: 35189.22 | F32: 270.08 | G32: 35404.62 | H32: 33112.98 | I32: 11358.06 | J32: 31954.76 | K32: 177417.21
A33: 3800 | B33: TLE – Miscellaneous | C33: 32958.88 | D33: 6487.75 | E33: 29564.76 | F33: =RANDBETWEEN(12,12000)/100 -> 16.73 | G33: 26200.24 | H33: 25735.04 | I33: 35761.83 | J33: 14116.99 | K33: 170842.22
A34: 3900 | B34: TLE – Cellphones & Pagers | C34: 6600.66 | D34: 21941.65 | E34: 35550.77 | F34: 13525.38 | G34: 35389.19 | H34: 31633.41 | I34: 32602.35 | J34: 21877.74 | K34: 199121.15
A36: 4000 | B36: OTHER MISCELLANEOUS EXPENSES
A37: 4100 | B37: MISC – Bad Debts | C37: 9804.63 | D37: 1932.96 | E37: 37509.19 | F37: 6603.45 | G37: 22306.11 | H37: 15977.81 | I37: 21580.8 | J37: 3081.09 | K37: 118796.04
A38: 4200 | B38: MISC – Bank Charges | C38: 21014.82 | D38: 14872.21 | E38: 11172.66 | F38: 17195.7 | G38: 19514.71 | H38: 11750.01 | I38: 25569.99 | J38: 10958.42 | K38: 132048.52
A39: 4300 | B39: MISC – Computer & Software Related | C39: 11115.29 | D39: 33460.02 | E39: 21457.06 | F39: 26967.83 | G39: 11605.15 | H39: 3448.53 | I39: 776.87 | J39: 3786.75 | K39: 112617.5
A40: 4400 | B40: MISC – Contributions / Donations | C40: 14598.91 | D40: 31713.12 | E40: 15789.22 | F40: 28305.47 | G40: 35553.51 | H40: 6794.74 | I40: 6542.56 | J40: 31086.75 | K40: 170384.28
A41: 4500 | B41: MISC – Dues & Subscriptions | C41: 19322.17 | D41: 19697.18 | E41: 24485.41 | F41: 15785.32 | G41: 28765.47 | H41: 5697.68 | I41: 11709.75 | J41: 29736.01 | K41: 155198.99
A42: 4600 | B42: MISC – Insurance – Auto & General | C42: 27893.84 | D42: 21277.79 | E42: 28267.87 | F42: 35279.79 | G42: 19676.95 | H42: 27185.97 | I42: 15009.76 | J42: 1033.11 | K42: 175625.08
A43: 4700 | B43: MISC – Office Supplies & Expense | C43: 16282.01 | D43: 28111.91 | E43: 1529.86 | F43: 232.36 | G43: 9976.1 | H43: 36105.57 | I43: 6661.84 | J43: 13954.44 | K43: 112854.09
A44: 4800 | B44: MISC – Postage | C44: 6902.88 | D44: 36695.07 | E44: 32875.02 | F44: 29071.16 | G44: 15178.78 | H44: 33624.65 | I44: 30362.86 | J44: 23073.53 | K44: 207783.95
A45: 4900 | B45: MISC – Misc. Taxes & Licenses | C45: 25356.45 | D45: 27128.7 | E45: 14440.28 | F45: 10962.42 | G45: 35802.19 | H45: 20594.7 | I45: 33248.68 | J45: 16905.12 | K45: 184438.54
A47: 5000 | B47: OUTSIDE SERVICES
A48: 5100 | B48: O / S – Advertising Expense | C48: 31843.07 | D48: 20107.81 | E48: 32688.84 | F48: 8520.39 | G48: 9706.39 | H48: 18652.66 | I48: 34946.34 | J48: 27166.46 | K48: =SUM(C48:J48) -> 183631.96
A49: 5200 | B49: O / S – Legal Fees | C49: 13283.67 | D49: 29353.07 | E49: 29136.27 | F49: 1475.46 | G49: 1187.32 | H49: 23832.87 | I49: 17092.91 | J49: 36548.5 | K49: 151910.07
A50: 5300 | B50: O / S – Accounting | C50: 12381.2 | D50: 13917.38 | E50: 26344.91 | F50: 9068.07 | G50: 27214.13 | H50: 9898.59 | I50: 12565.91 | J50: 12223.65 | K50: 123613.84
A51: 5400 | B51: O / S – Consultant Fees | C51: 35841.88 | D51: 27318.94 | E51: 33100.05 | F51: 14452.9 | G51: 3136.57 | H51: 16976.61 | I51: 2780.72 | J51: 26201.5 | K51: 159809.17
A52: 5500 | B52: O / S – Promotional Expense | C52: 28166.85 | D52: 16376.59 | E52: 471.46 | F52: 12984.52 | G52: 23543.37 | H52: 926.32 | I52: 13295.14 | J52: 36516.63 | K52: 132280.88
A53: 5600 | B53: O / S – Recruiting Fees | C53: 23972.88 | D53: 4154.42 | E53: 19268.03 | F53: 13242.48 | G53: 10069.98 | H53: 175.95 | I53: 26547.52 | J53: 25739.01 | K53: 123170.27
A54: 5700 | B54: O / S – Contract Labor | C54: 11457.88 | D54: 22630.02 | E54: 27930.12 | F54: 19577.58 | G54: 23080.63 | H54: 14963.98 | I54: 24978.85 | J54: 8658.28 | K54: 153277.34
A55: 5800 | B55: O / S – Janitorial Service | C55: 37916.11 | D55: 5626.46 | E55: 36567.6 | F55: 29574.14 | G55: 34838.28 | H55: 30832.26 | I55: 8267.73 | J55: 19487.31 | K55: 203109.89
A56: 5900 | B56: O / S – Security | C56: 22888.16 | D56: 29041.24 | E56: 27238.53 | F56: 11698.07 | G56: 37860.56 | H56: 32763.76 | I56: 24506.02 | J56: 25084.12 | K56: 211080.46
A58: 6000 | B58: RENTALS & LEASES
A59: 6100 | B59: RENTALS Office Rent | C59: 22386.52 | D59: 34924.8 | E59: 28175.88 | F59: 22556.44 | G59: 9197.18 | H59: 17127.11 | I59: 27827.5 | J59: 24908.69 | K59: 187104.12
A60: 6200 | B60: RENTALS Equipment Rental | C60: 16792.22 | D60: 23877.54 | E60: 13393.53 | F60: 20218.46 | G60: 24092.07 | H60: 36903.68 | I60: 23438.94 | J60: 13688.37 | K60: 172404.81
A61: 6300 | B61: RENTALS Office Equipment | C61: 22925.38 | D61: 24451.76 | E61: 11284.72 | F61: 24490.22 | G61: 17081.98 | H61: 7365.5 | I61: 8645.92 | J61: 21712.17 | K61: 137957.65
A62: 6400 | B62: RENTALS Vehicle Leases | C62: 6212.37 | D62: 15570.33 | E62: 16274.99 | F62: 20675.77 | G62: 33315.68 | H62: 12830.5 | I62: 36877.18 | J62: 27012.61 | K62: 168769.43
A64: 7000 | B64: FACILITIES
A65: 7100 | B65: FAC – Telephone & Fax | C65: 16551 | D65: 36295.55 | E65: 9107.85 | F65: 25243.85 | G65: 20808.97 | H65: 29619.26 | I65: 29705.02 | J65: 32341.93 | K65: 199673.43
A66: 7200 | B66: FAC – Utilities | C66: 13318.13 | D66: 29940.92 | E66: 4942.71 | F66: 29777.92 | G66: 34608.24 | H66: 29053.35 | I66: 22478.86 | J66: 21831.93 | K66: 185952.06
A67: 7300 | B67: FAC – Electricity | C67: 8845.75 | D67: 21007.57 | E67: 4601.98 | F67: 6877.61 | G67: 3885.28 | H67: 19736.88 | I67: 19341.09 | J67: 732.95 | K67: 85029.11
A68: 7400 | B68: FAC – Water | C68: 18853.83 | D68: 25384.46 | E68: 30840.99 | F68: 23806.2 | G68: 34835.15 | H68: 33340.92 | I68: 15654.91 | J68: 6662.94 | K68: 189379.4
A69: 7500 | B69: FAC – Repairs – Building | C69: 11697.92 | D69: 31610.93 | E69: 12915.26 | F69: 15807.47 | G69: 15502.05 | H69: 1774.06 | I69: 30836.6 | J69: 17348.43 | K69: 137492.72
A70: 7600 | B70: FAC – Repairs – Office Equipment | C70: 34317.27 | D70: 22678.73 | E70: 28754.53 | F70: 3780.86 | G70: 8108.83 | H70: 5429.3 | I70: 12976.72 | J70: 13881.41 | K70: =SUM(C70:J70) -> 129927.65
A71: 7700 | B71: FAC – Real Estate Taxes | C71: 36449.68 | D71: 31555.3 | E71: 34842.35 | F71: 6546.43 | G71: 5705.12 | H71: 33334.23 | I71: 33130.51 | J71: 33192.43 | K71: 214756.05
C73: =SUM(C6:C71) -> 962326.27 | D73: =SUM(D6:D71) -> 1080159.23 | E73: 1036849.69 | F73: 822405.2 | G73: 1129636.37 | H73: 1055893.31 | I73: 1010797.05 | J73: 1022857.81 | K73: 8120924.93

Sheet November Data
A1: Jackson Entertainment
A2: November Data
C4: DEPT 1 | D4: DEPT 2 | E4: DEPT 3 | F4: DEPT 4 | G4: DEPT 5 | H4: DEPT 6 | I4: DEPT 7 | J4: DEPT 8 | K4: TOTAL
A5: 1000 | B5: SALARIES & WAGES
A6: 1100 | B6: S & W – Exempt | C6: 9098.01 | D6: 21821.77 | E6: 8758.97 | F6: 3359.07 | G6: 33884.34 | H6: 29129.13 | I6: 11774.78 | J6: 3083.42 | K6: =SUM(C6:J6) -> 120909.49
A7: 1200 | B7: S & W – Non-Exempt | C7: 30414.04 | D7: 11205.27 | E7: 11047.31 | F7: 6544.15 | G7: 35152 | H7: 12263.82 | I7: 15821.35 | J7: 17764.67 | K7: 140212.61
A8: 1300 | B8: S & W – Officers | C8: 5698.72 | D8: 6903.43 | E8: 6446.73 | F8: 5480.94 | G8: 22029.22 | H8: 26523.95 | I8: =RANDBETWEEN(12,12000)/100 -> 36.74 | J8: 37471.95 | K8: 110591.68
A9: 1400 | B9: S & W – Incentives | C9: 18859.05 | D9: =RANDBETWEEN(12,12000)/100 -> 64.84 | E9: 5092.74 | F9: 21673.98 | G9: 12408.01 | H9: 25539.28 | I9: 19271.67 | J9: 33582.82 | K9: 136492.39
A10: 1500 | B10: S & W – Commissions | C10: 17198.16 | D10: 21273.21 | E10: 5551.14 | F10: 5621.21 | G10: =RANDBETWEEN(12,12000)/100 -> 12.86 | H10: 31326.56 | I10: 19138.54 | J10: =RANDBETWEEN(12,12000)/100 -> 49.94 | K10: 100171.62
A11: 1600 | B11: S & W – Overtime | C11: 27179.25 | D11: 15952.26 | E11: 35049.15 | F11: 6344.27 | G11: 25381.62 | H11: 4016.39 | I11: 31709.01 | J11: 27997.1 | K11: 173629.05
A12: 1700 | B12: S & W – Severence | C12: 19803.59 | D12: 34495.67 | E12: 2534.75 | F12: 18257.62 | G12: 35107.78 | H12: 2756.4 | I12: 12365.39 | J12: 32904.35 | K12: 158225.55
A14: 2000 | B14: FRINGE BENEFITS
A15: 2100 | B15: 401K Match | C15: 27352.84 | D15: 10439.55 | E15: 22575.83 | F15: 17230.83 | G15: 35782.1 | H15: 27441.6 | I15: 22378.18 | J15: 25848.74 | K15: 189049.67
A16: 2200 | B16: Allocations to Other Departments | C16: 9698.29 | D16: 5577.59 | E16: 36011.97 | F16: 32600.5 | G16: =RANDBETWEEN(12,12000)/100 -> 59.85 | H16: 11797.76 | I16: 34734.25 | J16: 19896.4 | K16: 150376.61
A17: 2300 | B17: Education Assistance / Training & Education | C17: 130.66 | D17: 5286.62 | E17: 26142.31 | F17: 36329.95 | G17: 1084.43 | H17: 28466.56 | I17: 7081.87 | J17: =RANDBETWEEN(12,12000)/100 -> 38.98 | K17: 104561.38
A18: 2400 | B18: Insurance – Workers Comp | C18: 5262.6 | D18: 26583.9 | E18: 3141.94 | F18: =RANDBETWEEN(12,12000)/100 -> 72.85 | G18: 5461.45 | H18: =RANDBETWEEN(12,12000)/100 -> 40.83 | I18: 8915.35 | J18: 30401.63 | K18: 79880.55
A19: 2500 | B19: Insurance – Medical & Dental | C19: =RANDBETWEEN(12,12000)/100 -> 47.99 | D19: 20379.11 | E19: 8648.87 | F19: 18972.33 | G19: 22975.42 | H19: 23339.78 | I19: 154.53 | J19: 15421.94 | K19: 109939.97
A20: 2600 | B20: Insurance – Group Life | C20: 5725.39 | D20: 21757.91 | E20: 2829.65 | F20: 996.62 | G20: 9644.55 | H20: 17102.83 | I20: =RANDBETWEEN(12,12000)/100 -> 79.26 | J20: 11055.53 | K20: 69191.74
A21: 2700 | B21: Other Miscellaneous Employee Benefits | C21: 7678.85 | D21: 3708.72 | E21: =RANDBETWEEN(12,12000)/100 -> 35.29 | F21: 36845.34 | G21: 20697.02 | H21: 24627.1 | I21: 31860 | J21: 15910.39 | K21: 141362.71
A22: 2800 | B22: PR Tax – FICA | C22: 23352.77 | D22: =RANDBETWEEN(12,12000)/100 -> 20.99 | E22: 45.13 | F22: 28408.81 | G22: 37876.69 | H22: 24304.09 | I22: 16245.72 | J22: 16598.69 | K22: 146852.89
A23: 2900 | B23: PR Tax – Unemployment | C23: 12805.5 | D23: 11426.7 | E23: 15805.09 | F23: 10232.31 | G23: 36604.14 | H23: 9551.99 | I23: 24150.32 | J23: 36388.67 | K23: 156964.72
A25: 3000 | B25: TRAVEL, LIVING & ENTERTAINMENT
A26: 3100 | B26: TLE – Airfares | C26: 8386.79 | D26: 36389.69 | E26: 34288.24 | F26: 8404.01 | G26: 37508.35 | H26: 16889.55 | I26: 16389.56 | J26: 28560.21 | K26: 186816.4
A27: 3200 | B27: TLE – Lodging | C27: 14047.57 | D27: 32073.41 | E27: 36191.16 | F27: 332.07 | G27: 27459.55 | H27: 3491.38 | I27: 23948.29 | J27: =RANDBETWEEN(12,12000)/100 -> 105.74 | K27: 137649.17
A28: 3300 | B28: TLE – Meals | C28: =RANDBETWEEN(12,12000)/100 -> 12.45 | D28: 20402.1 | E28: 12342.83 | F28: 21866.73 | G28: 29230.46 | H28: 24632.31 | I28: =RANDBETWEEN(12,12000)/100 -> 76.14 | J28: 15244.63 | K28: 123807.65
A29: 3400 | B29: TLE – Entertainment | C29: 31333.46 | D29: 4243.27 | E29: 28276.67 | F29: 26277.57 | G29: 15363.38 | H29: 29261.88 | I29: 25224.27 | J29: 3127.78 | K29: 163108.28
A30: 3500 | B30: TLE – Auto Leasing | C30: 33275.42 | D30: 31686.77 | E30: =RANDBETWEEN(12,12000)/100 -> 96.98 | F30: =RANDBETWEEN(12,12000)/100 -> 61.93 | G30: =RANDBETWEEN(12,12000)/100 -> 61.45 | H30: 20425.07 | I30: 32413 | J30: 18872.96 | K30: 136893.58
A31: 3600 | B31: TLE – Auto Expense | C31: 7005.62 | D31: 29174.02 | E31: 20248.59 | F31: 11917.81 | G31: 12590.3 | H31: 35752.08 | I31: =RANDBETWEEN(12,12000)/100 -> 88.85 | J31: =RANDBETWEEN(12,12000)/100 -> 67.86 | K31: 116845.13
A32: 3700 | B32: TLE – Conventions & /Seminars | C32: 30051.66 | D32: =RANDBETWEEN(12,12000)/100 -> 63.05 | E32: 35189.22 | F32: 270.08 | G32: 35404.62 | H32: 33112.98 | I32: 11358.06 | J32: 31954.76 | K32: 177404.43
A33: 3800 | B33: TLE – Miscellaneous | C33: 32958.88 | D33: 6487.75 | E33: 29564.76 | F33: =RANDBETWEEN(12,12000)/100 -> 96.74 | G33: 26200.24 | H33: 25735.04 | I33: 35761.83 | J33: 14116.99 | K33: 170922.23
A34: 3900 | B34: TLE – Cellphones & Pagers | C34: 6600.66 | D34: 21941.65 | E34: 35550.77 | F34: 13525.38 | G34: 35389.19 | H34: 31633.41 | I34: 32602.35 | J34: 21877.74 | K34: 199121.15
A36: 4000 | B36: OTHER MISCELLANEOUS EXPENSES
A37: 4100 | B37: MISC – Bad Debts | C37: 9804.63 | D37: 1932.96 | E37: 37509.19 | F37: 6603.45 | G37: 22306.11 | H37: 15977.81 | I37: 21580.8 | J37: 3081.09 | K37: 118796.04
A38: 4200 | B38: MISC – Bank Charges | C38: 21014.82 | D38: 14872.21 | E38: 11172.66 | F38: 17195.7 | G38: 19514.71 | H38: 11750.01 | I38: 25569.99 | J38: 10958.42 | K38: 132048.52
A39: 4300 | B39: MISC – Computer & Software Related | C39: 11115.29 | D39: 33460.02 | E39: 21457.06 | F39: 26967.83 | G39: 11605.15 | H39: 3448.53 | I39: 776.87 | J39: 3786.75 | K39: 112617.5
A40: 4400 | B40: MISC – Contributions / Donations | C40: 14598.91 | D40: 31713.12 | E40: 15789.22 | F40: 28305.47 | G40: 35553.51 | H40: 6794.74 | I40: 6542.56 | J40: 31086.75 | K40: 170384.28
A41: 4500 | B41: MISC – Dues & Subscriptions | C41: 19322.17 | D41: 19697.18 | E41: 24485.41 | F41: 15785.32 | G41: 28765.47 | H41: 5697.68 | I41: 11709.75 | J41: 29736.01 | K41: 155198.99
A42: 4600 | B42: MISC – Insurance – Auto & General | C42: 27893.84 | D42: 21277.79 | E42: 28267.87 | F42: 35279.79 | G42: 19676.95 | H42: 27185.97 | I42: 15009.76 | J42: 1033.11 | K42: 175625.08
A43: 4700 | B43: MISC – Office Supplies & Expense | C43: 16282.01 | D43: 28111.91 | E43: 1529.86 | F43: 232.36 | G43: 9976.1 | H43: 36105.57 | I43: 6661.84 | J43: 13954.44 | K43: 112854.09
A44: 4800 | B44: MISC – Postage | C44: 6902.88 | D44: 36695.07 | E44: 32875.02 | F44: 29071.16 | G44: 15178.78 | H44: 33624.65 | I44: 30362.86 | J44: 23073.53 | K44: 207783.95
A45: 4900 | B45: MISC – Misc. Taxes & Licenses | C45: 25356.45 | D45: 27128.7 | E45: 14440.28 | F45: 10962.42 | G45: 35802.19 | H45: 20594.7 | I45: 33248.68 | J45: 16905.12 | K45: 184438.54
A47: 5000 | B47: OUTSIDE SERVICES
A48: 5100 | B48: O / S – Advertising Expense | C48: 31843.07 | D48: 20107.81 | E48: 32688.84 | F48: 8520.39 | G48: 9706.39 | H48: 18652.66 | I48: 34946.34 | J48: 27166.46 | K48: =SUM(C48:J48) -> 183631.96
A49: 5200 | B49: O / S – Legal Fees | C49: 13283.67 | D49: 29353.07 | E49: 29136.27 | F49: 1475.46 | G49: 1187.32 | H49: 23832.87 | I49: 17092.91 | J49: 36548.5 | K49: 151910.07
A50: 5300 | B50: O / S – Accounting | C50: 12381.2 | D50: 13917.38 | E50: 26344.91 | F50: 9068.07 | G50: 27214.13 | H50: 9898.59 | I50: 12565.91 | J50: 12223.65 | K50: 123613.84
A51: 5400 | B51: O / S – Consultant Fees | C51: 35841.88 | D51: 27318.94 | E51: 33100.05 | F51: 14452.9 | G51: 3136.57 | H51: 16976.61 | I51: 2780.72 | J51: 26201.5 | K51: 159809.17
A52: 5500 | B52: O / S – Promotional Expense | C52: 28166.85 | D52: 16376.59 | E52: 471.46 | F52: 12984.52 | G52: 23543.37 | H52: 926.32 | I52: 13295.14 | J52: 36516.63 | K52: 132280.88
A53: 5600 | B53: O / S – Recruiting Fees | C53: 23972.88 | D53: 4154.42 | E53: 19268.03 | F53: 13242.48 | G53: 10069.98 | H53: 175.95 | I53: 26547.52 | J53: 25739.01 | K53: 123170.27
A54: 5700 | B54: O / S – Contract Labor | C54: 11457.88 | D54: 22630.02 | E54: 27930.12 | F54: 19577.58 | G54: 23080.63 | H54: 14963.98 | I54: 24978.85 | J54: 8658.28 | K54: 153277.34
A55: 5800 | B55: O / S – Janitorial Service | C55: 37916.11 | D55: 5626.46 | E55: 36567.6 | F55: 29574.14 | G55: 34838.28 | H55: 30832.26 | I55: 8267.73 | J55: 19487.31 | K55: 203109.89
A56: 5900 | B56: O / S – Security | C56: 22888.16 | D56: 29041.24 | E56: 27238.53 | F56: 11698.07 | G56: 37860.56 | H56: 32763.76 | I56: 24506.02 | J56: 25084.12 | K56: 211080.46
A58: 6000 | B58: RENTALS & LEASES
A59: 6100 | B59: RENTALS Office Rent | C59: 22386.52 | D59: 34924.8 | E59: 28175.88 | F59: 22556.44 | G59: 9197.18 | H59: 17127.11 | I59: 27827.5 | J59: 24908.69 | K59: 187104.12
A60: 6200 | B60: RENTALS Equipment Rental | C60: 16792.22 | D60: 23877.54 | E60: 13393.53 | F60: 20218.46 | G60: 24092.07 | H60: 36903.68 | I60: 23438.94 | J60: 13688.37 | K60: 172404.81
A61: 6300 | B61: RENTALS Office Equipment | C61: 22925.38 | D61: 24451.76 | E61: 11284.72 | F61: 24490.22 | G61: 17081.98 | H61: 7365.5 | I61: 8645.92 | J61: 21712.17 | K61: 137957.65
A62: 6400 | B62: RENTALS Vehicle Leases | C62: 6212.37 | D62: 15570.33 | E62: 16274.99 | F62: 20675.77 | G62: 33315.68 | H62: 12830.5 | I62: 36877.18 | J62: 27012.61 | K62: 168769.43
A64: 7000 | B64: FACILITIES
A65: 7100 | B65: FAC – Telephone & Fax | C65: 16551 | D65: 36295.55 | E65: 9107.85 | F65: 25243.85 | G65: 20808.97 | H65: 29619.26 | I65: 29705.02 | J65: 32341.93 | K65: 199673.43
A66: 7200 | B66: FAC – Utilities | C66: 13318.13 | D66: 29940.92 | E66: 4942.71 | F66: 29777.92 | G66: 34608.24 | H66: 29053.35 | I66: 22478.86 | J66: 21831.93 | K66: 185952.06
A67: 7300 | B67: FAC – Electricity | C67: 8845.75 | D67: 21007.57 | E67: 4601.98 | F67: 6877.61 | G67: 3885.28 | H67: 19736.88 | I67: 19341.09 | J67: 732.95 | K67: 85029.11
A68: 7400 | B68: FAC – Water | C68: 18853.83 | D68: 25384.46 | E68: 30840.99 | F68: 23806.2 | G68: 34835.15 | H68: 33340.92 | I68: 15654.91 | J68: 6662.94 | K68: 189379.4
A69: 7500 | B69: FAC – Repairs – Building | C69: 11697.92 | D69: 31610.93 | E69: 12915.26 | F69: 15807.47 | G69: 15502.05 | H69: 1774.06 | I69: 30836.6 | J69: 17348.43 | K69: 137492.72
A70: 7600 | B70: FAC – Repairs – Office Equipment | C70: 34317.27 | D70: 22678.73 | E70: 28754.53 | F70: 3780.86 | G70: 8108.83 | H70: 5429.3 | I70: 12976.72 | J70: 13881.41 | K70: =SUM(C70:J70) -> 129927.65
A71: 7700 | B71: FAC – Real Estate Taxes | C71: 36449.68 | D71: 31555.3 | E71: 34842.35 | F71: 6546.43 | G71: 5705.12 | H71: 33334.23 | I71: 33130.51 | J71: 33192.43 | K71: 214756.05
C73: =SUM(C6:C71) -> 962370.99 | D73: =SUM(D6:D71) -> 1080072.03 | E73: 1036873.26 | F73: 822501.44 | G73: 1129525.77 | H73: 1055879.22 | I73: 1010936.81 | J73: 1022898.43 | K73: 8121057.95

Sheet December Data
A1: Jackson Entertainment
A2: December data
C4: DEPT 1 | D4: DEPT 2 | E4: DEPT 3 | F4: DEPT 4 | G4: DEPT 5 | H4: DEPT 6 | I4: DEPT 7 | J4: DEPT 8 | K4: TOTAL
A5: 1000 | B5: SALARIES & WAGES
A6: 1100 | B6: S & W – Exempt | C6: 9098.01 | D6: 21821.77 | E6: 8758.97 | F6: 3359.07 | G6: 33884.34 | H6: 29129.13 | I6: 11774.78 | J6: 3083.42 | K6: =SUM(C6:J6) -> 120909.49
A7: 1200 | B7: S & W – Non-Exempt | C7: 30414.04 | D7: 11205.27 | E7: 11047.31 | F7: 6544.15 | G7: 35152 | H7: 12263.82 | I7: 15821.35 | J7: 17764.67 | K7: 140212.61
A8: 1300 | B8: S & W – Officers | C8: 5698.72 | D8: 6903.43 | E8: 6446.73 | F8: 5480.94 | G8: 22029.22 | H8: 26523.95 | I8: =RANDBETWEEN(12,12000)/100 -> 11.58 | J8: 37471.95 | K8: 110566.52
A9: 1400 | B9: S & W – Incentives | C9: 18859.05 | D9: =RANDBETWEEN(12,12000)/100 -> 81.35 | E9: 5092.74 | F9: 21673.98 | G9: 12408.01 | H9: 25539.28 | I9: 19271.67 | J9: 33582.82 | K9: 136508.9
A10: 1500 | B10: S & W – Commissions | C10: 17198.16 | D10: 21273.21 | E10: 5551.14 | F10: 5621.21 | G10: =RANDBETWEEN(12,12000)/100 -> 63 | H10: 31326.56 | I10: 19138.54 | J10: =RANDBETWEEN(12,12000)/100 -> 2.45 | K10: 100174.27
A11: 1600 | B11: S & W – Overtime | C11: 27179.25 | D11: 15952.26 | E11: 35049.15 | F11: 6344.27 | G11: 25381.62 | H11: 4016.39 | I11: 31709.01 | J11: 27997.1 | K11: 173629.05
A12: 1700 | B12: S & W – Severence | C12: 19803.59 | D12: 34495.67 | E12: 2534.75 | F12: 18257.62 | G12: 35107.78 | H12: 2756.4 | I12: 12365.39 | J12: 32904.35 | K12: 158225.55
A14: 2000 | B14: FRINGE BENEFITS
A15: 2100 | B15: 401K Match | C15: 27352.84 | D15: 10439.55 | E15: 22575.83 | F15: 17230.83 | G15: 35782.1 | H15: 27441.6 | I15: 22378.18 | J15: 25848.74 | K15: 189049.67
A16: 2200 | B16: Allocations to Other Departments | C16: 9698.29 | D16: 5577.59 | E16: 36011.97 | F16: 32600.5 | G16: =RANDBETWEEN(12,12000)/100 -> 51.3 | H16: 11797.76 | I16: 34734.25 | J16: 19896.4 | K16: 150368.06
A17: 2300 | B17: Education Assistance / Training & Education | C17: 130.66 | D17: 5286.62 | E17: 26142.31 | F17: 36329.95 | G17: 1084.43 | H17: 28466.56 | I17: 7081.87 | J17: =RANDBETWEEN(12,12000)/100 -> 81.75 | K17: 104604.15
A18: 2400 | B18: Insurance – Workers Comp | C18: 5262.6 | D18: 26583.9 | E18: 3141.94 | F18: =RANDBETWEEN(12,12000)/100 -> 94.12 | G18: 5461.45 | H18: =RANDBETWEEN(12,12000)/100 -> 112.86 | I18: 8915.35 | J18: 30401.63 | K18: 79973.85
A19: 2500 | B19: Insurance – Medical & Dental | C19: =RANDBETWEEN(12,12000)/100 -> 93.79 | D19: 20379.11 | E19: 8648.87 | F19: 18972.33 | G19: 22975.42 | H19: 23339.78 | I19: 154.53 | J19: 15421.94 | K19: 109985.77
A20: 2600 | B20: Insurance – Group Life | C20: 5725.39 | D20: 21757.91 | E20: 2829.65 | F20: 996.62 | G20: 9644.55 | H20: 17102.83 | I20: =RANDBETWEEN(12,12000)/100 -> 4.48 | J20: 11055.53 | K20: 69116.96
A21: 2700 | B21: Other Miscellaneous Employee Benefits | C21: 7678.85 | D21: 3708.72 | E21: =RANDBETWEEN(12,12000)/100 -> 50.6 | F21: 36845.34 | G21: 20697.02 | H21: 24627.1 | I21: 31860 | J21: 15910.39 | K21: 141378.02
A22: 2800 | B22: PR Tax – FICA | C22: 23352.77 | D22: =RANDBETWEEN(12,12000)/100 -> 35.7 | E22: 103.6 | F22: 28408.81 | G22: 37876.69 | H22: 24304.09 | I22: 16245.72 | J22: 16598.69 | K22: 146926.07
A23: 2900 | B23: PR Tax – Unemployment | C23: 12805.5 | D23: 11426.7 | E23: 15805.09 | F23: 10232.31 | G23: 36604.14 | H23: 9551.99 | I23: 24150.32 | J23: 36388.67 | K23: 156964.72
A25: 3000 | B25: TRAVEL, LIVING & ENTERTAINMENT
A26: 3100 | B26: TLE – Airfares | C26: 8386.79 | D26: 36389.69 | E26: 34288.24 | F26: 8404.01 | G26: 37508.35 | H26: 16889.55 | I26: 16389.56 | J26: 28560.21 | K26: 186816.4
A27: 3200 | B27: TLE – Lodging | C27: 14047.57 | D27: 32073.41 | E27: 36191.16 | F27: 332.07 | G27: 27459.55 | H27: 3491.38 | I27: 23948.29 | J27: =RANDBETWEEN(12,12000)/100 -> 62.81 | K27: 137606.24
A28: 3300 | B28: TLE – Meals | C28: =RANDBETWEEN(12,12000)/100 -> 97.55 | D28: 20402.1 | E28: 12342.83 | F28: 21866.73 | G28: 29230.46 | H28: 24632.31 | I28: =RANDBETWEEN(12,12000)/100 -> 18.34 | J28: 15244.63 | K28: 123834.95
A29: 3400 | B29: TLE – Entertainment | C29: 31333.46 | D29: 4243.27 | E29: 28276.67 | F29: 26277.57 | G29: 15363.38 | H29: 29261.88 | I29: 25224.27 | J29: 3127.78 | K29: 163108.28
A30: 3500 | B30: TLE – Auto Leasing | C30: 33275.42 | D30: 31686.77 | E30: =RANDBETWEEN(12,12000)/100 -> 103.46 | F30: =RANDBETWEEN(12,12000)/100 -> 14.22 | G30: =RANDBETWEEN(12,12000)/100 -> 41.12 | H30: 20425.07 | I30: 32413 | J30: 18872.96 | K30: 136832.02
A31: 3600 | B31: TLE – Auto Expense | C31: 7005.62 | D31: 29174.02 | E31: 20248.59 | F31: 11917.81 | G31: 12590.3 | H31: 35752.08 | I31: =RANDBETWEEN(12,12000)/100 -> 84.54 | J31: =RANDBETWEEN(12,12000)/100 -> 83.22 | K31: 116856.18
A32: 3700 | B32: TLE – Conventions & /Seminars | C32: 30051.66 | D32: =RANDBETWEEN(12,12000)/100 -> 23.94 | E32: 35189.22 | F32: 270.08 | G32: 35404.62 | H32: 33112.98 | I32: 11358.06 | J32: 31954.76 | K32: 177365.32
A33: 3800 | B33: TLE – Miscellaneous | C33: 32958.88 | D33: 6487.75 | E33: 29564.76 | F33: =RANDBETWEEN(12,12000)/100 -> 38.54 | G33: 26200.24 | H33: 25735.04 | I33: 35761.83 | J33: 14116.99 | K33: 170864.03
A34: 3900 | B34: TLE – Cellphones & Pagers | C34: 6600.66 | D34: 21941.65 | E34: 35550.77 | F34: 13525.38 | G34: 35389.19 | H34: 31633.41 | I34: 32602.35 | J34: 21877.74 | K34: 199121.15
A36: 4000 | B36: OTHER MISCELLANEOUS EXPENSES
A37: 4100 | B37: MISC – Bad Debts | C37: 9804.63 | D37: 1932.96 | E37: 37509.19 | F37: 6603.45 | G37: 22306.11 | H37: 15977.81 | I37: 21580.8 | J37: 3081.09 | K37: 118796.04
A38: 4200 | B38: MISC – Bank Charges | C38: 21014.82 | D38: 14872.21 | E38: 11172.66 | F38: 17195.7 | G38: 19514.71 | H38: 11750.01 | I38: 25569.99 | J38: 10958.42 | K38: 132048.52
A39: 4300 | B39: MISC – Computer & Software Related | C39: 11115.29 | D39: 33460.02 | E39: 21457.06 | F39: 26967.83 | G39: 11605.15 | H39: 3448.53 | I39: 776.87 | J39: 3786.75 | K39: 112617.5
A40: 4400 | B40: MISC – Contributions / Donations | C40: 14598.91 | D40: 31713.12 | E40: 15789.22 | F40: 28305.47 | G40: 35553.51 | H40: 6794.74 | I40: 6542.56 | J40: 31086.75 | K40: 170384.28
A41: 4500 | B41: MISC – Dues & Subscriptions | C41: 19322.17 | D41: 19697.18 | E41: 24485.41 | F41: 15785.32 | G41: 28765.47 | H41: 5697.68 | I41: 11709.75 | J41: 29736.01 | K41: 155198.99
A42: 4600 | B42: MISC – Insurance – Auto & General | C42: 27893.84 | D42: 21277.79 | E42: 28267.87 | F42: 35279.79 | G42: 19676.95 | H42: 27185.97 | I42: 15009.76 | J42: 1033.11 | K42: 175625.08
A43: 4700 | B43: MISC – Office Supplies & Expense | C43: 16282.01 | D43: 28111.91 | E43: 1529.86 | F43: 232.36 | G43: 9976.1 | H43: 36105.57 | I43: 6661.84 | J43: 13954.44 | K43: 112854.09
A44: 4800 | B44: MISC – Postage | C44: 6902.88 | D44: 36695.07 | E44: 32875.02 | F44: 29071.16 | G44: 15178.78 | H44: 33624.65 | I44: 30362.86 | J44: 23073.53 | K44: 207783.95
A45: 4900 | B45: MISC – Misc. Taxes & Licenses | C45: 25356.45 | D45: 27128.7 | E45: 14440.28 | F45: 10962.42 | G45: 35802.19 | H45: 20594.7 | I45: 33248.68 | J45: 16905.12 | K45: 184438.54
A47: 5000 | B47: OUTSIDE SERVICES
A48: 5100 | B48: O / S – Advertising Expense | C48: 31843.07 | D48: 20107.81 | E48: 32688.84 | F48: 8520.39 | G48: 9706.39 | H48: 18652.66 | I48: 34946.34 | J48: 27166.46 | K48: =SUM(C48:J48) -> 183631.96
A49: 5200 | B49: O / S – Legal Fees | C49: 13283.67 | D49: 29353.07 | E49: 29136.27 | F49: 1475.46 | G49: 1187.32 | H49: 23832.87 | I49: 17092.91 | J49: 36548.5 | K49: 151910.07
A50: 5300 | B50: O / S – Accounting | C50: 12381.2 | D50: 13917.38 | E50: 26344.91 | F50: 9068.07 | G50: 27214.13 | H50: 9898.59 | I50: 12565.91 | J50: 12223.65 | K50: 123613.84
A51: 5400 | B51: O / S – Consultant Fees | C51: 35841.88 | D51: 27318.94 | E51: 33100.05 | F51: 14452.9 | G51: 3136.57 | H51: 16976.61 | I51: 2780.72 | J51: 26201.5 | K51: 159809.17
A52: 5500 | B52: O / S – Promotional Expense | C52: 28166.85 | D52: 16376.59 | E52: 471.46 | F52: 12984.52 | G52: 23543.37 | H52: 926.32 | I52: 13295.14 | J52: 36516.63 | K52: 132280.88
A53: 5600 | B53: O / S – Recruiting Fees | C53: 23972.88 | D53: 4154.42 | E53: 19268.03 | F53: 13242.48 | G53: 10069.98 | H53: 175.95 | I53: 26547.52 | J53: 25739.01 | K53: 123170.27
A54: 5700 | B54: O / S – Contract Labor | C54: 11457.88 | D54: 22630.02 | E54: 27930.12 | F54: 19577.58 | G54: 23080.63 | H54: 14963.98 | I54: 24978.85 | J54: 8658.28 | K54: 153277.34
A55: 5800 | B55: O / S – Janitorial Service | C55: 37916.11 | D55: 5626.46 | E55: 36567.6 | F55: 29574.14 | G55: 34838.28 | H55: 30832.26 | I55: 8267.73 | J55: 19487.31 | K55: 203109.89
A56: 5900 | B56: O / S – Security | C56: 22888.16 | D56: 29041.24 | E56: 27238.53 | F56: 11698.07 | G56: 37860.56 | H56: 32763.76 | I56: 24506.02 | J56: 25084.12 | K56: 211080.46
A58: 6000 | B58: RENTALS & LEASES
A59: 6100 | B59: RENTALS Office Rent | C59: 22386.52 | D59: 34924.8 | E59: 28175.88 | F59: 22556.44 | G59: 9197.18 | H59: 17127.11 | I59: 27827.5 | J59: 24908.69 | K59: 187104.12
A60: 6200 | B60: RENTALS Equipment Rental | C60: 16792.22 | D60: 23877.54 | E60: 13393.53 | F60: 20218.46 | G60: 24092.07 | H60: 36903.68 | I60: 23438.94 | J60: 13688.37 | K60: 172404.81
A61: 6300 | B61: RENTALS Office Equipment | C61: 22925.38 | D61: 24451.76 | E61: 11284.72 | F61: 24490.22 | G61: 17081.98 | H61: 7365.5 | I61: 8645.92 | J61: 21712.17 | K61: 137957.65
A62: 6400 | B62: RENTALS Vehicle Leases | C62: 6212.37 | D62: 15570.33 | E62: 16274.99 | F62: 20675.77 | G62: 33315.68 | H62: 12830.5 | I62: 36877.18 | J62: 27012.61 | K62: 168769.43
A64: 7000 | B64: FACILITIES
A65: 7100 | B65: FAC – Telephone & Fax | C65: 16551 | D65: 36295.55 | E65: 9107.85 | F65: 25243.85 | G65: 20808.97 | H65: 29619.26 | I65: 29705.02 | J65: 32341.93 | K65: 199673.43
A66: 7200 | B66: FAC – Utilities | C66: 13318.13 | D66: 29940.92 | E66: 4942.71 | F66: 29777.92 | G66: 34608.24 | H66: 29053.35 | I66: 22478.86 | J66: 21831.93 | K66: 185952.06
A67: 7300 | B67: FAC – Electricity | C67: 8845.75 | D67: 21007.57 | E67: 4601.98 | F67: 6877.61 | G67: 3885.28 | H67: 19736.88 | I67: 19341.09 | J67: 732.95 | K67: 85029.11
A68: 7400 | B68: FAC – Water | C68: 18853.83 | D68: 25384.46 | E68: 30840.99 | F68: 23806.2 | G68: 34835.15 | H68: 33340.92 | I68: 15654.91 | J68: 6662.94 | K68: 189379.4
A69: 7500 | B69: FAC – Repairs – Building | C69: 11697.92 | D69: 31610.93 | E69: 12915.26 | F69: 15807.47 | G69: 15502.05 | H69: 1774.06 | I69: 30836.6 | J69: 17348.43 | K69: 137492.72
A70: 7600 | B70: FAC – Repairs – Office Equipment | C70: 34317.27 | D70: 22678.73 | E70: 28754.53 | F70: 3780.86 | G70: 8108.83 | H70: 5429.3 | I70: 12976.72 | J70: 13881.41 | K70: =SUM(C70:J70) -> 129927.65
A71: 7700 | B71: FAC – Real Estate Taxes | C71: 36449.68 | D71: 31555.3 | E71: 34842.35 | F71: 6546.43 | G71: 5705.12 | H71: 33334.23 | I71: 33130.51 | J71: 33192.43 | K71: 214756.05
C73: =SUM(C6:C71) -> 962501.89 | D73: =SUM(D6:D71) -> 1080064.14 | E73: 1036953.52 | F73: 822416.8 | G73: 1129547.03 | H73: 1055951.25 | I73: 1010774.76 | J73: 1022866.14 | K73: 8121075.53

Sheet Income Statement
A1: Jackson Entertainment
A2: income Statement
C4: DEPT 1 | D4: DEPT 2 | E4: DEPT 3 | F4: DEPT 4 | G4: DEPT 5 | H4: DEPT 6 | I4: DEPT 7 | J4: DEPT 8 | K4: TOTAL
A5: 1000 | B5: SALARIES & WAGES
A6: 1100 | B6: S & W – Exempt | C6: =SUM('January Data:December Data'!C6) -> 100078.11 | D6: =SUM('January Data:December Data'!D6) -> 240039.47 | E6: =SUM('January Data:December Data'!E6) -> 96348.67 | F6: =SUM('January Data:December Data'!F6) -> 36949.77 | G6: =SUM('January Data:December Data'!G6) -> 372727.74 | H6: =SUM('January Data:December Data'!H6) -> 320420.43 | I6: =SUM('January Data:December Data'!I6) -> 129522.58 | J6: =SUM('January Data:December Data'!J6) -> 33917.62 | K6: =SUM(C6:J6) -> 1330004.39
A7: 1200 | B7: S & W – Non-Exempt | C7: =SUM('January Data:December Data'!C7) -> 334554.44 | D7: =SUM('January Data:December Data'!D7) -> 123257.97 | E7: =SUM('January Data:December Data'!E7) -> 121520.41 | F7: =SUM('January Data:December Data'!F7) -> 71985.65 | G7: =SUM('January Data:December Data'!G7) -> 386672 | H7: =SUM('January Data:December Data'!H7) -> 134902.02 | I7: =SUM('January Data:December Data'!I7) -> 174034.85 | J7: =SUM('January Data:December Data'!J7) -> 195411.37 | K7: 1542338.71
A8: 1300 | B8: S & W – Officers | C8: =SUM('January Data:December Data'!C8) -> 62685.92 | D8: =SUM('January Data:December Data'!D8) -> 75937.73 | E8: =SUM('January Data:December Data'!E8) -> 70914.03 | F8: =SUM('January Data:December Data'!F8) -> 60290.34 | G8: =SUM('January Data:December Data'!G8) -> 242321.42 | H8: =SUM('January Data:December Data'!H8) -> 291763.45 | I8: =SUM('January Data:December Data'!I8) -> 528.03 | J8: =SUM('January Data:December Data'!J8) -> 412191.45 | K8: 1216632.37
A9: 1400 | B9: S & W – Incentives | C9: =SUM('January Data:December Data'!C9) -> 207449.55 | D9: =SUM('January Data:December Data'!D9) -> 599.15 | E9: =SUM('January Data:December Data'!E9) -> 56020.14 | F9: =SUM('January Data:December Data'!F9) -> 238413.78 | G9: =SUM('January Data:December Data'!G9) -> 136488.11 | H9: =SUM('January Data:December Data'!H9) -> 280932.08 | I9: =SUM('January Data:December Data'!I9) -> 211988.37 | J9: =SUM('January Data:December Data'!J9) -> 369411.02 | K9: 1501302.2
A10: 1500 | B10: S & W – Commissions | C10: =SUM('January Data:December Data'!C10) -> 189179.76 | D10: =SUM('January Data:December Data'!D10) -> 234005.31 | E10: =SUM('January Data:December Data'!E10) -> 61062.54 | F10: =SUM('January Data:December Data'!F10) -> 61833.31 | G10: =SUM('January Data:December Data'!G10) -> 669.49 | H10: =SUM('January Data:December Data'!H10) -> 344592.16 | I10: =SUM('January Data:December Data'!I10) -> 210523.94 | J10: =SUM('January Data:December Data'!J10) -> 536.55 | K10: 1102403.06
A11: 1600 | B11: S & W – Overtime | C11: =SUM('January Data:December Data'!C11) -> 298971.75 | D11: =SUM('January Data:December Data'!D11) -> 175474.86 | E11: =SUM('January Data:December Data'!E11) -> 385540.65 | F11: =SUM('January Data:December Data'!F11) -> 69786.97 | G11: =SUM('January Data:December Data'!G11) -> 279197.82 | H11: =SUM('January Data:December Data'!H11) -> 44180.29 | I11: =SUM('January Data:December Data'!I11) -> 348799.11 | J11: =SUM('January Data:December Data'!J11) -> 307968.1 | K11: 1909919.55
A12: 1700 | B12: S & W – Severence | C12: =SUM('January Data:December Data'!C12) -> 217839.49 | D12: =SUM('January Data:December Data'!D12) -> 379452.37 | E12: =SUM('January Data:December Data'!E12) -> 27882.25 | F12: =SUM('January Data:December Data'!F12) -> 200833.82 | G12: =SUM('January Data:December Data'!G12) -> 386185.58 | H12: =SUM('January Data:December Data'!H12) -> 30320.4 | I12: =SUM('January Data:December Data'!I12) -> 136019.29 | J12: =SUM('January Data:December Data'!J12) -> 361947.85 | K12: 1740481.05
A14: 2000 | B14: FRINGE BENEFITS
A15: 2100 | B15: 401K Match | C15: =SUM('January Data:December Data'!C15) -> 300881.24 | D15: =SUM('January Data:December Data'!D15) -> 114835.05 | E15: =SUM('January Data:December Data'!E15) -> 248334.13 | F15: =SUM('January Data:December Data'!F15) -> 189539.13 | G15: =SUM('January Data:December Data'!G15) -> 393603.1 | H15: =SUM('January Data:December Data'!H15) -> 301857.6 | I15: =SUM('January Data:December Data'!I15) -> 246159.98 | J15: =SUM('January Data:December Data'!J15) -> 284336.14 | K15: 2079546.37
A16: 2200 | B16: Allocations to Other Departments | C16: =SUM('January Data:December Data'!C16) -> 106681.19 | D16: =SUM('January Data:December Data'!D16) -> 61353.49 | E16: =SUM('January Data:December Data'!E16) -> 396131.67 | F16: =SUM('January Data:December Data'!F16) -> 358605.5 | G16: =SUM('January Data:December Data'!G16) -> 739.36 | H16: =SUM('January Data:December Data'!H16) -> 129775.36 | I16: =SUM('January Data:December Data'!I16) -> 382076.75 | J16: =SUM('January Data:December Data'!J16) -> 218860.4 | K16: 1654223.72
A17: 2300 | B17: Education Assistance / Training & Education | C17: =SUM('January Data:December Data'!C17) -> 1437.26 | D17: =SUM('January Data:December Data'!D17) -> 58152.82 | E17: =SUM('January Data:December Data'!E17) -> 287565.41 | F17: =SUM('January Data:December Data'!F17) -> 399629.45 | G17: =SUM('January Data:December Data'!G17) -> 11928.73 | H17: =SUM('January Data:December Data'!H17) -> 313132.16 | I17: =SUM('January Data:December Data'!I17) -> 77900.57 | J17: =SUM('January Data:December Data'!J17) -> 658.19 | K17: 1150404.59
A18: 2400 | B18: Insurance – Workers Comp | C18: =SUM('January Data:December Data'!C18) -> 57888.6 | D18: =SUM('January Data:December Data'!D18) -> 292422.9 | E18: =SUM('January Data:December Data'!E18) -> 34561.34 | F18: =SUM('January Data:December Data'!F18) -> 659.88 | G18: =SUM('January Data:December Data'!G18) -> 60075.95 | H18: =SUM('January Data:December Data'!H18) -> 683.86 | I18: =SUM('January Data:December Data'!I18) -> 98068.85 | J18: =SUM('January Data:December Data'!J18) -> 334417.93 | K18: 878779.31
A19: 2500 | B19: Insurance – Medical & Dental | C19: =SUM('January Data:December Data'!C19) -> 627.1 | D19: =SUM('January Data:December Data'!D19) -> 224170.21 | E19: =SUM('January Data:December Data'!E19) -> 95137.57 | F19: =SUM('January Data:December Data'!F19) -> 208695.63 | G19: =SUM('January Data:December Data'!G19) -> 252729.62 | H19: =SUM('January Data:December Data'!H19) -> 256737.58 | I19: =SUM('January Data:December Data'!I19) -> 1699.83 | J19: =SUM('January Data:December Data'!J19) -> 169641.34 | K19: 1209438.88
A20: 2600 | B20: Insurance – Group Life | C20: =SUM('January Data:December Data'!C20) -> 62979.29 | D20: =SUM('January Data:December Data'!D20) -> 239337.01 | E20: =SUM('January Data:December Data'!E20) -> 31126.15 | F20: =SUM('January Data:December Data'!F20) -> 10962.82 | G20: =SUM('January Data:December Data'!G20) -> 106090.05 | H20: =SUM('January Data:December Data'!H20) -> 188131.13 | I20: =SUM('January Data:December Data'!I20) -> 612.26 | J20: =SUM('January Data:December Data'!J20) -> 121610.83 | K20: 760849.54
A21: 2700 | B21: Other Miscellaneous Employee Benefits | C21: =SUM('January Data:December Data'!C21) -> 84467.35 | D21: =SUM('January Data:December Data'!D21) -> 40795.92 | E21: =SUM('January Data:December Data'!E21) -> 621.76 | F21: =SUM('January Data:December Data'!F21) -> 405298.74 | G21: =SUM('January Data:December Data'!G21) -> 227667.22 | H21: =SUM('January Data:December Data'!H21) -> 270898.1 | I21: =SUM('January Data:December Data'!I21) -> 350460 | J21: =SUM('January Data:December Data'!J21) -> 175014.29 | K21: 1555223.38
A22: 2800 | B22: PR Tax – FICA | C22: =SUM('January Data:December Data'!C22) -> 256880.47 | D22: =SUM('January Data:December Data'!D22) -> 554.67 | E22: =SUM('January Data:December Data'!E22) -> 685.35 | F22: =SUM('January Data:December Data'!F22) -> 312496.91 | G22: =SUM('January Data:December Data'!G22) -> 416643.59 | H22: =SUM('January Data:December Data'!H22) -> 267344.99 | I22: =SUM('January Data:December Data'!I22) -> 178702.92 | J22: =SUM('January Data:December Data'!J22) -> 182585.59 | K22: 1615894.49
A23: 2900 | B23: PR Tax – Unemployment | C23: =SUM('January Data:December Data'!C23) -> 140860.5 | D23: =SUM('January Data:December Data'!D23) -> 125693.7 | E23: =SUM('January Data:December Data'!E23) -> 173855.99 | F23: =SUM('January Data:December Data'!F23) -> 112555.41 | G23: =SUM('January Data:December Data'!G23) -> 402645.54 | H23: =SUM('January Data:December Data'!H23) -> 105071.89 | I23: =SUM('January Data:December Data'!I23) -> 265653.52 | J23: =SUM('January Data:December Data'!J23) -> 400275.37 | K23: 1726611.92
A25: 3000 | B25: TRAVEL, LIVING & ENTERTAINMENT
A26: 3100 | B26: TLE – Airfares | C26: =SUM('January Data:December Data'!C26) -> 92254.69 | D26: =SUM('January Data:December Data'!D26) -> 400286.59 | E26: =SUM('January Data:December Data'!E26) -> 377170.64 | F26: =SUM('January Data:December Data'!F26) -> 92444.11 | G26: =SUM('January Data:December Data'!G26) -> 412591.85 | H26: =SUM('January Data:December Data'!H26) -> 185785.05 | I26: =SUM('January Data:December Data'!I26) -> 180285.16 | J26: =SUM('January Data:December Data'!J26) -> 314162.31 | K26: 2054980.4
A27: 3200 | B27: TLE – Lodging | C27: =SUM('January Data:December Data'!C27) -> 154523.27 | D27: =SUM('January Data:December Data'!D27) -> 352807.51 | E27: =SUM('January Data:December Data'!E27) -> 398102.76 | F27: =SUM('January Data:December Data'!F27) -> 3652.77 | G27: =SUM('January Data:December Data'!G27) -> 302055.05 | H27: =SUM('January Data:December Data'!H27) -> 38405.18 | I27: =SUM('January Data:December Data'!I27) -> 263431.19 | J27: =SUM('January Data:December Data'!J27) -> 760.83 | K27: 1513738.56
A28: 3300 | B28: TLE – Meals | C28: =SUM('January Data:December Data'!C28) -> 633.47 | D28: =SUM('January Data:December Data'!D28) -> 224423.1 | E28: =SUM('January Data:December Data'!E28) -> 135771.13 | F28: =SUM('January Data:December Data'!F28) -> 240534.03 | G28: =SUM('January Data:December Data'!G28) -> 321535.06 | H28: =SUM('January Data:December Data'!H28) -> 270955.41 | I28: =SUM('January Data:December Data'!I28) -> 501.74 | J28: =SUM('January Data:December Data'!J28) -> 167690.93 | K28: 1362044.87
A29: 3400 | B29: TLE – Entertainment | C29: =SUM('January Data:December Data'!C29) -> 344668.06 | D29: =SUM('January Data:December Data'!D29) -> 46675.97 | E29: =SUM('January Data:December Data'!E29) -> 311043.37 | F29: =SUM('January Data:December Data'!F29) -> 289053.27 | G29: =SUM('January Data:December Data'!G29) -> 168997.18 | H29: =SUM('January Data:December Data'!H29) -> 321880.68 | I29: =SUM('January Data:December Data'!I29) -> 277466.97 | J29: =SUM('January Data:December Data'!J29) -> 34405.58 | K29: 1794191.08
A30: 3500 | B30: TLE – Auto Leasing | C30: =SUM('January Data:December Data'!C30) -> 366029.62 | D30: =SUM('January Data:December Data'!D30) -> 348554.47 | E30: =SUM('January Data:December Data'!E30) -> 747.97 | F30: =SUM('January Data:December Data'!F30) -> 680.32 | G30: =SUM('January Data:December Data'!G30) -> 691.88 | H30: =SUM('January Data:December Data'!H30) -> 224675.77 | I30: =SUM('January Data:December Data'!I30) -> 356543 | J30: =SUM('January Data:December Data'!J30) -> 207602.56 | K30: 1505525.59
A31: 3600 | B31: TLE – Auto Expense | C31: =SUM('January Data:December Data'!C31) -> 77061.82 | D31: =SUM('January Data:December Data'!D31) -> 320914.22 | E31: =SUM('January Data:December Data'!E31) -> 222734.49 | F31: =SUM('January Data:December Data'!F31) -> 131095.91 | G31: =SUM('January Data:December Data'!G31) -> 138493.3 | H31: =SUM('January Data:December Data'!H31) -> 393272.88 | I31: =SUM('January Data:December Data'!I31) -> 520.72 | J31: =SUM('January Data:December Data'!J31) -> 894.67 | K31: 1284988.01
A32: 3700 | B32: TLE – Conventions & /Seminars | C32: =SUM('January Data:December Data'!C32) -> 330568.26 | D32: =SUM('January Data:December Data'!D32) -> 588.29 | E32: =SUM('January Data:December Data'!E32) -> 387081.42 | F32: =SUM('January Data:December Data'!F32) -> 2970.88 | G32: =SUM('January Data:December Data'!G32) -> 389450.82 | H32: =SUM('January Data:December Data'!H32) -> 364242.78 | I32: =SUM('January Data:December Data'!I32) -> 124938.66 | J32: =SUM('January Data:December Data'!J32) -> 351502.36 | K32: 1951343.47
A33: 3800 | B33: TLE – Miscellaneous | C33: =SUM('January Data:December Data'!C33) -> 362547.68 | D33: =SUM('January Data:December Data'!D33) -> 71365.25 | E33: =SUM('January Data:December Data'!E33) -> 325212.36 | F33: =SUM('January Data:December Data'!F33) -> 616.03 | G33: =SUM('January Data:December Data'!G33) -> 288202.64 | H33: =SUM('January Data:December Data'!H33) -> 283085.44 | I33: =SUM('January Data:December Data'!I33) -> 393380.13 | J33: =SUM('January Data:December Data'!J33) -> 155286.89 | K33: 1879696.42
A34: 3900 | B34: TLE – Cellphones & Pagers | C34: =SUM('January Data:December Data'!C34) -> 72607.26 | D34: =SUM('January Data:December Data'!D34) -> 241358.15 | E34: =SUM('January Data:December Data'!E34) -> 391058.47 | F34: =SUM('January Data:December Data'!F34) -> 148779.18 | G34: =SUM('January Data:December Data'!G34) -> 389281.09 | H34: =SUM('January Data:December Data'!H34) -> 347967.51 | I34: =SUM('January Data:December Data'!I34) -> 358625.85 | J34: =SUM('January Data:December Data'!J34) -> 240655.14 | K34: 2190332.65
A36: 4000 | B36: OTHER MISCELLANEOUS EXPENSES
A37: 4100 | B37: MISC – Bad Debts | C37: =SUM('January Data:December Data'!C37) -> 107850.93 | D37: =SUM('January Data:December Data'!D37) -> 21262.56 | E37: =SUM('January Data:December Data'!E37) -> 412601.09 | F37: =SUM('January Data:December Data'!F37) -> 72637.95 | G37: =SUM('January Data:December Data'!G37) -> 245367.21 | H37: =SUM('January Data:December Data'!H37) -> 175755.91 | I37: =SUM('January Data:December Data'!I37) -> 237388.8 | J37: =SUM('January Data:December Data'!J37) -> 33891.99 | K37: 1306756.44
A38: 4200 | B38: MISC – Bank Charges | C38: =SUM('January Data:December Data'!C38) -> 231163.02 | D38: =SUM('January Data:December Data'!D38) -> 163594.31 | E38: =SUM('January Data:December Data'!E38) -> 122899.26 | F38: =SUM('January Data:December Data'!F38) -> 189152.7 | G38: =SUM('January Data:December Data'!G38) -> 214661.81 | H38: =SUM('January Data:December Data'!H38) -> 129250.11 | I38: =SUM('January Data:December Data'!I38) -> 281269.89 | J38: =SUM('January Data:December Data'!J38) -> 120542.62 | K38: 1452533.72
A39: 4300 | B39: MISC – Computer & Software Related | C39: =SUM('January Data:December Data'!C39) -> 122268.19 | D39: =SUM('January Data:December Data'!D39) -> 368060.22 | E39: =SUM('January Data:December Data'!E39) -> 236027.66 | F39: =SUM('January Data:December Data'!F39) -> 296646.13 | G39: =SUM('January Data:December Data'!G39) -> 127656.65 | H39: =SUM('January Data:December Data'!H39) -> 37933.83 | I39: =SUM('January Data:December Data'!I39) -> 8545.57 | J39: =SUM('January Data:December Data'!J39) -> 41654.25 | K39: 1238792.5
A40: 4400 | B40: MISC – Contributions / Donations | C40: =SUM('January Data:December Data'!C40) -> 160588.01 | D40: =SUM('January Data:December Data'!D40) -> 348844.32 | E40: =SUM('January Data:December Data'!E40) -> 173681.42 | F40: =SUM('January Data:December Data'!F40) -> 311360.17 | G40: =SUM('January Data:December Data'!G40) -> 391088.61 | H40: =SUM('January Data:December Data'!H40) -> 74742.14 | I40: =SUM('January Data:December Data'!I40) -> 71968.16 | J40: =SUM('January Data:December Data'!J40) -> 341954.25 | K40: 1874227.08
A41: 4500 | B41: MISC – Dues & Subscriptions | C41: =SUM('January Data:December Data'!C41) -> 212543.87 | D41: =SUM('January Data:December Data'!D41) -> 216668.98 | E41: =SUM('January Data:December Data'!E41) -> 269339.51 | F41: =SUM('January Data:December Data'!F41) -> 173638.52 | G41: =SUM('January Data:December Data'!G41) -> 316420.17 | H41: =SUM('January Data:December Data'!H41) -> 62674.48 | I41: =SUM('January Data:December Data'!I41) -> 128807.25 | J41: =SUM('January Data:December Data'!J41) -> 327096.11 | K41: 1707188.89
A42: 4600 | B42: MISC – Insurance – Auto & General | C42: =SUM('January Data:December Data'!C42) -> 306832.24 | D42: =SUM('January Data:December Data'!D42) -> 234055.69 | E42: =SUM('January Data:December Data'!E42) -> 310946.57 | F42: =SUM('January Data:December Data'!F42) -> 388077.69 | G42: =SUM('January Data:December Data'!G42) -> 216446.45 | H42: =SUM('January Data:December Data'!H42) -> 299045.67 | I42: =SUM('January Data:December Data'!I42) -> 165107.36 | J42: =SUM('January Data:December Data'!J42) -> 11364.21 | K42: 1931875.88
A43: 4700 | B43: MISC – Office Supplies & Expense | C43: =SUM('January Data:December Data'!C43) -> 179102.11 | D43: =SUM('January Data:December Data'!D43) -> 309231.01 | E43: =SUM('January Data:December Data'!E43) -> 16828.46 | F43: =SUM('January Data:December Data'!F43) -> 2555.96 | G43: =SUM('January Data:December Data'!G43) -> 109737.1 | H43: =SUM('January Data:December Data'!H43) -> 397161.27 | I43: =SUM('January Data:December Data'!I43) -> 73280.24 | J43: =SUM('January Data:December Data'!J43) -> 153498.84 | K43: 1241394.99
A44: 4800 | B44: MISC – Postage | C44: =SUM('January Data:December Data'!C44) -> 75931.68 | D44: =SUM('January Data:December Data'!D44) -> 403645.77 | E44: =SUM('January Data:December Data'!E44) -> 361625.22 | F44: =SUM('January Data:December Data'!F44) -> 319782.76 | G44: =SUM('January Data:December Data'!G44) -> 166966.58 | H44: =SUM('January Data:December Data'!H44) -> 369871.15 | I44: =SUM('January Data:December Data'!I44) -> 333991.46 | J44: =SUM('January Data:December Data'!J44) -> 253808.83 | K44: 2285623.45
A45: 4900 | B45: MISC – Misc. Taxes & Licenses | C45: =SUM('January Data:December Data'!C45) -> 278920.95 | D45: =SUM('January Data:December Data'!D45) -> 298415.7 | E45: =SUM('January Data:December Data'!E45) -> 158843.08 | F45: =SUM('January Data:December Data'!F45) -> 120586.62 | G45: =SUM('January Data:December Data'!G45) -> 393824.09 | H45: =SUM('January Data:December Data'!H45) -> 226541.7 | I45: =SUM('January Data:December Data'!I45) -> 365735.48 | J45: =SUM('January Data:December Data'!J45) -> 185956.32 | K45: 2028823.94
A47: 5000 | B47: OUTSIDE SERVICES
A48: 5100 | B48: O / S – Advertising Expense | C48: =SUM('January Data:December Data'!C48) -> 350273.77 | D48: =SUM('January Data:December Data'!D48) -> 221185.91 | E48: =SUM('January Data:December Data'!E48) -> 359577.24 | F48: =SUM('January Data:December Data'!F48) -> 93724.29 | G48: =SUM('January Data:December Data'!G48) -> 106770.29 | H48: =SUM('January Data:December Data'!H48) -> 205179.26 | I48: =SUM('January Data:December Data'!I48) -> 384409.74 | J48: =SUM('January Data:December Data'!J48) -> 298831.06 | K48: =SUM(C48:J48) -> 2019951.56
A49: 5200 | B49: O / S – Legal Fees | C49: =SUM('January Data:December Data'!C49) -> 146120.37 | D49: =SUM('January Data:December Data'!D49) -> 322883.77 | E49: =SUM('January Data:December Data'!E49) -> 320498.97 | F49: =SUM('January Data:December Data'!F49) -> 16230.06 | G49: =SUM('January Data:December Data'!G49) -> 13060.52 | H49: =SUM('January Data:December Data'!H49) -> 262161.57 | I49: =SUM('January Data:December Data'!I49) -> 188022.01 | J49: =SUM('January Data:December Data'!J49) -> 402033.5 | K49: 1671010.77
A50: 5300 | B50: O / S – Accounting | C50: =SUM('January Data:December Data'!C50) -> 136193.2 | D50: =SUM('January Data:December Data'!D50) -> 153091.18 | E50: =SUM('January Data:December Data'!E50) -> 289794.01 | F50: =SUM('January Data:December Data'!F50) -> 99748.77 | G50: =SUM('January Data:December Data'!G50) -> 299355.43 | H50: =SUM('January Data:December Data'!H50) -> 108884.49 | I50: =SUM('January Data:December Data'!I50) -> 138225.01 | J50: =SUM('January Data:December Data'!J50) -> 134460.15 | K50: 1359752.24
A51: 5400 | B51: O / S – Consultant Fees | C51: =SUM('January Data:December Data'!C51) -> 394260.68 | D51: =SUM('January Data:December Data'!D51) -> 300508.34 | E51: =SUM('January Data:December Data'!E51) -> 364100.55 | F51: =SUM('January Data:December Data'!F51) -> 158981.9 | G51: =SUM('January Data:December Data'!G51) -> 34502.27 | H51: =SUM('January Data:December Data'!H51) -> 186742.71 | I51: =SUM('January Data:December Data'!I51) -> 30587.92 | J51: =SUM('January Data:December Data'!J51) -> 288216.5 | K51: 1757900.87
A52: 5500 | B52: O / S – Promotional Expense | C52: =SUM('January Data:December Data'!C52) -> 309835.35 | D52: =SUM('January Data:December Data'!D52) -> 180142.49 | E52: =SUM('January Data:December Data'!E52) -> 5186.06 | F52: =SUM('January Data:December Data'!F52) -> 142829.72 | G52: =SUM('January Data:December Data'!G52) -> 258977.07 | H52: =SUM('January Data:December Data'!H52) -> 10189.52 | I52: =SUM('January Data:December Data'!I52) -> 146246.54 | J52: =SUM('January Data:December Data'!J52) -> 401682.93 | K52: 1455089.68
A53: 5600 | B53: O / S – Recruiting Fees | C53: =SUM('January Data:December Data'!C53) -> 263701.68 | D53: =SUM('January Data:December Data'!D53) -> 45698.62 | E53: =SUM('January Data:December Data'!E53) -> 211948.33 | F53: =SUM('January Data:December Data'!F53) -> 145667.28 | G53: =SUM('January Data:December Data'!G53) -> 110769.78 | H53: =SUM('January Data:December Data'!H53) -> 1935.45 | I53: =SUM('January Data:December Data'!I53) -> 292022.72 | J53: =SUM('January Data:December Data'!J53) -> 283129.11 | K53: 1354872.97
A54: 5700 | B54: O / S – Contract Labor | C54: =SUM('January Data:December Data'!C54) -> 126036.68 | D54: =SUM('January Data:December Data'!D54) -> 248930.22 | E54: =SUM('January Data:December Data'!E54) -> 307231.32 | F54: =SUM('January Data:December Data'!F54) -> 215353.38 | G54: =SUM('January Data:December Data'!G54) -> 253886.93 | H54: =SUM('January Data:December Data'!H54) -> 164603.78 | I54: =SUM('January Data:December Data'!I54) -> 274767.35 | J54: =SUM('January Data:December Data'!J54) -> 95241.08 | K54: 1686050.74
A55: 5800 | B55: O / S – Janitorial Service | C55: =SUM('January Data:December Data'!C55) -> 417077.21 | D55: =SUM('January Data:December Data'!D55) -> 61891.06 | E55: =SUM('January Data:December Data'!E55) -> 402243.6 | F55: =SUM('January Data:December Data'!F55) -> 325315.54 | G55: =SUM('January Data:December Data'!G55) -> 383221.08 | H55: =SUM('January Data:December Data'!H55) -> 339154.86 | I55: =SUM('January Data:December Data'!I55) -> 90945.03 | J55: =SUM('January Data:December Data'!J55) -> 214360.41 | K55: 2234208.79
A56: 5900 | B56: O / S – Security | C56: =SUM('January Data:December Data'!C56) -> 251769.76 | D56: =SUM('January Data:December Data'!D56) -> 319453.64 | E56: =SUM('January Data:December Data'!E56) -> 299623.83 | F56: =SUM('January Data:December Data'!F56) -> 128678.77 | G56: =SUM('January Data:December Data'!G56) -> 416466.16 | H56: =SUM('January Data:December Data'!H56) -> 360401.36 | I56: =SUM('January Data:December Data'!I56) -> 269566.22 | J56: =SUM('January Data:December Data'!J56) -> 275925.32 | K56: 2321885.06
A58: 6000 | B58: RENTALS & LEASES
A59: 6100 | B59: RENTALS Office Rent | C59: =SUM('January Data:December Data'!C59) -> 246251.72 | D59: =SUM('January Data:December Data'!D59) -> 384172.8 | E59: =SUM('January Data:December Data'!E59) -> 309934.68 | F59: =SUM('January Data:December Data'!F59) -> 248120.84 | G59: =SUM('January Data:December Data'!G59) -> 101168.98 | H59: =SUM('January Data:December Data'!H59) -> 188398.21 | I59: =SUM('January Data:December Data'!I59) -> 306102.5 | J59: =SUM('January Data:December Data'!J59) -> 273995.59 | K59: 2058145.32
A60: 6200 | B60: RENTALS Equipment Rental | C60: =SUM('January Data:December Data'!C60) -> 184714.42 | D60: =SUM('January Data:December Data'!D60) -> 262652.94 | E60: =SUM('January Data:December Data'!E60) -> 147328.83 | F60: =SUM('January Data:December Data'!F60) -> 222403.06 | G60: =SUM('January Data:December Data'!G60) -> 265012.77 | H60: =SUM('January Data:December Data'!H60) -> 405940.48 | I60: =SUM('January Data:December Data'!I60) -> 257828.34 | J60: =SUM('January Data:December Data'!J60) -> 150572.07 | K60: 1896452.91
A61: 6300 | B61: RENTALS Office Equipment | C61: =SUM('January Data:December Data'!C61) -> 252179.18 | D61: =SUM('January Data:December Data'!D61) -> 268969.36 | E61: =SUM('January Data:December Data'!E61) -> 124131.92 | F61: =SUM('January Data:December Data'!F61) -> 269392.42 | G61: =SUM('January Data:December Data'!G61) -> 187901.78 | H61: =SUM('January Data:December Data'!H61) -> 81020.5 | I61: =SUM('January Data:December Data'!I61) -> 95105.12 | J61: =SUM('January Data:December Data'!J61) -> 238833.87 | K61: 1517534.15
A62: 6400 | B62: RENTALS Vehicle Leases | C62: =SUM('January Data:December Data'!C62) -> 68336.07 | D62: =SUM('January Data:December Data'!D62) -> 171273.63 | E62: =SUM('January Data:December Data'!E62) -> 179024.89 | F62: =SUM('January Data:December Data'!F62) -> 227433.47 | G62: =SUM('January Data:December Data'!G62) -> 366472.48 | H62: =SUM('January Data:December Data'!H62) -> 141135.5 | I62: =SUM('January Data:December Data'!I62) -> 405648.98 | J62: =SUM('January Data:December Data'!J62) -> 297138.71 | K62: 1856463.73
A64: 7000 | B64: FACILITIES
A65: 7100 | B65: FAC – Telephone & Fax | C65: =SUM('January Data:December Data'!C65) -> 182061 | D65: =SUM('January Data:December Data'!D65) -> 399251.05 | E65: =SUM('January Data:December Data'!E65) -> 100186.35 | F65: =SUM('January Data:December Data'!F65) -> 277682.35 | G65: =SUM('January Data:December Data'!G65) -> 228898.67 | H65: =SUM('January Data:December Data'!H65) -> 325811.86 | I65: =SUM('January Data:December Data'!I65) -> 326755.22 | J65: =SUM('January Data:December Data'!J65) -> 355761.23 | K65: 2196407.73
A66: 7200 | B66: FAC – Utilities | C66: =SUM('January Data:December Data'!C66) -> 146499.43 | D66: =SUM('January Data:December Data'!D66) -> 329350.12 | E66: =SUM('January Data:December Data'!E66) -> 54369.81 | F66: =SUM('January Data:December Data'!F66) -> 327557.12 | G66: =SUM('January Data:December Data'!G66) -> 380690.64 | H66: =SUM('January Data:December Data'!H66) -> 319586.85 | I66: =SUM('January Data:December Data'!I66) -> 247267.46 | J66: =SUM('January Data:December Data'!J66) -> 240151.23 | K66: 2045472.66
A67: 7300 | B67: FAC – Electricity | C67: =SUM('January Data:December Data'!C67) -> 97303.25 | D67: =SUM('January Data:December Data'!D67) -> 231083.27 | E67: =SUM('January Data:December Data'!E67) -> 50621.78 | F67: =SUM('January Data:December Data'!F67) -> 75653.71 | G67: =SUM('January Data:December Data'!G67) -> 42738.08 | H67: =SUM('January Data:December Data'!H67) -> 217105.68 | I67: =SUM('January Data:December Data'!I67) -> 212751.99 | J67: =SUM('January Data:December Data'!J67) -> 8062.45 | K67: 935320.21
A68: 7400 | B68: FAC – Water | C68: =SUM('January Data:December Data'!C68) -> 207392.13 | D68: =SUM('January Data:December Data'!D68) -> 279229.06 | E68: =SUM('January Data:December Data'!E68) -> 339250.89 | F68: =SUM('January Data:December Data'!F68) -> 261868.2 | G68: =SUM('January Data:December Data'!G68) -> 383186.65 | H68: =SUM('January Data:December Data'!H68) -> 366750.12 | I68: =SUM('January Data:December Data'!I68) -> 172204.01 | J68: =SUM('January Data:December Data'!J68) -> 73292.34 | K68: 2083173.4
A69: 7500 | B69: FAC – Repairs – Building | C69: =SUM('January Data:December Data'!C69) -> 128677.12 | D69: =SUM('January Data:December Data'!D69) -> 347720.23 | E69: =SUM('January Data:December Data'!E69) -> 142067.86 | F69: =SUM('January Data:December Data'!F69) -> 173882.17 | G69: =SUM('January Data:December Data'!G69) -> 170522.55 | H69: =SUM('January Data:December Data'!H69) -> 19514.66 | I69: =SUM('January Data:December Data'!I69) -> 339202.6 | J69: =SUM('January Data:December Data'!J69) -> 190832.73 | K69: 1512419.92
A70: 7600 | B70: FAC – Repairs – Office Equipment | C70: =SUM('January Data:December Data'!C70) -> 377489.97 | D70: =SUM('January Data:December Data'!D70) -> 249466.03 | E70: =SUM('January Data:December Data'!E70) -> 316299.83 | F70: =SUM('January Data:December Data'!F70) -> 41589.46 | G70: =SUM('January Data:December Data'!G70) -> 89197.13 | H70: =SUM('January Data:December Data'!H70) -> 59722.3 | I70: =SUM('January Data:December Data'!I70) -> 142743.92 | J70: =SUM('January Data:December Data'!J70) -> 152695.51 | K70: =SUM(C70:J70) -> 1429204.15
A71: 7700 | B71: FAC – Real Estate Taxes | C71: =SUM('January Data:December Data'!C71) -> 400946.48 | D71: =SUM('January Data:December Data'!D71) -> 347108.3 | E71: =SUM('January Data:December Data'!E71) -> 383265.85 | F71: =SUM('January Data:December Data'!F71) -> 72010.73 | G71: =SUM('January Data:December Data'!G71) -> 62756.32 | H71: =SUM('January Data:December Data'!H71) -> 366676.53 | I71: =SUM('January Data:December Data'!I71) -> 364435.61 | J71: =SUM('January Data:December Data'!J71) -> 365116.73 | K71: 2362316.55
C73: =SUM(C6:C71) -> 10586676.62 | D73: =SUM(D6:D71) -> 11880896.76 | E73: 11405709.54 | F73: 9046925.35 | G73: 12425408.44 | H73: 11614906.15 | I73: 11119376.77 | J73: 11251845.25 | K73: 89331744.88

Sheet Budget
C5: DEPT 1 | D5: DEPT 2 | E5: DEPT 3 | F5: DEPT 4 | G5: DEPT 5 | H5: DEPT 6 | I5: DEPT 7 | J5: DEPT 8 | K5: TOTAL
A6: 1000 | B6: SALARIES & WAGES
A7: 1100 | B7: S & W – Exempt | C7: 98100 | D7: 256800 | E7: 91500 | F7: 39200 | G7: 391400 | H7: 342800 | I7: 141200 | J7: 33600 | K7: =SUM(C7:J7) -> 1394600
A8: 1200 | B8: S & W – Non-Exempt | C8: 341200 | D8: 135600 | E8: 117900 | F8: 68400 | G8: 375100 | H8: 141600 | I8: 184500 | J8: 197400 | K8: 1561700
A9: 1300 | B9: S & W – Officers | C9: 56400 | D9: 80500 | E9: 71600 | F9: 54900 | G9: 232600 | H9: 312200 | I9: 800 | J9: 436900 | K9: 1245900
A10: 1400 | B10: S & W – Incentives | C10: 215700 | D10: 1000 | E10: 60500 | F10: 224100 | G10: 139200 | H10: 275300 | I10: 218300 | J10: 373100 | K10: 1507200
A11: 1500 | B11: S & W – Commissions | C11: 189200 | D11: 255100 | E11: 63500 | F11: 59400 | G11: 400 | H11: 310100 | I11: 204200 | J11: 500 | K11: 1082400
A12: 1600 | B12: S & W – Overtime | C12: 302000 | D12: 166700 | E12: 385500 | F12: 65600 | G12: 262400 | H12: 47700 | I12: 317400 | J12: 320300 | K12: 1867600
A13: 1700 | B13: S & W – Severence | C13: 209100 | D13: 402200 | E13: 30700 | F13: 184800 | G13: 405500 | H13: 32100 | I13: 123800 | J13: 343900 | K13: 1732100
A15: 2000 | B15: FRINGE BENEFITS
A16: 2100 | B16: 401K Match | C16: 288800 | D16: 120600 | E16: 233400 | F16: 202800 | G16: 354200 | H16: 332000 | I16: 236300 | J16: 255900 | K16: 2024000
A17: 2200 | B17: Allocations to Other Departments | C17: 103500 | D17: 65600 | E17: 372400 | F17: 390900 | G17: 900 | H17: 129800 | I17: 382100 | J17: 207900 | K17: 1653100
A18: 2300 | B18: Education Assistance / Training & Education | C18: 1400 | D18: 57600 | E18: 296200 | F18: 427600 | G18: 12600 | H18: 322500 | I18: 83400 | J18: 700 | K18: 1202000
A19: 2400 | B19: Insurance – Workers Comp | C19: 63100 | D19: 263200 | E19: 37700 | F19: 500 | G19: 54100 | H19: 800 | I19: 104900 | J19: 324400 | K19: 848700
A20: 2500 | B20: Insurance – Medical & Dental | C20: 600 | D20: 237600 | E20: 98900 | F20: 221200 | G20: 242600 | H20: 254200 | I20: 1600 | J20: 178100 | K20: 1234800
A21: 2600 | B21: Insurance – Group Life | C21: 68600 | D21: 234600 | E21: 28900 | F21: 10300 | G21: 108200 | H21: 173100 | I21: 600 | J21: 114300 | K21: 738600
A22: 2700 | B22: Other Miscellaneous Employee Benefits | C22: 84500 | D22: 40800 | E22: 600 | F22: 429600 | G22: 218600 | H22: 298000 | I22: 322400 | J22: 192500 | K22: 1587000
A23: 2800 | B23: PR Tax – FICA | C23: 241500 | D23: 500 | E23: 600 | F23: 331200 | G23: 445800 | H23: 288700 | I23: 160800 | J23: 168000 | K23: 1637100
A24: 2900 | B24: PR Tax – Unemployment | C24: 152100 | D24: 127000 | E24: 166900 | F24: 117100 | G24: 438900 | H24: 110300 | I24: 276300 | J24: 408300 | K24: 1796900
A26: 3000 | B26: TRAVEL, LIVING & ENTERTAINMENT
A27: 3100 | B27: TLE – Airfares | C27: 90400 | D27: 404300 | E27: 343200 | F27: 92400 | G27: 371300 | H27: 196900 | I27: 165900 | J27: 311000 | K27: 1975400
A28: 3200 | B28: TLE – Lodging | C28: 149900 | D28: 377500 | E28: 386200 | F28: 3900 | G28: 290000 | H28: 36100 | I28: 252900 | J28: 600 | K28: 1497100
A29: 3300 | B29: TLE – Meals | C29: 600 | D29: 213200 | E29: 137100 | F29: 255000 | G29: 350500 | H29: 284500 | I29: 600 | J29: 169400 | K29: 1410900
A30: 3400 | B30: TLE – Entertainment | C30: 372200 | D30: 49500 | E30: 323500 | F30: 260100 | G30: 153800 | H30: 315400 | I30: 266400 | J30: 35400 | K30: 1776300
A31: 3500 | B31: TLE – Auto Leasing | C31: 373400 | D31: 331100 | E31: 800 | F31: 600 | G31: 400 | H31: 247100 | I31: 338700 | J31: 224200 | K31: 1516300
A32: 3600 | B32: TLE – Auto Expense | C32: 80100 | D32: 330500 | E32: 245000 | F32: 131100 | G32: 152300 | H32: 393300 | I32: 600 | J32: 800 | K32: 1333700
A33: 3700 | B33: TLE – Conventions & /Seminars | C33: 297500 | D33: 900 | E33: 402600 | F33: 3300 | G33: 397200 | H33: 389700 | I33: 121200 | J33: 344500 | K33: 1956900
A34: 3800 | B34: TLE – Miscellaneous | C34: 384300 | D34: 72100 | E34: 331700 | F34: 700 | G34: 276700 | H34: 302900 | I34: 417000 | J34: 164600 | K34: 1950000
A35: 3900 | B35: TLE – Cellphones & Pagers | C35: 76200 | D35: 265500 | E35: 406700 | F35: 144300 | G35: 401000 | H35: 327100 | I35: 329900 | J35: 219000 | K35: 2169700
A37: 4000 | B37: OTHER MISCELLANEOUS EXPENSES
A38: 4100 | B38: MISC – Bad Debts | C38: 113200 | D38: 20800 | E38: 383700 | F38: 79200 | G38: 238000 | H38: 175800 | I38: 246900 | J38: 37300 | K38: 1294900
A39: 4200 | B39: MISC – Bank Charges | C39: 240400 | D39: 147200 | E39: 132700 | F39: 177800 | G39: 212500 | H39: 130500 | I39: 267200 | J39: 119300 | K39: 1427600
A40: 4300 | B40: MISC – Computer & Software Related | C40: 123500 | D40: 346000 | E40: 236000 | F40: 311500 | G40: 122600 | H40: 38300 | I40: 9400 | J40: 42500 | K40: 1229800
A41: 4400 | B41: MISC – Contributions / Donations | C41: 171800 | D41: 317400 | E41: 173700 | F41: 314500 | G41: 406700 | H41: 68000 | I41: 73400 | J41: 338500 | K41: 1864000
A42: 4500 | B42: MISC – Dues & Subscriptions | C42: 199800 | D42: 212300 | E42: 255900 | F42: 163200 | G42: 344900 | H42: 60800 | I42: 130100 | J42: 356500 | K42: 1723500
A43: 4600 | B43: MISC – Insurance – Auto & General | C43: 334400 | D43: 224700 | E43: 289200 | F43: 392000 | G43: 194800 | H43: 284100 | I43: 158500 | J43: 11100 | K43: 1888800
A44: 4700 | B44: MISC – Office Supplies & Expense | C44: 184500 | D44: 284500 | E44: 15700 | F44: 2400 | G44: 114100 | H44: 428900 | I44: 71800 | J44: 141200 | K44: 1243100
A45: 4800 | B45: MISC – Postage | C45: 77500 | D45: 375400 | E45: 361600 | F45: 287800 | G45: 165300 | H45: 384700 | I45: 354000 | J45: 258900 | K45: 2265200
A46: 4900 | B46: MISC – Misc. Taxes & Licenses | C46: 284500 | D46: 298400 | E46: 163600 | F46: 121800 | G46: 354400 | H46: 249200 | I46: 354800 | J46: 189700 | K46: 2016400
A48: 5000 | B48: OUTSIDE SERVICES
A49: 5100 | B49: O / S – Advertising Expense | C49: 343300 | D49: 238900 | E49: 341600 | F49: 99300 | G49: 117400 | H49: 184700 | I49: 353700 | J49: 328700 | K49: 2007600
A50: 5200 | B50: O / S – Legal Fees | C50: 157800 | D50: 293800 | E50: 301300 | F50: 17000 | G50: 13300 | H50: 280500 | I50: 176700 | J50: 418100 | K50: 1658500
A51: 5300 | B51: O / S – Accounting | C51: 137600 | D51: 148500 | E51: 269500 | F51: 100700 | G51: 311300 | H51: 115400 | I51: 138200 | J51: 135800 | K51: 1357000
A52: 5400 | B52: O / S – Consultant Fees | C52: 402100 | D52: 318500 | E52: 396900 | F52: 159000 | G52: 33500 | H52: 181100 | I52: 28800 | J52: 314200 | K52: 1834100
A53: 5500 | B53: O / S – Promotional Expense | C53: 319100 | D53: 178300 | E53: 5200 | F53: 148500 | G53: 271900 | H53: 9400 | I53: 131600 | J53: 369500 | K53: 1433500
A54: 5600 | B54: O / S – Recruiting Fees | C54: 266300 | D54: 49400 | E54: 228900 | F54: 151500 | G54: 100800 | H54: 2000 | I54: 306600 | J54: 308600 | K54: 1414100
A55: 5700 | B55: O / S – Contract Labor | C55: 124800 | D55: 256400 | E55: 322600 | F55: 236900 | G55: 266600 | H55: 153100 | I55: 296700 | J55: 94300 | K55: 1751400
A56: 5800 | B56: O / S – Janitorial Service | C56: 408700 | D56: 56900 | E56: 398200 | F56: 351300 | G56: 348700 | H56: 352700 | I56: 96400 | J56: 197200 | K56: 2210100
A57: 5900 | B57: O / S – Security | C57: 261800 | D57: 309900 | E57: 287600 | F57: 117100 | G57: 387300 | H57: 328000 | I57: 245300 | J57: 281400 | K57: 2218400
A59: 6000 | B59: RENTALS & LEASES
A60: 6100 | B60: RENTALS Office Rent | C60: 266000 | D60: 357300 | E60: 325400 | F60: 270500 | G60: 91100 | H60: 182700 | I60: 330600 | J60: 279500 | K60: 2103100
A61: 6200 | B61: RENTALS Equipment Rental | C61: 169900 | D61: 249500 | E61: 160600 | F61: 224600 | G61: 249100 | H61: 397800 | I61: 270700 | J61: 164100 | K61: 1886300
A62: 6300 | B62: RENTALS Office Equipment | C62: 274900 | D62: 269000 | E62: 126600 | F62: 272100 | G62: 189800 | H62: 79400 | I62: 92300 | J62: 246000 | K62: 1550100
A63: 6400 | B63: RENTALS Vehicle Leases | C63: 73800 | D63: 155900 | E63: 179000 | F63: 216100 | G63: 348100 | H63: 136900 | I63: 446200 | J63: 273400 | K63: 1829400
A65: 7000 | B65: FACILITIES
A66: 7100 | B66: FAC – Telephone & Fax | C66: 165700 | D66: 375300 | E66: 92200 | F66: 299900 | G66: 224300 | H66: 293200 | I66: 300600 | J66: 391300 | K66: 2142500
A67: 7200 | B67: FAC – Utilities | C67: 139200 | D67: 329400 | E67: 48900 | F67: 298100 | G67: 350200 | H67: 351500 | I67: 234900 | J67: 242600 | K67: 1994800
A68: 7300 | B68: FAC – Electricity | C68: 99200 | D68: 238000 | E68: 52600 | F68: 76400 | G68: 38500 | H68: 225800 | I68: 214900 | J68: 7700 | K68: 953100
A69: 7400 | B69: FAC – Water | C69: 186700 | D69: 268100 | E69: 325700 | F69: 285400 | G69: 390900 | H69: 385100 | I69: 173900 | J69: 71800 | K69: 2087600
A70: 7500 | B70: FAC – Repairs – Building | C70: 122200 | D70: 326900 | E70: 144900 | F70: 172100 | G70: 187600 | H70: 21500 | I70: 308700 | J70: 179400 | K70: 1463300
A71: 7600 | B71: FAC – Repairs – Office Equipment | C71: 358600 | D71: 257000 | E71: 347900 | F71: 44500 | G71: 81200 | H71: 64500 | I71: 139900 | J71: 158800 | K71: =SUM(C71:J71) -> 1452400
A72: 7700 | B72: FAC – Real Estate Taxes | C72: 413000 | D72: 343600 | E72: 367900 | F72: 72000 | G72: 63400 | H72: 396000 | I72: 360800 | J72: 401600 | K72: 2418300
C74: =SUM(C7:C72) -> 10660700 | D74: =SUM(D7:D72) -> 11737300 | E74: 11369200 | F74: 9182200 | G74: 12294000 | H74: 11825800 | I74: 10965400 | J74: 11384300 | K74: 89418900

Sheet Actual to Budget
C5: Actual | D5: Budget | E5: Difference
A6: 1000 | B6: SALARIES & WAGES
A7: 1100 | B7: S & W – Exempt | C7: ='Income Statement'!K6 -> 1330004.39 | D7: =Budget!K7 -> 1394600 | E7: =C7-D7 -> -64595.61
A8: 1200 | B8: S & W – Non-Exempt | C8: ='Income Statement'!K7 -> 1542338.71 | D8: =Budget!K8 -> 1561700 | E8: =C8-D8 -> -19361.29
A9: 1300 | B9: S & W – Officers | C9: ='Income Statement'!K8 -> 1216632.37 | D9: =Budget!K9 -> 1245900 | E9: -29267.63
A10: 1400 | B10: S & W – Incentives | C10: ='Income Statement'!K9 -> 1501302.2 | D10: =Budget!K10 -> 1507200 | E10: -5897.8
A11: 1500 | B11: S & W – Commissions | C11: ='Income Statement'!K10 -> 1102403.06 | D11: =Budget!K11 -> 1082400 | E11: 20003.06
A12: 1600 | B12: S & W – Overtime | C12: ='Income Statement'!K11 -> 1909919.55 | D12: =Budget!K12 -> 1867600 | E12: 42319.55
A13: 1700 | B13: S & W – Severence | C13: ='Income Statement'!K12 -> 1740481.05 | D13: =Budget!K13 -> 1732100 | E13: 8381.05
A15: 2000 | B15: FRINGE BENEFITS
A16: 2100 | B16: 401K Match | C16: ='Income Statement'!K15 -> 2079546.37 | D16: =Budget!K16 -> 2024000 | E16: 55546.37
A17: 2200 | B17: Allocations to Other Departments | C17: ='Income Statement'!K16 -> 1654223.72 | D17: =Budget!K17 -> 1653100 | E17: 1123.72
A18: 2300 | B18: Education Assistance / Training & Education | C18: ='Income Statement'!K17 -> 1150404.59 | D18: =Budget!K18 -> 1202000 | E18: -51595.41
A19: 2400 | B19: Insurance – Workers Comp | C19: ='Income Statement'!K18 -> 878779.31 | D19: =Budget!K19 -> 848700 | E19: 30079.31
A20: 2500 | B20: Insurance – Medical & Dental | C20: ='Income Statement'!K19 -> 1209438.88 | D20: =Budget!K20 -> 1234800 | E20: -25361.12
A21: 2600 | B21: Insurance – Group Life | C21: ='Income Statement'!K20 -> 760849.54 | D21: =Budget!K21 -> 738600 | E21: 22249.54
A22: 2700 | B22: Other Miscellaneous Employee Benefits | C22: ='Income Statement'!K21 -> 1555223.38 | D22: =Budget!K22 -> 1587000 | E22: -31776.62
A23: 2800 | B23: PR Tax – FICA | C23: ='Income Statement'!K22 -> 1615894.49 | D23: =Budget!K23 -> 1637100 | E23: -21205.51
A24: 2900 | B24: PR Tax – Unemployment | C24: ='Income Statement'!K23 -> 1726611.92 | D24: =Budget!K24 -> 1796900 | E24: -70288.08
A26: 3000 | B26: TRAVEL, LIVING & ENTERTAINMENT
A27: 3100 | B27: TLE – Airfares | C27: ='Income Statement'!K26 -> 2054980.4 | D27: =Budget!K27 -> 1975400 | E27: 79580.4
A28: 3200 | B28: TLE – Lodging | C28: ='Income Statement'!K27 -> 1513738.56 | D28: =Budget!K28 -> 1497100 | E28: 16638.56
A29: 3300 | B29: TLE – Meals | C29: ='Income Statement'!K28 -> 1362044.87 | D29: =Budget!K29 -> 1410900 | E29: -48855.13
A30: 3400 | B30: TLE – Entertainment | C30: ='Income Statement'!K29 -> 1794191.08 | D30: =Budget!K30 -> 1776300 | E30: 17891.08
A31: 3500 | B31: TLE – Auto Leasing | C31: ='Income Statement'!K30 -> 1505525.59 | D31: =Budget!K31 -> 1516300 | E31: -10774.41
A32: 3600 | B32: TLE – Auto Expense | C32: ='Income Statement'!K31 -> 1284988.01 | D32: =Budget!K32 -> 1333700 | E32: -48711.99
A33: 3700 | B33: TLE – Conventions & /Seminars | C33: ='Income Statement'!K32 -> 1951343.47 | D33: =Budget!K33 -> 1956900 | E33: -5556.53
A34: 3800 | B34: TLE – Miscellaneous | C34: ='Income Statement'!K33 -> 1879696.42 | D34: =Budget!K34 -> 1950000 | E34: -70303.58
A35: 3900 | B35: TLE – Cellphones & Pagers | C35: ='Income Statement'!K34 -> 2190332.65 | D35: =Budget!K35 -> 2169700 | E35: 20632.65
A37: 4000 | B37: OTHER MISCELLANEOUS EXPENSES
A38: 4100 | B38: MISC – Bad Debts | C38: ='Income Statement'!K37 -> 1306756.44 | D38: =Budget!K38 -> 1294900 | E38: 11856.44
A39: 4200 | B39: MISC – Bank Charges | C39: ='Income Statement'!K38 -> 1452533.72 | D39: =Budget!K39 -> 1427600 | E39: 24933.72
A40: 4300 | B40: MISC – Computer & Software Related | C40: ='Income Statement'!K39 -> 1238792.5 | D40: =Budget!K40 -> 1229800 | E40: 8992.5
A41: 4400 | B41: MISC – Contributions / Donations | C41: ='Income Statement'!K40 -> 1874227.08 | D41: =Budget!K41 -> 1864000 | E41: 10227.08
A42: 4500 | B42: MISC – Dues & Subscriptions | C42: ='Income Statement'!K41 -> 1707188.89 | D42: =Budget!K42 -> 1723500 | E42: -16311.11
A43: 4600 | B43: MISC – Insurance – Auto & General | C43: ='Income Statement'!K42 -> 1931875.88 | D43: =Budget!K43 -> 1888800 | E43: 43075.88
A44: 4700 | B44: MISC – Office Supplies & Expense | C44: ='Income Statement'!K43 -> 1241394.99 | D44: =Budget!K44 -> 1243100 | E44: -1705.01
A45: 4800 | B45: MISC – Postage | C45: ='Income Statement'!K44 -> 2285623.45 | D45: =Budget!K45 -> 2265200 | E45: 20423.45
A46: 4900 | B46: MISC – Misc. Taxes & Licenses | C46: ='Income Statement'!K45 -> 2028823.94 | D46: =Budget!K46 -> 2016400 | E46: 12423.94
A48: 5000 | B48: OUTSIDE SERVICES
A49: 5100 | B49: O / S – Advertising Expense | C49: ='Income Statement'!K48 -> 2019951.56 | D49: =Budget!K49 -> 2007600 | E49: 12351.56
A50: 5200 | B50: O / S – Legal Fees | C50: ='Income Statement'!K49 -> 1671010.77 | D50: =Budget!K50 -> 1658500 | E50: 12510.77
A51: 5300 | B51: O / S – Accounting | C51: ='Income Statement'!K50 -> 1359752.24 | D51: =Budget!K51 -> 1357000 | E51: 2752.24
A52: 5400 | B52: O / S – Consultant Fees | C52: ='Income Statement'!K51 -> 1757900.87 | D52: =Budget!K52 -> 1834100 | E52: -76199.13
A53: 5500 | B53: O / S – Promotional Expense | C53: ='Income Statement'!K52 -> 1455089.68 | D53: =Budget!K53 -> 1433500 | E53: 21589.68
A54: 5600 | B54: O / S – Recruiting Fees | C54: ='Income Statement'!K53 -> 1354872.97 | D54: =Budget!K54 -> 1414100 | E54: -59227.03
A55: 5700 | B55: O / S – Contract Labor | C55: ='Income Statement'!K54 -> 1686050.74 | D55: =Budget!K55 -> 1751400 | E55: -65349.26
A56: 5800 | B56: O / S – Janitorial Service | C56: ='Income Statement'!K55 -> 2234208.79 | D56: =Budget!K56 -> 2210100 | E56: 24108.79
A57: 5900 | B57: O / S – Security | C57: ='Income Statement'!K56 -> 2321885.06 | D57: =Budget!K57 -> 2218400 | E57: 103485.06
A59: 6000 | B59: RENTALS & LEASES
A60: 6100 | B60: RENTALS Office Rent | C60: ='Income Statement'!K59 -> 2058145.32 | D60: =Budget!K60 -> 2103100 | E60: -44954.68
A61: 6200 | B61: RENTALS Equipment Rental | C61: ='Income Statement'!K60 -> 1896452.91 | D61: =Budget!K61 -> 1886300 | E61: 10152.91
A62: 6300 | B62: RENTALS Office Equipment | C62: ='Income Statement'!K61 -> 1517534.15 | D62: =Budget!K62 -> 1550100 | E62: -32565.85
A63: 6400 | B63: RENTALS Vehicle Leases | C63: ='Income Statement'!K62 -> 1856463.73 | D63: =Budget!K63 -> 1829400 | E63: 27063.73
A65: 7000 | B65: FACILITIES
A66: 7100 | B66: FAC – Telephone & Fax | C66: ='Income Statement'!K65 -> 2196407.73 | D66: =Budget!K66 -> 2142500 | E66: 53907.73
A67: 7200 | B67: FAC – Utilities | C67: ='Income Statement'!K66 -> 2045472.66 | D67: =Budget!K67 -> 1994800 | E67: 50672.66
A68: 7300 | B68: FAC – Electricity | C68: ='Income Statement'!K67 -> 935320.21 | D68: =Budget!K68 -> 953100 | E68: -17779.79
A69: 7400 | B69: FAC – Water | C69: ='Income Statement'!K68 -> 2083173.4 | D69: =Budget!K69 -> 2087600 | E69: -4426.6
A70: 7500 | B70: FAC – Repairs – Building | C70: ='Income Statement'!K69 -> 1512419.92 | D70: =Budget!K70 -> 1463300 | E70: 49119.92
A71: 7600 | B71: FAC – Repairs – Office Equipment | C71: ='Income Statement'!K70 -> 1429204.15 | D71: =Budget!K71 -> 1452400 | E71: -23195.85
A72: 7700 | B72: FAC – Real Estate Taxes | C72: ='Income Statement'!K71 -> 2362316.55 | D72: =Budget!K72 -> 2418300 | E72: =C72-D72 -> -55983.45
C74: =SUM(C7:C72) -> 89331744.88 | D74: =SUM(D7:D72) -> 89418900 | E74: -87155.12

Sheet Charts

Sheet Dashboard

Sheet CashFlow Statement

Sheet CashFlow Forecast

Sheet PivotTables
A5: Row Labels | B5: Sum of DEPT 1 | C5: Sum of DEPT 2 | D5: Sum of DEPT 3 | E5: Sum of DEPT 4 | F5: Sum of DEPT 5 | G5: Sum of DEPT 6 | H5: Sum of DEPT 7 | I5: Sum of DEPT 8
A6: Facilities | B6: 1540369.38 | C6: 2183208.06 | D6: 1386062.37 | E6: 1230243.74 | F6: 1357990.04 | G6: 1675168 | H6: 1805360.81 | I6: 1385912.22
A7: FAC – Electricity | B7: 97303.25 | C7: 231083.27 | D7: 50621.78 | E7: 75653.71 | F7: 42738.08 | G7: 217105.68 | H7: 212751.99 | I7: 8062.45
A8: FAC – Real Estate Taxes | B8: 400946.48 | C8: 347108.3 | D8: 383265.85 | E8: 72010.73 | F8: 62756.32 | G8: 366676.53 | H8: 364435.61 | I8: 365116.73
A9: FAC – Repairs – Building | B9: 128677.12 | C9: 347720.23 | D9: 142067.86 | E9: 173882.17 | F9: 170522.55 | G9: 19514.66 | H9: 339202.6 | I9: 190832.73
A10: FAC – Repairs – Office Equipment | B10: 377489.97 | C10: 249466.03 | D10: 316299.83 | E10: 41589.46 | F10: 89197.13 | G10: 59722.3 | H10: 142743.92 | I10: 152695.51
A11: FAC – Telephone & Fax | B11: 182061 | C11: 399251.05 | D11: 100186.35 | E11: 277682.35 | F11: 228898.67 | G11: 325811.86 | H11: 326755.22 | I11: 355761.23
A12: FAC – Utilities | B12: 146499.43 | C12: 329350.12 | D12: 54369.81 | E12: 327557.12 | F12: 380690.64 | G12: 319586.85 | H12: 247267.46 | I12: 240151.23
A13: FAC – Water | B13: 207392.13 | C13: 279229.06 | D13: 339250.89 | E13: 261868.2 | F13: 383186.65 | G13: 366750.12 | H13: 172204.01 | I13: 73292.34
A14: Grand Total | B14: 1540369.38 | C14: 2183208.06 | D14: 1386062.37 | E14: 1230243.74 | F14: 1357990.04 | G14: 1675168 | H14: 1805360.81 | I14: 1385912.22
A100: Account | B100: Deparment | C100: Expenses | D100: ='Income Statement'!C4 -> DEPT 1 | E100: ='Income Statement'!D4 -> DEPT 2 | F100: ='Income Statement'!E4 -> DEPT 3 | G100: ='Income Statement'!F4 -> DEPT 4 | H100: ='Income Statement'!G4 -> DEPT 5 | I100: ='Income Statement'!H4 -> DEPT 6 | J100: ='Income Statement'!I4 -> DEPT 7 | K100: ='Income Statement'!J4 -> DEPT 8
A101: ='Income Statement'!A6 -> 1100 | B101: S&W | C101: ='Income Statement'!B6 -> S & W – Exempt | D101: ='Income Statement'!C6 -> 100078.11 | E101: ='Income Statement'!D6 -> 240039.47 | F101: ='Income Statement'!E6 -> 96348.67 | G101: ='Income Statement'!F6 -> 36949.77 | H101: ='Income Statement'!G6 -> 372727.74 | I101: ='Income Statement'!H6 -> 320420.43 | J101: ='Income Statement'!I6 -> 129522.58 | K101: ='Income Statement'!J6 -> 33917.62
A102: ='Income Statement'!A7 -> 1200 | B102: S&W | C102: ='Income Statement'!B7 -> S & W – Non-Exempt | D102: ='Income Statement'!C7 -> 334554.44 | E102: ='Income Statement'!D7 -> 123257.97 | F102: ='Income Statement'!E7 -> 121520.41 | G102: ='Income Statement'!F7 -> 71985.65 | H102: ='Income Statement'!G7 -> 386672 | I102: ='Income Statement'!H7 -> 134902.02 | J102: ='Income Statement'!I7 -> 174034.85 | K102: ='Income Statement'!J7 -> 195411.37
A103: ='Income Statement'!A8 -> 1300 | B103: S&W | C103: ='Income Statement'!B8 -> S & W – Officers | D103: ='Income Statement'!C8 -> 62685.92 | E103: ='Income Statement'!D8 -> 75937.73 | F103: ='Income Statement'!E8 -> 70914.03 | G103: ='Income Statement'!F8 -> 60290.34 | H103: ='Income Statement'!G8 -> 242321.42 | I103: ='Income Statement'!H8 -> 291763.45 | J103: ='Income Statement'!I8 -> 528.03 | K103: ='Income Statement'!J8 -> 412191.45
A104: ='Income Statement'!A9 -> 1400 | B104: S&W | C104: ='Income Statement'!B9 -> S & W – Incentives | D104: ='Income Statement'!C9 -> 207449.55 | E104: ='Income Statement'!D9 -> 599.15 | F104: ='Income Statement'!E9 -> 56020.14 | G104: ='Income Statement'!F9 -> 238413.78 | H104: ='Income Statement'!G9 -> 136488.11 | I104: ='Income Statement'!H9 -> 280932.08 | J104: ='Income Statement'!I9 -> 211988.37 | K104: ='Income Statement'!J9 -> 369411.02
A105: ='Income Statement'!A10 -> 1500 | B105: S&W | C105: ='Income Statement'!B10 -> S & W – Commissions | D105: ='Income Statement'!C10 -> 189179.76 | E105: ='Income Statement'!D10 -> 234005.31 | F105: ='Income Statement'!E10 -> 61062.54 | G105: ='Income Statement'!F10 -> 61833.31 | H105: ='Income Statement'!G10 -> 669.49 | I105: ='Income Statement'!H10 -> 344592.16 | J105: ='Income Statement'!I10 -> 210523.94 | K105: ='Income Statement'!J10 -> 536.55
A106: ='Income Statement'!A11 -> 1600 | B106: S&W | C106: ='Income Statement'!B11 -> S & W – Overtime | D106: ='Income Statement'!C11 -> 298971.75 | E106: ='Income Statement'!D11 -> 175474.86 | F106: ='Income Statement'!E11 -> 385540.65 | G106: ='Income Statement'!F11 -> 69786.97 | H106: ='Income Statement'!G11 -> 279197.82 | I106: ='Income Statement'!H11 -> 44180.29 | J106: ='Income Statement'!I11 -> 348799.11 | K106: ='Income Statement'!J11 -> 307968.1
A107: ='Income Statement'!A12 -> 1700 | B107: S&W | C107: ='Income Statement'!B12 -> S & W – Severence | D107: ='Income Statement'!C12 -> 217839.49 | E107: ='Income Statement'!D12 -> 379452.37 | F107: ='Income Statement'!E12 -> 27882.25 | G107: ='Income Statement'!F12 -> 200833.82 | H107: ='Income Statement'!G12 -> 386185.58 | I107: ='Income Statement'!H12 -> 30320.4 | J107: ='Income Statement'!I12 -> 136019.29 | K107: ='Income Statement'!J12 -> 361947.85
A108: ='Income Statement'!A15 -> 2100 | B108: Other | C108: ='Income Statement'!B15 -> 401K Match | D108: ='Income Statement'!C15 -> 300881.24 | E108: ='Income Statement'!D15 -> 114835.05 | F108: ='Income Statement'!E15 -> 248334.13 | G108: ='Income Statement'!F15 -> 189539.13 | H108: ='Income Statement'!G15 -> 393603.1 | I108: ='Income Statement'!H15 -> 301857.6 | J108: ='Income Statement'!I15 -> 246159.98 | K108: ='Income Statement'!J15 -> 284336.14
A109: ='Income Statement'!A16 -> 2200 | B109: Other | C109: ='Income Statement'!B16 -> Allocations to Other Departments | D109: ='Income Statement'!C16 -> 106681.19 | E109: ='Income Statement'!D16 -> 61353.49 | F109: ='Income Statement'!E16 -> 396131.67 | G109: ='Income Statement'!F16 -> 358605.5 | H109: ='Income Statement'!G16 -> 739.36 | I109: ='Income Statement'!H16 -> 129775.36 | J109: ='Income Statement'!I16 -> 382076.75 | K109: ='Income Statement'!J16 -> 218860.4
A110: ='Income Statement'!A17 -> 2300 | B110: Other | C110: ='Income Statement'!B17 -> Education Assistance / Training & Education | D110: ='Income Statement'!C17 -> 1437.26 | E110: ='Income Statement'!D17 -> 58152.82 | F110: ='Income Statement'!E17 -> 287565.41 | G110: ='Income Statement'!F17 -> 399629.45 | H110: ='Income Statement'!G17 -> 11928.73 | I110: ='Income Statement'!H17 -> 313132.16 | J110: ='Income Statement'!I17 -> 77900.57 | K110: ='Income Statement'!J17 -> 658.19
A111: ='Income Statement'!A18 -> 2400 | B111: Insurance | C111: ='Income Statement'!B18 -> Insurance – Workers Comp | D111: ='Income Statement'!C18 -> 57888.6 | E111: ='Income Statement'!D18 -> 292422.9 | F111: ='Income Statement'!E18 -> 34561.34 | G111: ='Income Statement'!F18 -> 659.88 | H111: ='Income Statement'!G18 -> 60075.95 | I111: ='Income Statement'!H18 -> 683.86 | J111: ='Income Statement'!I18 -> 98068.85 | K111: ='Income Statement'!J18 -> 334417.93
A112: ='Income Statement'!A19 -> 2500 | B112: Insurance | C112: ='Income Statement'!B19 -> Insurance – Medical & Dental | D112: ='Income Statement'!C19 -> 627.1 | E112: ='Income Statement'!D19 -> 224170.21 | F112: ='Income Statement'!E19 -> 95137.57 | G112: ='Income Statement'!F19 -> 208695.63 | H112: ='Income Statement'!G19 -> 252729.62 | I112: ='Income Statement'!H19 -> 256737.58 | J112: ='Income Statement'!I19 -> 1699.83 | K112: ='Income Statement'!J19 -> 169641.34
A113: ='Income Statement'!A20 -> 2600 | B113: Insurance | C113: ='Income Statement'!B20 -> Insurance – Group Life | D113: ='Income Statement'!C20 -> 62979.29 | E113: ='Income Statement'!D20 -> 239337.01 | F113: ='Income Statement'!E20 -> 31126.15 | G113: ='Income Statement'!F20 -> 10962.82 | H113: ='Income Statement'!G20 -> 106090.05 | I113: ='Income Statement'!H20 -> 188131.13 | J113: ='Income Statement'!I20 -> 612.26 | K113: ='Income Statement'!J20 -> 121610.83
A114: ='Income Statement'!A21 -> 2700 | B114: Other | C114: ='Income Statement'!B21 -> Other Miscellaneous Employee Benefits | D114: ='Income Statement'!C21 -> 84467.35 | E114: ='Income Statement'!D21 -> 40795.92 | F114: ='Income Statement'!E21 -> 621.76 | G114: ='Income Statement'!F21 -> 405298.74 | H114: ='Income Statement'!G21 -> 227667.22 | I114: ='Income Statement'!H21 -> 270898.1 | J114: ='Income Statement'!I21 -> 350460 | K114: ='Income Statement'!J21 -> 175014.29
A115: ='Income Statement'!A22 -> 2800 | B115: S&W | C115: ='Income Statement'!B22 -> PR Tax – FICA | D115: ='Income Statement'!C22 -> 256880.47 | E115: ='Income Statement'!D22 -> 554.67 | F115: ='Income Statement'!E22 -> 685.35 | G115: ='Income Statement'!F22 -> 312496.91 | H115: ='Income Statement'!G22 -> 416643.59 | I115: ='Income Statement'!H22 -> 267344.99 | J115: ='Income Statement'!I22 -> 178702.92 | K115: ='Income Statement'!J22 -> 182585.59
A116: ='Income Statement'!A23 -> 2900 | B116: S&W | C116: ='Income Statement'!B23 -> PR Tax – Unemployment | D116: ='Income Statement'!C23 -> 140860.5 | E116: ='Income Statement'!D23 -> 125693.7 | F116: ='Income Statement'!E23 -> 173855.99 | G116: ='Income Statement'!F23 -> 112555.41 | H116: ='Income Statement'!G23 -> 402645.54 | I116: ='Income Statement'!H23 -> 105071.89 | J116: ='Income Statement'!I23 -> 265653.52 | K116: ='Income Statement'!J23 -> 400275.37
A117: ='Income Statement'!A26 -> 3100 | B117: TLE | C117: ='Income Statement'!B26 -> TLE – Airfares | D117: ='Income Statement'!C26 -> 92254.69 | E117: ='Income Statement'!D26 -> 400286.59 | F117: ='Income Statement'!E26 -> 377170.64 | G117: ='Income Statement'!F26 -> 92444.11 | H117: ='Income Statement'!G26 -> 412591.85 | I117: ='Income Statement'!H26 -> 185785.05 | J117: ='Income Statement'!I26 -> 180285.16 | K117: ='Income Statement'!J26 -> 314162.31
A118: ='Income Statement'!A27 -> 3200 | B118: TLE | C118: ='Income Statement'!B27 -> TLE – Lodging | D118: ='Income Statement'!C27 -> 154523.27 | E118: ='Income Statement'!D27 -> 352807.51 | F118: ='Income Statement'!E27 -> 398102.76 | G118: ='Income Statement'!F27 -> 3652.77 | H118: ='Income Statement'!G27 -> 302055.05 | I118: ='Income Statement'!H27 -> 38405.18 | J118: ='Income Statement'!I27 -> 263431.19 | K118: ='Income Statement'!J27 -> 760.83
A119: ='Income Statement'!A28 -> 3300 | B119: TLE | C119: ='Income Statement'!B28 -> TLE – Meals | D119: ='Income Statement'!C28 -> 633.47 | E119: ='Income Statement'!D28 -> 224423.1 | F119: ='Income Statement'!E28 -> 135771.13 | G119: ='Income Statement'!F28 -> 240534.03 | H119: ='Income Statement'!G28 -> 321535.06 | I119: ='Income Statement'!H28 -> 270955.41 | J119: ='Income Statement'!I28 -> 501.74 | K119: ='Income Statement'!J28 -> 167690.93
A120: ='Income Statement'!A29 -> 3400 | B120: TLE | C120: ='Income Statement'!B29 -> TLE – Entertainment | D120: ='Income Statement'!C29 -> 344668.06 | E120: ='Income Statement'!D29 -> 46675.97 | F120: ='Income Statement'!E29 -> 311043.37 | G120: ='Income Statement'!F29 -> 289053.27 | H120: ='Income Statement'!G29 -> 168997.18 | I120: ='Income Statement'!H29 -> 321880.68 | J120: ='Income Statement'!I29 -> 277466.97 | K120: ='Income Statement'!J29 -> 34405.58
A121: ='Income Statement'!A30 -> 3500 | B121: TLE | C121: ='Income Statement'!B30 -> TLE – Auto Leasing | D121: ='Income Statement'!C30 -> 366029.62 | E121: ='Income Statement'!D30 -> 348554.47 | F121: ='Income Statement'!E30 -> 747.97 | G121: ='Income Statement'!F30 -> 680.32 | H121: ='Income Statement'!G30 -> 691.88 | I121: ='Income Statement'!H30 -> 224675.77 | J121: ='Income Statement'!I30 -> 356543 | K121: ='Income Statement'!J30 -> 207602.56
A122: ='Income Statement'!A31 -> 3600 | B122: TLE | C122: ='Income Statement'!B31 -> TLE – Auto Expense | D122: ='Income Statement'!C31 -> 77061.82 | E122: ='Income Statement'!D31 -> 320914.22 | F122: ='Income Statement'!E31 -> 222734.49 | G122: ='Income Statement'!F31 -> 131095.91 | H122: ='Income Statement'!G31 -> 138493.3 | I122: ='Income Statement'!H31 -> 393272.88 | J122: ='Income Statement'!I31 -> 520.72 | K122: ='Income Statement'!J31 -> 894.67
A123: ='Income Statement'!A32 -> 3700 | B123: TLE | C123: ='Income Statement'!B32 -> TLE – Conventions & /Seminars | D123: ='Income Statement'!C32 -> 330568.26 | E123: ='Income Statement'!D32 -> 588.29 | F123: ='Income Statement'!E32 -> 387081.42 | G123: ='Income Statement'!F32 -> 2970.88 | H123: ='Income Statement'!G32 -> 389450.82 | I123: ='Income Statement'!H32 -> 364242.78 | J123: ='Income Statement'!I32 -> 124938.66 | K123: ='Income Statement'!J32 -> 351502.36
A124: ='Income Statement'!A33 -> 3800 | B124: TLE | C124: ='Income Statement'!B33 -> TLE – Miscellaneous | D124: ='Income Statement'!C33 -> 362547.68 | E124: ='Income Statement'!D33 -> 71365.25 | F124: ='Income Statement'!E33 -> 325212.36 | G124: ='Income Statement'!F33 -> 616.03 | H124: ='Income Statement'!G33 -> 288202.64 | I124: ='Income Statement'!H33 -> 283085.44 | J124: ='Income Statement'!I33 -> 393380.13 | K124: ='Income Statement'!J33 -> 155286.89
A125: ='Income Statement'!A34 -> 3900 | B125: TLE | C125: ='Income Statement'!B34 -> TLE – Cellphones & Pagers | D125: ='Income Statement'!C34 -> 72607.26 | E125: ='Income Statement'!D34 -> 241358.15 | F125: ='Income Statement'!E34 -> 391058.47 | G125: ='Income Statement'!F34 -> 148779.18 | H125: ='Income Statement'!G34 -> 389281.09 | I125: ='Income Statement'!H34 -> 347967.51 | J125: ='Income Statement'!I34 -> 358625.85 | K125: ='Income Statement'!J34 -> 240655.14
A126: ='Income Statement'!A37 -> 4100 | B126: Misc | C126: ='Income Statement'!B37 -> MISC – Bad Debts | D126: ='Income Statement'!C37 -> 107850.93 | E126: ='Income Statement'!D37 -> 21262.56 | F126: ='Income Statement'!E37 -> 412601.09 | G126: ='Income Statement'!F37 -> 72637.95 | H126: ='Income Statement'!G37 -> 245367.21 | I126: ='Income Statement'!H37 -> 175755.91 | J126: ='Income Statement'!I37 -> 237388.8 | K126: ='Income Statement'!J37 -> 33891.99
A127: ='Income Statement'!A38 -> 4200 | B127: Misc | C127: ='Income Statement'!B38 -> MISC – Bank Charges | D127: ='Income Statement'!C38 -> 231163.02 | E127: ='Income Statement'!D38 -> 163594.31 | F127: ='Income Statement'!E38 -> 122899.26 | G127: ='Income Statement'!F38 -> 189152.7 | H127: ='Income Statement'!G38 -> 214661.81 | I127: ='Income Statement'!H38 -> 129250.11 | J127: ='Income Statement'!I38 -> 281269.89 | K127: ='Income Statement'!J38 -> 120542.62
A128: ='Income Statement'!A39 -> 4300 | B128: Misc | C128: ='Income Statement'!B39 -> MISC – Computer & Software Related | D128: ='Income Statement'!C39 -> 122268.19 | E128: ='Income Statement'!D39 -> 368060.22 | F128: ='Income Statement'!E39 -> 236027.66 | G128: ='Income Statement'!F39 -> 296646.13 | H128: ='Income Statement'!G39 -> 127656.65 | I128: ='Income Statement'!H39 -> 37933.83 | J128: ='Income Statement'!I39 -> 8545.57 | K128: ='Income Statement'!J39 -> 41654.25
A129: ='Income Statement'!A40 -> 4400 | B129: Misc | C129: ='Income Statement'!B40 -> MISC – Contributions / Donations | D129: ='Income Statement'!C40 -> 160588.01 | E129: ='Income Statement'!D40 -> 348844.32 | F129: ='Income Statement'!E40 -> 173681.42 | G129: ='Income Statement'!F40 -> 311360.17 | H129: ='Income Statement'!G40 -> 391088.61 | I129: ='Income Statement'!H40 -> 74742.14 | J129: ='Income Statement'!I40 -> 71968.16 | K129: ='Income Statement'!J40 -> 341954.25
A130: ='Income Statement'!A41 -> 4500 | B130: Misc | C130: ='Income Statement'!B41 -> MISC – Dues & Subscriptions | D130: ='Income Statement'!C41 -> 212543.87 | E130: ='Income Statement'!D41 -> 216668.98 | F130: ='Income Statement'!E41 -> 269339.51 | G130: ='Income Statement'!F41 -> 173638.52 | H130: ='Income Statement'!G41 -> 316420.17 | I130: ='Income Statement'!H41 -> 62674.48 | J130: ='Income Statement'!I41 -> 128807.25 | K130: ='Income Statement'!J41 -> 327096.11
A131: ='Income Statement'!A42 -> 4600 | B131: Misc | C131: ='Income Statement'!B42 -> MISC – Insurance – Auto & General | D131: ='Income Statement'!C42 -> 306832.24 | E131: ='Income Statement'!D42 -> 234055.69 | F131: ='Income Statement'!E42 -> 310946.57 | G131: ='Income Statement'!F42 -> 388077.69 | H131: ='Income Statement'!G42 -> 216446.45 | I131: ='Income Statement'!H42 -> 299045.67 | J131: ='Income Statement'!I42 -> 165107.36 | K131: ='Income Statement'!J42 -> 11364.21
A132: ='Income Statement'!A43 -> 4700 | B132: Misc | C132: ='Income Statement'!B43 -> MISC – Office Supplies & Expense | D132: ='Income Statement'!C43 -> 179102.11 | E132: ='Income Statement'!D43 -> 309231.01 | F132: ='Income Statement'!E43 -> 16828.46 | G132: ='Income Statement'!F43 -> 2555.96 | H132: ='Income Statement'!G43 -> 109737.1 | I132: ='Income Statement'!H43 -> 397161.27 | J132: ='Income Statement'!I43 -> 73280.24 | K132: ='Income Statement'!J43 -> 153498.84
A133: ='Income Statement'!A44 -> 4800 | B133: Misc | C133: ='Income Statement'!B44 -> MISC – Postage | D133: ='Income Statement'!C44 -> 75931.68 | E133: ='Income Statement'!D44 -> 403645.77 | F133: ='Income Statement'!E44 -> 361625.22 | G133: ='Income Statement'!F44 -> 319782.76 | H133: ='Income Statement'!G44 -> 166966.58 | I133: ='Income Statement'!H44 -> 369871.15 | J133: ='Income Statement'!I44 -> 333991.46 | K133: ='Income Statement'!J44 -> 253808.83
A134: ='Income Statement'!A45 -> 4900 | B134: Misc | C134: ='Income Statement'!B45 -> MISC – Misc. Taxes & Licenses | D134: ='Income Statement'!C45 -> 278920.95 | E134: ='Income Statement'!D45 -> 298415.7 | F134: ='Income Statement'!E45 -> 158843.08 | G134: ='Income Statement'!F45 -> 120586.62 | H134: ='Income Statement'!G45 -> 393824.09 | I134: ='Income Statement'!H45 -> 226541.7 | J134: ='Income Statement'!I45 -> 365735.48 | K134: ='Income Statement'!J45 -> 185956.32
A135: ='Income Statement'!A48 -> 5100 | B135: O/S | C135: ='Income Statement'!B48 -> O / S – Advertising Expense | D135: ='Income Statement'!C48 -> 350273.77 | E135: ='Income Statement'!D48 -> 221185.91 | F135: ='Income Statement'!E48 -> 359577.24 | G135: ='Income Statement'!F48 -> 93724.29 | H135: ='Income Statement'!G48 -> 106770.29 | I135: ='Income Statement'!H48 -> 205179.26 | J135: ='Income Statement'!I48 -> 384409.74 | K135: ='Income Statement'!J48 -> 298831.06
A136: ='Income Statement'!A49 -> 5200 | B136: O/S | C136: ='Income Statement'!B49 -> O / S – Legal Fees | D136: ='Income Statement'!C49 -> 146120.37 | E136: ='Income Statement'!D49 -> 322883.77 | F136: ='Income Statement'!E49 -> 320498.97 | G136: ='Income Statement'!F49 -> 16230.06 | H136: ='Income Statement'!G49 -> 13060.52 | I136: ='Income Statement'!H49 -> 262161.57 | J136: ='Income Statement'!I49 -> 188022.01 | K136: ='Income Statement'!J49 -> 402033.5
A137: ='Income Statement'!A50 -> 5300 | B137: O/S | C137: ='Income Statement'!B50 -> O / S – Accounting | D137: ='Income Statement'!C50 -> 136193.2 | E137: ='Income Statement'!D50 -> 153091.18 | F137: ='Income Statement'!E50 -> 289794.01 | G137: ='Income Statement'!F50 -> 99748.77 | H137: ='Income Statement'!G50 -> 299355.43 | I137: ='Income Statement'!H50 -> 108884.49 | J137: ='Income Statement'!I50 -> 138225.01 | K137: ='Income Statement'!J50 -> 134460.15
A138: ='Income Statement'!A51 -> 5400 | B138: O/S | C138: ='Income Statement'!B51 -> O / S – Consultant Fees | D138: ='Income Statement'!C51 -> 394260.68 | E138: ='Income Statement'!D51 -> 300508.34 | F138: ='Income Statement'!E51 -> 364100.55 | G138: ='Income Statement'!F51 -> 158981.9 | H138: ='Income Statement'!G51 -> 34502.27 | I138: ='Income Statement'!H51 -> 186742.71 | J138: ='Income Statement'!I51 -> 30587.92 | K138: ='Income Statement'!J51 -> 288216.5
A139: ='Income Statement'!A52 -> 5500 | B139: O/S | C139: ='Income Statement'!B52 -> O / S – Promotional Expense | D139: ='Income Statement'!C52 -> 309835.35 | E139: ='Income Statement'!D52 -> 180142.49 | F139: ='Income Statement'!E52 -> 5186.06 | G139: ='Income Statement'!F52 -> 142829.72 | H139: ='Income Statement'!G52 -> 258977.07 | I139: ='Income Statement'!H52 -> 10189.52 | J139: ='Income Statement'!I52 -> 146246.54 | K139: ='Income Statement'!J52 -> 401682.93
A140: ='Income Statement'!A53 -> 5600 | B140: O/S | C140: ='Income Statement'!B53 -> O / S – Recruiting Fees | D140: ='Income Statement'!C53 -> 263701.68 | E140: ='Income Statement'!D53 -> 45698.62 | F140: ='Income Statement'!E53 -> 211948.33 | G140: ='Income Statement'!F53 -> 145667.28 | H140: ='Income Statement'!G53 -> 110769.78 | I140: ='Income Statement'!H53 -> 1935.45 | J140: ='Income Statement'!I53 -> 292022.72 | K140: ='Income Statement'!J53 -> 283129.11
A141: ='Income Statement'!A54 -> 5700 | B141: O/S | C141: ='Income Statement'!B54 -> O / S – Contract Labor | D141: ='Income Statement'!C54 -> 126036.68 | E141: ='Income Statement'!D54 -> 248930.22 | F141: ='Income Statement'!E54 -> 307231.32 | G141: ='Income Statement'!F54 -> 215353.38 | H141: ='Income Statement'!G54 -> 253886.93 | I141: ='Income Statement'!H54 -> 164603.78 | J141: ='Income Statement'!I54 -> 274767.35 | K141: ='Income Statement'!J54 -> 95241.08
A142: ='Income Statement'!A55 -> 5800 | B142: O/S | C142: ='Income Statement'!B55 -> O / S – Janitorial Service | D142: ='Income Statement'!C55 -> 417077.21 | E142: ='Income Statement'!D55 -> 61891.06 | F142: ='Income Statement'!E55 -> 402243.6 | G142: ='Income Statement'!F55 -> 325315.54 | H142: ='Income Statement'!G55 -> 383221.08 | I142: ='Income Statement'!H55 -> 339154.86 | J142: ='Income Statement'!I55 -> 90945.03 | K142: ='Income Statement'!J55 -> 214360.41
A143: ='Income Statement'!A56 -> 5900 | B143: O/S | C143: ='Income Statement'!B56 -> O / S – Security | D143: ='Income Statement'!C56 -> 251769.76 | E143: ='Income Statement'!D56 -> 319453.64 | F143: ='Income Statement'!E56 -> 299623.83 | G143: ='Income Statement'!F56 -> 128678.77 | H143: ='Income Statement'!G56 -> 416466.16 | I143: ='Income Statement'!H56 -> 360401.36 | J143: ='Income Statement'!I56 -> 269566.22 | K143: ='Income Statement'!J56 -> 275925.32
A144: ='Income Statement'!A59 -> 6100 | B144: Rentals | C144: ='Income Statement'!B59 -> RENTALS Office Rent | D144: ='Income Statement'!C59 -> 246251.72 | E144: ='Income Statement'!D59 -> 384172.8 | F144: ='Income Statement'!E59 -> 309934.68 | G144: ='Income Statement'!F59 -> 248120.84 | H144: ='Income Statement'!G59 -> 101168.98 | I144: ='Income Statement'!H59 -> 188398.21 | J144: ='Income Statement'!I59 -> 306102.5 | K144: ='Income Statement'!J59 -> 273995.59
A145: ='Income Statement'!A60 -> 6200 | B145: Rentals | C145: ='Income Statement'!B60 -> RENTALS Equipment Rental | D145: ='Income Statement'!C60 -> 184714.42 | E145: ='Income Statement'!D60 -> 262652.94 | F145: ='Income Statement'!E60 -> 147328.83 | G145: ='Income Statement'!F60 -> 222403.06 | H145: ='Income Statement'!G60 -> 265012.77 | I145: ='Income Statement'!H60 -> 405940.48 | J145: ='Income Statement'!I60 -> 257828.34 | K145: ='Income Statement'!J60 -> 150572.07
A146: ='Income Statement'!A61 -> 6300 | B146: Rentals | C146: ='Income Statement'!B61 -> RENTALS Office Equipment | D146: ='Income Statement'!C61 -> 252179.18 | E146: ='Income Statement'!D61 -> 268969.36 | F146: ='Income Statement'!E61 -> 124131.92 | G146: ='Income Statement'!F61 -> 269392.42 | H146: ='Income Statement'!G61 -> 187901.78 | I146: ='Income Statement'!H61 -> 81020.5 | J146: ='Income Statement'!I61 -> 95105.12 | K146: ='Income Statement'!J61 -> 238833.87
A147: ='Income Statement'!A62 -> 6400 | B147: Rentals | C147: ='Income Statement'!B62 -> RENTALS Vehicle Leases | D147: ='Income Statement'!C62 -> 68336.07 | E147: ='Income Statement'!D62 -> 171273.63 | F147: ='Income Statement'!E62 -> 179024.89 | G147: ='Income Statement'!F62 -> 227433.47 | H147: ='Income Statement'!G62 -> 366472.48 | I147: ='Income Statement'!H62 -> 141135.5 | J147: ='Income Statement'!I62 -> 405648.98 | K147: ='Income Statement'!J62 -> 297138.71
A148: ='Income Statement'!A65 -> 7100 | B148: Facilities | C148: ='Income Statement'!B65 -> FAC – Telephone & Fax | D148: ='Income Statement'!C65 -> 182061 | E148: ='Income Statement'!D65 -> 399251.05 | F148: ='Income Statement'!E65 -> 100186.35 | G148: ='Income Statement'!F65 -> 277682.35 | H148: ='Income Statement'!G65 -> 228898.67 | I148: ='Income Statement'!H65 -> 325811.86 | J148: ='Income Statement'!I65 -> 326755.22 | K148: ='Income Statement'!J65 -> 355761.23
A149: ='Income Statement'!A66 -> 7200 | B149: Facilities | C149: ='Income Statement'!B66 -> FAC – Utilities | D149: ='Income Statement'!C66 -> 146499.43 | E149: ='Income Statement'!D66 -> 329350.12 | F149: ='Income Statement'!E66 -> 54369.81 | G149: ='Income Statement'!F66 -> 327557.12 | H149: ='Income Statement'!G66 -> 380690.64 | I149: ='Income Statement'!H66 -> 319586.85 | J149: ='Income Statement'!I66 -> 247267.46 | K149: ='Income Statement'!J66 -> 240151.23
A150: ='Income Statement'!A67 -> 7300 | B150: Facilities | C150: ='Income Statement'!B67 -> FAC – Electricity | D150: ='Income Statement'!C67 -> 97303.25 | E150: ='Income Statement'!D67 -> 231083.27 | F150: ='Income Statement'!E67 -> 50621.78 | G150: ='Income Statement'!F67 -> 75653.71 | H150: ='Income Statement'!G67 -> 42738.08 | I150: ='Income Statement'!H67 -> 217105.68 | J150: ='Income Statement'!I67 -> 212751.99 | K150: ='Income Statement'!J67 -> 8062.45
A151: ='Income Statement'!A68 -> 7400 | B151: Facilities | C151: ='Income Statement'!B68 -> FAC – Water | D151: ='Income Statement'!C68 -> 207392.13 | E151: ='Income Statement'!D68 -> 279229.06 | F151: ='Income Statement'!E68 -> 339250.89 | G151: ='Income Statement'!F68 -> 261868.2 | H151: ='Income Statement'!G68 -> 383186.65 | I151: ='Income Statement'!H68 -> 366750.12 | J151: ='Income Statement'!I68 -> 172204.01 | K151: ='Income Statement'!J68 -> 73292.34
A152: ='Income Statement'!A69 -> 7500 | B152: Facilities | C152: ='Income Statement'!B69 -> FAC – Repairs – Building | D152: ='Income Statement'!C69 -> 128677.12 | E152: ='Income Statement'!D69 -> 347720.23 | F152: ='Income Statement'!E69 -> 142067.86 | G152: ='Income Statement'!F69 -> 173882.17 | H152: ='Income Statement'!G69 -> 170522.55 | I152: ='Income Statement'!H69 -> 19514.66 | J152: ='Income Statement'!I69 -> 339202.6 | K152: ='Income Statement'!J69 -> 190832.73
A153: ='Income Statement'!A70 -> 7600 | B153: Facilities | C153: ='Income Statement'!B70 -> FAC – Repairs – Office Equipment | D153: ='Income Statement'!C70 -> 377489.97 | E153: ='Income Statement'!D70 -> 249466.03 | F153: ='Income Statement'!E70 -> 316299.83 | G153: ='Income Statement'!F70 -> 41589.46 | H153: ='Income Statement'!G70 -> 89197.13 | I153: ='Income Statement'!H70 -> 59722.3 | J153: ='Income Statement'!I70 -> 142743.92 | K153: ='Income Statement'!J70 -> 152695.51
A154: ='Income Statement'!A71 -> 7700 | B154: Facilities | C154: ='Income Statement'!B71 -> FAC – Real Estate Taxes | D154: ='Income Statement'!C71 -> 400946.48 | E154: ='Income Statement'!D71 -> 347108.3 | F154: ='Income Statement'!E71 -> 383265.85 | G154: ='Income Statement'!F71 -> 72010.73 | H154: ='Income Statement'!G71 -> 62756.32 | I154: ='Income Statement'!H71 -> 366676.53 | J154: ='Income Statement'!I71 -> 364435.61 | K154: ='Income Statement'!J71 -> 365116.73

Sheet Analysis

Sheet Preparers Notes

Sheet Reviewers Notes

Sheet Formula Proofs
